Workbook

Sheet 1_22
A1: KPCO Payroll Dollars by Department by Month
A2: January 2017 - July 2020
C4: 2017-01-01 | G4: 2017-02-01 | J4: (02) Feb Total | K4: 2017-03-31 | N4: 3/31/2017 Total | O4: 2017-04-30 | R4: 4/30/2017 Total | S4: 2017-05-31 | V4: 5/31/2017 Total | W4: 2017-06-30 | Z4: 6/30/2017 Total | AA4: 2017-07-31 | AD4: 7/31/2017 Total | AE4: 2017-08-31 | AH4: 8/31/2017 Total | AI4: 2017-09-30 | AL4: 9/30/2017 Total | AM4: 2017-10-31 | AP4: 10/31/2017 Total | AQ4: 2017-11-30 | AT4: 11/30/2017 Total | AU4: 2017-12-31 | AX4: 12/31/2017 Total | AY4: 2018-01-31 | BB4: 1/31/2018 Total | BC4: 2018-02-28 | BF4: 2/28/2018 Total | BG4: 2018-03-31 | BJ4: 3/31/2018 Total | BK4: 2018-04-30 | BN4: 4/30/2018 Total | BO4: 2018-05-31 | BR4: 5/31/2018 Total | BS4: 2018-06-30 | BV4: 6/30/2018 Total | BW4: 2018-07-31 | BZ4: 7/31/2018 Total | CA4: 2018-08-31 | CD4: 8/31/2018 Total | CE4: 2018-09-30 | CH4: 9/30/2018 Total | CI4: 2018-10-31 | CL4: 10/31/2018 Total | CM4: 2018-11-30 | CP4: 11/30/2018 Total | CQ4: 2018-12-31 | CT4: 12/31/2018 Total | CU4: 2019-01-31 | CX4: 1/31/2019 Total | CY4: 2019-02-28 | DB4: 2/28/2019 Total | DC4: 2019-03-31 | DF4: 3/31/2019 Total | DG4: 2019-04-30 | DJ4: 4/30/2019 Total | DK4: 2019-05-31 | DN4: 5/31/2019 Total | DO4: 2019-06-30 | DR4: 6/30/2019 Total | DS4: 2019-07-31 | DV4: 7/31/2019 Total | DW4: 2019-08-31 | DZ4: 8/31/2019 Total | EA4: 2019-09-30 | ED4: 9/30/2019 Total | EE4: 2019-10-31 | EH4: 10/31/2019 Total | EI4: 2019-11-30 | EL4: 11/30/2019 Total | EM4: 2019-12-31 | EP4: 12/31/2019 Total | EQ4: 2020-01-31 | ET4: 1/31/2020 Total | EU4: 2020-02-29 | EX4: 2/29/2020 Total | EY4: 2020-03-31 | FB4: 3/31/2020 Total | FC4: 2020-04-30 | FF4: 4/30/2020 Total | FG4: 2020-05-31 | FJ4: 5/31/2020 Total | FK4: 2020-06-30 | FN4: 6/30/2020 Total | FO4: 2020-07-31 | FR4: 7/31/2020 Total
A5: Department ID | B5: Department Description | C5: Capital | D5: O&M | E5: Other | F5: Jan Total | G5: Capital | H5: O&M | I5: Other | J5: Feb Total | K5: Capital | L5: O&M | M5: Other | N5: Mar Total | O5: Capital | P5: O&M | Q5: Other | R5: Apr Total | S5: Capital | T5: O&M | U5: Other | V5: May Total | W5: Capital | X5: O&M | Y5: Other | Z5: Jun Total | AA5: Capital | AB5: O&M | AC5: Other | AD5: Jul Total | AE5: Capital | AF5: O&M | AG5: Other | AH5: Aug Total | AI5: Capital | AJ5: O&M | AK5: Other | AL5: Sep Total | AM5: Capital | AN5: O&M | AO5: Other | AP5: Oct Total | AQ5: Capital | AR5: O&M | AS5: Other | AT5: Nov Total | AU5: Capital | AV5: O&M | AW5: Other | AX5: Dec Total | AY5: Capital | AZ5: O&M | BA5: Other | BB5: Jan Total | BC5: Capital | BD5: O&M | BE5: Other | BF5: Feb Total | BG5: Capital | BH5: O&M | BI5: Other | BJ5: Mar Total | BK5: Capital | BL5: O&M | BM5: Other | BN5: Apr Total | BO5: Capital | BP5: O&M | BQ5: Other | BR5: May Total | BS5: Capital | BT5: O&M | BU5: Other | BV5: Jun Total | BW5: Capital | BX5: O&M | BY5: Other | BZ5: Jul Total | CA5: Capital | CB5: O&M | CC5: Other | CD5: Aug Total | CE5: Capital | CF5: O&M | CG5: Other | CH5: Sep Total | CI5: Capital | CJ5: O&M | CK5: Other | CL5: Oct Total | CM5: Capital | CN5: O&M | CO5: Other | CP5: Nov Total | CQ5: Capital | CR5: O&M | CS5: Other | CT5: Dec Total | CU5: Capital | CV5: O&M | CW5: Other | CX5: Jan Total | CY5: Capital | CZ5: O&M | DA5: Other | DB5: Feb Total | DC5: Capital | DD5: O&M | DE5: Other | DF5: Mar Total | DG5: Capital | DH5: O&M | DI5: Other | DJ5: Apr Total | DK5: Capital | DL5: O&M | DM5: Other | DN5: May Total | DO5: Capital | DP5: O&M | DQ5: Other | DR5: Jun Total | DS5: Capital | DT5: O&M | DU5: Other | DV5: Jul Total | DW5: Capital | DX5: O&M | DY5: Other | DZ5: Aug Total | EA5: Capital | EB5: O&M | EC5: Other | ED5: Sep Total | EE5: Capital | EF5: O&M | EG5: Other | EH5: Oct Total | EI5: Capital | EJ5: O&M | EK5: Other | EL5: Nov Total | EM5: Capital | EN5: O&M | EO5: Other | EP5: Dec Total | EQ5: Capital | ER5: O&M | ES5: Other | ET5: Jan Total | EU5: Capital | EV5: O&M | EW5: Other | EX5: Feb Total | EY5: Capital | EZ5: O&M | FA5: Other | FB5: Mar Total | FC5: Capital | FD5: O&M | FE5: Other | FF5: Apr Total | FG5: Capital | FH5: O&M | FI5: Other | FJ5: May Total | FK5: Capital | FL5: O&M | FM5: Other | FN5: Jun Total | FO5: Capital | FP5: O&M | FQ5: Other | FR5: Jul Total
A6: 10096 | B6: Generating Assets AP/KEP | EN6: 10346.60312 | EP6: 10346.60312
A7: 10107 | B7: Big Sandy Plant Stores | E7: 0 | F7: 0 | I7: 0 | J7: 0 | M7: 0 | N7: 0 | Q7: 0 | R7: 0 | U7: 0 | V7: 0 | Y7: 0 | Z7: 0 | AC7: 0 | AD7: 0 | AG7: 0 | AH7: 0 | AK7: 0 | AL7: 0 | AO7: 0 | AP7: 0 | AS7: 0 | AT7: 0 | AW7: 0 | AX7: 0 | BA7: 0 | BB7: 0 | BE7: 0 | BF7: 0 | BI7: 0 | BJ7: 0 | BM7: 0 | BN7: 0 | BQ7: 0 | BR7: 0 | BU7: 0 | BV7: 0 | BY7: 0 | BZ7: 0 | CC7: 0 | CD7: 0 | CG7: 0 | CH7: 0 | CK7: 0 | CL7: 0 | CO7: 0 | CP7: 0 | CS7: 0 | CT7: 0 | CW7: 0 | CX7: 0 | DA7: 0 | DB7: 0 | DE7: 0 | DF7: 0 | DI7: 0 | DJ7: 0 | DM7: 0 | DN7: 0 | DQ7: 0 | DR7: 0 | DU7: 0 | DV7: 0 | DY7: 0 | DZ7: 0 | EC7: 0 | ED7: 0 | EG7: 0 | EH7: 0 | EK7: 0 | EL7: 0 | EO7: 0 | EP7: 0 | ES7: 0 | ET7: 0 | EW7: 0 | EX7: 0 | FA7: 0 | FB7: 0 | FE7: 0 | FF7: 0 | FI7: 0 | FJ7: 0 | FM7: 0 | FN7: 0 | FQ7: 0 | FR7: 0
A8: 10129 | B8: Pikeville Meter Revenue Opers | C8: 8.479985745 | D8: 41669.3245 | E8: 0 | F8: 41677.80448 | G8: 10.86183557 | H8: 36888.81763 | I8: 7.105427358e-15 | J8: 36899.67946 | K8: 5209.96587 | L8: 55515.81326 | M8: -1.421085472e-13 | N8: 60725.77914 | O8: 820.6115821 | P8: 34587.37859 | Q8: 0 | R8: 35407.99018 | S8: 613.0275361 | T8: 38789.21935 | U8: 0 | V8: 39402.24689 | W8: 22.52390272 | X8: 40797.1668 | Y8: 0 | Z8: 40819.6907 | AA8: 533.6051458 | AB8: 39308.69877 | AC8: 7.815970093e-14 | AD8: 39842.30392 | AE8: 19.60730087 | AF8: 33716.59672 | AG8: -7.105427358e-15 | AH8: 33736.20402 | AI8: 37.39708634 | AJ8: 55720.47369 | AK8: -7.105427358e-15 | AL8: 55757.87078 | AM8: 50.1630996 | AN8: 31507.15948 | AO8: -1.776356839e-15 | AP8: 31557.32258 | AQ8: 25.15167557 | AR8: 32971.9414 | AS8: 2.664535259e-15 | AT8: 32997.09307 | AV8: 34031.56464 | AW8: 0 | AX8: 34031.56464 | AY8: 16.64982725 | AZ8: 34999.57832 | BA8: 0 | BB8: 35016.22815 | BC8: 22.19458155 | BD8: 32546.77378 | BE8: 0 | BF8: 32568.96837 | BG8: 5.326149615 | BH8: 56316.58403 | BI8: 0 | BJ8: 56321.91018 | BK8: 3013.769364 | BL8: 43400.75584 | BM8: 9.094947018e-13 | BN8: 46414.5252 | BO8: 22.67898956 | BP8: 35078.92084 | BQ8: 0 | BR8: 35101.59983 | BS8: 2.242977956 | BT8: 32836.73811 | BU8: 0 | BV8: 32838.98109 | BX8: 32067.84105 | BY8: 0 | BZ8: 32067.84105 | CA8: 505.5146827 | CB8: 56303.18777 | CC8: 8.526512829e-14 | CD8: 56808.70245 | CE8: 45.26903958 | CF8: 36552.43421 | CG8: 0 | CH8: 36597.70325 | CI8: 48.84622245 | CJ8: 37323.13156 | CK8: 10752.33 | CL8: 48124.30778 | CM8: 26.10140791 | CN8: 37493.11105 | CO8: 0 | CP8: 37519.21246 | CQ8: 111.9150142 | CR8: 25299.50843 | CS8: -2.273736754e-13 | CT8: 25411.42344 | CU8: 86.02205082 | CV8: 47850.29367 | CW8: 7.105427358e-15 | CX8: 47936.31572 | CY8: 16.34003331 | CZ8: 36210.54534 | DA8: 0 | DB8: 36226.88537 | DC8: 1501.246421 | DD8: 71283.71812 | DE8: 1.261213356e-13 | DF8: 72784.96455 | DG8: 3.801583487 | DH8: 52685.9336 | DI8: 0 | DJ8: 52689.73518 | DK8: 53.96284946 | DL8: 51251.79877 | DM8: 0 | DN8: 51305.76162 | DO8: 1344.398081 | DP8: 55493.18245 | DQ8: 2.842170943e-13 | DR8: 56837.58054 | DS8: 20.90791943 | DT8: 53970.96669 | DU8: 0 | DV8: 53991.87461 | DW8: 95.51471068 | DX8: 68266.75665 | DY8: -1.421085472e-14 | DZ8: 68362.27136 | EA8: 113.3042716 | EB8: 41077.47492 | EC8: 0 | ED8: 41190.77919 | EE8: 29.47604942 | EF8: 48791.11102 | EG8: -1.776356839e-15 | EH8: 48820.58707 | EI8: 646.9279854 | EJ8: 41751.22835 | EK8: 8.171241461e-14 | EL8: 42398.15633 | EM8: 355.3003533 | EN8: 48074.87095 | EO8: -2.131628207e-14 | EP8: 48430.1713 | EQ8: 790.8514585 | ER8: 56648.63486 | ES8: -4.263256415e-14 | ET8: 57439.48632 | EU8: 116.2719059 | EV8: 40319.06323 | EW8: 5.329070518e-15 | EX8: 40435.33513 | EY8: 70.37550745 | EZ8: 42040.72744 | FA8: 1.776356839e-15 | FB8: 42111.10295 | FC8: 4380.290383 | FD8: 35601.14571 | FE8: -9.094947018e-13 | FF8: 39981.43609 | FG8: 1063.970982 | FH8: 42711.04464 | FI8: -1.278976924e-13 | FJ8: 43775.01562 | FK8: 155.110396 | FL8: 41873.38419 | FM8: 0 | FN8: 42028.49458 | FO8: 389.4668663 | FP8: 58361.66571 | FQ8: 0 | FR8: 58751.13257
A9: 10216 | B9: Ashland Const | C9: 170570.6983 | D9: 135320.2365 | E9: 2138.27 | F9: 308029.2048 | G9: 151518.4417 | H9: 101779.7012 | I9: 441.64 | J9: 253739.7828 | K9: 198064.9581 | L9: 198828.1168 | M9: 13430.97 | N9: 410324.0448 | O9: 117857.7067 | P9: 93784.12504 | Q9: 506.72 | R9: 212148.5518 | S9: 122330.0773 | T9: 151979.7195 | U9: 404.52 | V9: 274714.3168 | W9: 127917.172 | X9: 144556.873 | Y9: 403.19 | Z9: 272877.235 | AA9: 117436.043 | AB9: 156942.9493 | AC9: 1374.83 | AD9: 275753.8224 | AE9: 112372.0684 | AF9: 134966.4887 | AG9: 1253.64 | AH9: 248592.1971 | AI9: 171531.2871 | AJ9: 239207.1457 | AK9: 108946.67 | AL9: 519685.1029 | AM9: 135046.9534 | AN9: 89450.72719 | AO9: 11983.01 | AP9: 236480.6905 | AQ9: 137391.7258 | AR9: 88593.94457 | AS9: 45088.97 | AT9: 271074.6404 | AU9: 169151.8569 | AV9: 130413.7961 | AW9: 5355 | AX9: 304920.653 | AY9: 173267.2428 | AZ9: 118707.4363 | BA9: 1430.29 | BB9: 293404.9691 | BC9: 147085.3652 | BD9: 93873.57497 | BE9: 80345.01 | BF9: 321303.9502 | BG9: 190779.8484 | BH9: 195559.8771 | BI9: 153267.57 | BJ9: 539607.2955 | BK9: 140925.3671 | BL9: 133219.4349 | BM9: 13698.67 | BN9: 287843.472 | BO9: 137895.368 | BP9: 115290.3141 | BQ9: 138.19 | BR9: 253323.8721 | BS9: 159012.701 | BT9: 138650.6337 | BU9: 637.69 | BV9: 298301.0247 | BW9: 168492.1639 | BX9: 139413.0526 | BY9: 3015.25 | BZ9: 310920.4665 | CA9: 218876.9579 | CB9: 214860.8187 | CC9: 2748.96 | CD9: 436486.7366 | CE9: 150315.4584 | CF9: 144012.0402 | CG9: 431.16 | CH9: 294758.6586 | CI9: 145865.6071 | CJ9: 121408.1455 | CK9: 73298.6 | CL9: 340572.3526 | CM9: 130517.3521 | CN9: 129261.2793 | CO9: 38246.65 | CP9: 298025.2814 | CQ9: 99391.56977 | CR9: 60669.03818 | CS9: 1271.89 | CT9: 161332.498 | CU9: 167529.5808 | CV9: 135798.5117 | CW9: 3119.17 | CX9: 306447.2624 | CY9: 142741.2657 | CZ9: 98701.38996 | DA9: 579.5 | DB9: 242022.1557 | DC9: 204642.4479 | DD9: 198679.8171 | DE9: 2198.65 | DF9: 405520.915 | DG9: 123580.2407 | DH9: 111524.0091 | DI9: 590.62 | DJ9: 235694.8697 | DK9: 141552.4876 | DL9: 107231.5843 | DM9: 874.15 | DN9: 249658.2219 | DO9: 131555.4903 | DP9: 130567.1311 | DQ9: 292.22 | DR9: 262414.8414 | DS9: 123579.8622 | DT9: 139425.795 | DU9: 1898.22 | DV9: 264903.8772 | DW9: 179074.1949 | DX9: 181148.913 | DY9: 1912.95 | DZ9: 362136.0579 | EA9: 121982.25 | EB9: 132769.9801 | EC9: 52510.33 | ED9: 307262.5601 | EE9: 195953.9747 | EF9: 137454.834 | EG9: 525.94 | EH9: 333934.7487 | EI9: 247995.1049 | EJ9: 34557.62507 | EK9: 2982.12 | EL9: 285534.85 | EM9: 239064.5758 | EN9: 127809.2558 | EO9: 681.77 | EP9: 367555.6016 | EQ9: 303310.4396 | ER9: 176727.658 | ES9: 1343.34 | ET9: 481381.4377 | EU9: 191096.4414 | EV9: 87430.46911 | EW9: 548.78 | EX9: 279075.6905 | EY9: 193640.77 | EZ9: 75983.27867 | FA9: 1068.88 | FB9: 270692.9287 | FC9: 160750.1611 | FD9: 125725.4902 | FE9: 401.52 | FF9: 286877.1713 | FG9: 213582.4932 | FH9: 97466.29129 | FI9: 329.42 | FJ9: 311378.2045 | FK9: 211644.9724 | FL9: 113857.2522 | FM9: 1688.83 | FN9: 327191.0545 | FO9: 294953.7413 | FP9: 171464.2067 | FQ9: 1534.04 | FR9: 467951.988
A10: 10218 | B10: Big Sandy Plant | C10: 31722.59645 | D10: 333043.8311 | E10: 36221.6 | F10: 400988.0276 | G10: 20731.92769 | H10: 245654.9744 | I10: 30201.38 | J10: 296588.2821 | K10: 25339.8699 | L10: 424607.4878 | M10: 47206.41 | N10: 497153.7677 | O10: 20959.75683 | P10: 227037.5745 | Q10: 33199.73 | R10: 281197.0613 | S10: 55531.0569 | T10: 211012.7744 | U10: 53726.53 | V10: 320270.3613 | W10: 48627.08141 | X10: 240863.9697 | Y10: 44497.02 | Z10: 333988.0711 | AA10: 21779.80692 | AB10: 255830.6728 | AC10: 42999.28 | AD10: 320609.7597 | AE10: 18288.76733 | AF10: 249228.879 | AG10: 53692.14 | AH10: 321209.7863 | AI10: 14501.35995 | AJ10: 404172.4337 | AK10: 69975.02 | AL10: 488648.8136 | AM10: 9826.311647 | AN10: 242622.9423 | AO10: 41107.94 | AP10: 293557.1939 | AQ10: 21690.59143 | AR10: 257554.5356 | AS10: 141704.4 | AT10: 420949.527 | AU10: 15806.51748 | AV10: 339768.5838 | AW10: 37795.14 | AX10: 393370.2413 | AY10: 12778.1814 | AZ10: 358096.2893 | BA10: 31246.94 | BB10: 402121.4106 | BC10: 6343.58744 | BD10: 291420.6827 | BE10: 29845.59 | BF10: 327609.8601 | BG10: 41866.38097 | BH10: 397503.743 | BI10: 57033.62 | BJ10: 496403.744 | BK10: 58962.82609 | BL10: 248361.4534 | BM10: 41016.77 | BN10: 348341.0495 | BO10: 101627.3499 | BP10: 234762.1589 | BQ10: 52348.04 | BR10: 388737.5488 | BS10: 74905.82533 | BT10: 285873.9974 | BU10: 51105.91 | BV10: 411885.7327 | BW10: 14822.61924 | BX10: 331852.2151 | BY10: 45858.25 | BZ10: 392533.0843 | CA10: 40979.38549 | CB10: 397617.271 | CC10: 56836.1 | CD10: 495432.7565 | CE10: 32121.41418 | CF10: 261338.028 | CG10: 38972.78 | CH10: 332432.2222 | CI10: 8655.425327 | CJ10: 274518.1721 | CK10: 49526.8 | CL10: 332700.3974 | CM10: 32446.1363 | CN10: 352377.3877 | CO10: 37827.73 | CP10: 422651.254 | CQ10: 88551.67023 | CR10: 171422.221 | CS10: 25576.5 | CT10: 285550.3912 | CU10: 74688.92781 | CV10: 338397.1791 | CW10: 32438.99 | CX10: 445525.0969 | CY10: 72697.48458 | CZ10: 270869.2369 | DA10: 96192.3 | DB10: 439759.0214 | DC10: 45649.97889 | DD10: 355217.8947 | DE10: 46093.33 | DF10: 446961.2036 | DG10: 43578.73304 | DH10: 251946.9595 | DI10: 31675.43 | DJ10: 327201.1225 | DK10: 15399.055 | DL10: 205628.6872 | DM10: 28891.59 | DN10: 249919.3322 | DO10: 18736.22551 | DP10: 2156593.704 | DQ10: 29254.7 | DR10: 2204584.63 | DS10: 17179.23876 | DT10: 267814.3963 | DU10: 39180.75 | DV10: 324174.385 | DW10: 65828.37669 | DX10: 363981.2357 | DY10: 41321.11 | DZ10: 471130.7224 | EA10: 36476.16468 | EB10: 265838.5428 | EC10: 27960.91 | ED10: 330275.6175 | EE10: 64224.81366 | EF10: 955921.8158 | EG10: 12818.14 | EH10: 1032964.769 | EI10: 33109.94976 | EJ10: 231021.5447 | EK10: 28658.24 | EL10: 292789.7345 | EM10: 36209.8062 | EN10: 303709.4225 | EO10: 27966.63 | EP10: 367885.8587 | EQ10: 28912.16103 | ER10: 1048549.99 | ES10: 18367.85 | ET10: 1095830.001 | EU10: 15019.02363 | EV10: 192782.6229 | EW10: 11722.1 | EX10: 219523.7466 | EY10: 7753.393559 | EZ10: 478893.9436 | FA10: 12044.99 | FB10: 498692.3271 | FC10: 5176.401301 | FD10: 129234.4632 | FE10: 7858.35 | FF10: 142269.2145 | FG10: 15539.04628 | FH10: 209442.8266 | FI10: 7731.38 | FJ10: 232713.2529 | FK10: 8898.591749 | FL10: 218817.7445 | FM10: 7946.24 | FN10: 235662.5762 | FO10: 14614.04922 | FP10: 378209.8325 | FQ10: 12366.77 | FR10: 405190.6517
A11: 10283 | B11: Incentv Acrl CAO | C11: -5735.96 | D11: -13384 | F11: -19119.96 | K11: -2041.73 | L11: -4763 | N11: -6804.73 | O11: 2041.73 | P11: 4763 | R11: 6804.73 | W11: 186.77 | X11: 438 | Z11: 624.77 | AA11: -186.77 | AB11: -438 | AD11: -624.77 | AI11: -2499.23 | AJ11: -5832 | AL11: -8331.23 | AM11: 2499.23 | AN11: 5832 | AP11: 8331.23 | AU11: 4186.77 | AV11: 9768 | AX11: 13954.77 | AY11: -4186.77 | AZ11: -9768 | BB11: -13954.77 | BS11: 2056.67 | BT11: 4798 | BV11: 6854.67 | BW11: -2056.67 | BX11: -4798 | BZ11: -6854.67 | CE11: 1105.87 | CF11: 2579 | CH11: 3684.87 | CI11: -1105.87 | CJ11: -2579 | CL11: -3684.87 | CQ11: 9418.07 | CR11: 21975 | CT11: 31393.07 | CU11: -9418.07 | CV11: -21975 | CX11: -31393.07 | EA11: 4970.94 | EB11: 15961.56 | ED11: 20932.5 | EE11: -4970.94 | EF11: -15961.56 | EH11: -20932.5
A12: 10425 | B12: Transmission Line Projects | AU12: 671.722634 | AX12: 671.722634 | BG12: 234.5913381 | BJ12: 234.5913381 | EU12: 412.4747686 | EX12: 412.4747686
A13: 10451 | B13: Civil Lab | AU13: 0 | AX13: 0 | AY13: 0 | BB13: 0 | BC13: 0 | BF13: 0
A14: 10495 | B14: Turbine Engineering | AA14: 0 | AD14: 0 | BC14: 4590.095498 | BE14: 0 | BF14: 4590.095498 | FG14: 0 | FJ14: 0
A15: 10502 | B15: Water & Ecolog Resource Svcs | BC15: 2534.819575 | BE15: 0 | BF15: 2534.819575 | FG15: 0 | FJ15: 0
A16: 10512 | B16: Hazard Meter Revenue Opers | C16: 570.8426264 | D16: 33692.0782 | E16: 4.796163466e-14 | F16: 34262.92083 | G16: 716.0389596 | H16: 30466.55195 | I16: -3.552713679e-15 | J16: 31182.59091 | K16: 1286.560463 | L16: 37158.54399 | M16: 1.136868377e-13 | N16: 38445.10445 | O16: 457.8896997 | P16: 27143.13431 | Q16: 7.105427358e-15 | R16: 27601.02401 | S16: 105.5784331 | T16: 28339.04063 | U16: 14.73 | V16: 28459.34906 | W16: 19.62682816 | X16: 24005.33451 | Y16: -8.881784197e-16 | Z16: 24024.96134 | AA16: 35.57595537 | AB16: 24008.90735 | AC16: -4.440892099e-15 | AD16: 24044.48331 | AE16: 41.93158223 | AF16: 22574.6328 | AG16: 0 | AH16: 22616.56438 | AI16: 72.46707794 | AJ16: 35719.44301 | AK16: 1.776356839e-14 | AL16: 35791.91009 | AM16: 99.5396784 | AN16: 22785.24338 | AO16: -3.552713679e-14 | AP16: 22884.78306 | AQ16: 58.70374416 | AR16: 24715.59633 | AS16: 0 | AT16: 24774.30007 | AU16: 669.9854125 | AV16: 25863.92145 | AW16: -5.684341886e-14 | AX16: 26533.90686 | AY16: 147.69557 | AZ16: 25103.60406 | BA16: 0 | BB16: 25251.29963 | BC16: 29.28040642 | BD16: 23118.94457 | BE16: 0 | BF16: 23148.22497 | BG16: 91.40855416 | BH16: 35069.50488 | BI16: -7.105427358e-15 | BJ16: 35160.91344 | BK16: 1351.719016 | BL16: 25584.21397 | BM16: -1.065814104e-13 | BN16: 26935.93299 | BO16: 29.68058039 | BP16: 26668.4611 | BQ16: -8.881784197e-16 | BR16: 26698.14169 | BS16: 9.873500104 | BT16: 28139.58231 | BU16: 0 | BV16: 28149.45581 | BW16: 596.3314076 | BX16: 26528.1253 | BY16: 0 | BZ16: 27124.45671 | CA16: 99.91747241 | CB16: 37608.46092 | CC16: 0 | CD16: 37708.37839 | CE16: 116.9487176 | CF16: 26275.46613 | CG16: -1.421085472e-14 | CH16: 26392.41485 | CI16: 27.4397138 | CJ16: 25591.84384 | CK16: 10642.69 | CL16: 36261.97356 | CM16: 111.8494679 | CN16: 26582.85763 | CO16: 0 | CP16: 26694.70709 | CQ16: 86.6274215 | CR16: 18542.36195 | CS16: 0 | CT16: 18628.98937 | CU16: 302.5660949 | CV16: 40187.78643 | CW16: 0 | CX16: 40490.35253 | CZ16: 26016.30911 | DA16: 0 | DB16: 26016.30911 | DC16: 547.5381543 | DD16: 42844.84351 | DE16: 7.105427358e-14 | DF16: 43392.38167 | DG16: 149.0008125 | DH16: 29147.17389 | DI16: 0 | DJ16: 29296.1747 | DK16: 49.85478094 | DL16: 37186.22028 | DM16: 0 | DN16: 37236.07506 | DO16: 53.63392263 | DP16: 34286.88722 | DQ16: 0 | DR16: 34340.52114 | DS16: 27.12509349 | DT16: 33653.44697 | DU16: 0 | DV16: 33680.57207 | DW16: 51.34521751 | DX16: 46366.65724 | DY16: 0 | DZ16: 46418.00246 | EA16: 330.7217245 | EB16: 35396.78261 | EC16: 79.35 | ED16: 35806.85433 | EE16: 67.96986496 | EF16: 44675.50505 | EG16: 0 | EH16: 44743.47491 | EI16: 247.6634812 | EJ16: 39617.48424 | EK16: 2.842170943e-14 | EL16: 39865.14772 | EM16: 412.1742204 | EN16: 38121.83294 | EO16: -1.190159082e-13 | EP16: 38534.00716 | EQ16: 517.2745106 | ER16: 50587.14991 | ES16: 1.421085472e-14 | ET16: 51104.42442 | EU16: 90.20660685 | EV16: 34769.39355 | EW16: 0 | EX16: 34859.60016 | EY16: 65.67789275 | EZ16: 32100.05995 | FA16: 0 | FB16: 32165.73784 | FC16: 3549.320362 | FD16: 25267.25028 | FE16: 0 | FF16: 28816.57064 | FG16: 3052.090172 | FH16: 35338.19541 | FI16: -2.406963517e-13 | FJ16: 38390.28559 | FK16: 122.0265329 | FL16: 32277.77386 | FM16: 0 | FN16: 32399.8004 | FO16: 50.78145625 | FP16: 46669.75345 | FQ16: 0 | FR16: 46720.53491
A17: 10578 | B17: Project Engineering & EWC | BC17: 35256.86906 | BE17: 0 | BF17: 35256.86906 | FG17: 0 | FJ17: 0
A18: 10594 | B18: Plant Engineering Region 1 | C18: 11442.5104 | D18: 63707.91794 | E18: 0 | F18: 75150.42834 | G18: 16027.03898 | H18: 46516.52421 | I18: 379.4905025 | J18: 62923.05369 | K18: 22377.46985 | L18: 84088.07414 | M18: 120.2457205 | N18: 106585.7897 | O18: 14021.36652 | P18: 53007.23233 | Q18: 1528.847659 | R18: 68557.4465 | S18: 16080.28931 | T18: 60340.88522 | U18: 945.1440792 | V18: 77366.31861 | W18: 18287.53278 | X18: 50806.88752 | Y18: 418.0713355 | Z18: 69512.49163 | AA18: 16616.93466 | AB18: 58238.00574 | AC18: 0 | AD18: 74854.9404 | AE18: 22528.09874 | AF18: 49497.90578 | AG18: 137.4872199 | AH18: 72163.49175 | AI18: 35602.80359 | AJ18: 69283.98994 | AK18: 0 | AL18: 104886.7935 | AM18: 18264.60689 | AN18: 44330.4939 | AO18: 0 | AP18: 62595.10078 | AQ18: 21815.65858 | AR18: 45602.33837 | AS18: 2904.817858 | AT18: 70322.8148 | AU18: 31141.44797 | AV18: 50020.13808 | AW18: 435.3437259 | AX18: 81596.92978 | AY18: 26601.66036 | AZ18: 48689.61932 | BA18: 349.2491017 | BB18: 75640.52878 | BC18: 16756.06598 | BD18: 43954.7637 | BE18: 51.93175604 | BF18: 60762.76143 | BG18: 45404.5012 | BH18: 66318.81849 | BI18: 382.0528098 | BJ18: 112105.3725 | BK18: 35167.6985 | BL18: 44748.29367 | BM18: 4401.040395 | BN18: 84317.03256 | BO18: 20151.76046 | BP18: 66070.20551 | BQ18: 2094.198956 | BR18: 88316.16492 | BS18: 23968.43725 | BT18: 48528.05688 | BU18: 1893.037766 | BV18: 74389.53189 | BW18: 16689.09731 | BX18: 60211.22888 | BY18: 432.2615637 | BZ18: 77332.58776 | CA18: 26637.67351 | CB18: 81881.46182 | CC18: 693.2491435 | CD18: 109212.3845 | CE18: 17395.01077 | CF18: 57164.87864 | CG18: 75.94377655 | CH18: 74635.83318 | CI18: 19346.20689 | CJ18: 55783.50365 | CK18: 1240.71099 | CL18: 76370.42154 | CM18: 12091.1847 | CN18: 61669.62922 | CO18: 1223.609674 | CP18: 74984.42359 | CQ18: 13531.12558 | CR18: 53046.20552 | CS18: 2631.850793 | CT18: 69209.18189 | CU18: 18098.76704 | CV18: 67281.75587 | CW18: 401.888978 | CX18: 85782.41188 | CY18: 17386.43571 | CZ18: 38772.59676 | DA18: 172.1942518 | DB18: 56331.22673 | DC18: 27406.87077 | DD18: 65457.12021 | DE18: 1615.471892 | DF18: 94479.46287 | DG18: 21776.19933 | DH18: 43906.98425 | DI18: 997.0367922 | DJ18: 66680.22038 | DK18: 24756.23634 | DL18: 52280.29813 | DM18: 542.5783406 | DN18: 77579.11281 | DO18: 16859.0843 | DP18: 91246.52965 | DQ18: 272.3755227 | DR18: 108377.9895 | DS18: 14969.83937 | DT18: 68041.71034 | DU18: 169.6100279 | DV18: 83181.15974 | DW18: 18034.55382 | DX18: 101085.826 | DY18: 2161.266372 | DZ18: 121281.6462 | EB18: 95922.68502 | EC18: 0 | ED18: 95922.68502 | EE18: 320.6835894 | EF18: 9744.741076 | EG18: 0 | EH18: 10065.42467 | EI18: 286.6841163 | EJ18: 11028.13982 | EK18: 0 | EL18: 11314.82393 | EM18: 4214.881754 | EN18: 11180.98094 | EO18: 0 | EP18: 15395.86269 | EQ18: 3751.34898 | ER18: 14917.69433 | ES18: 0 | ET18: 18669.04331 | EU18: 2709.471353 | EV18: 8765.877668 | EW18: 0 | EX18: 11475.34902 | EY18: 1470.060368 | EZ18: 10041.35486 | FB18: 11511.41522 | FC18: 1788.630891 | FD18: 6181.31973 | FE18: 0 | FF18: 7969.950621 | FG18: 722.1537268 | FH18: 10622.74096 | FI18: 0 | FJ18: 11344.89469 | FK18: 788.9902149 | FL18: 10078.32844 | FM18: 0 | FN18: 10867.31865 | FO18: 2671.319902 | FP18: 26388.17654 | FQ18: 0 | FR18: 29059.49645
A19: 10642 | B19: Mitchell Plant | C19: 30337.10072 | D19: 2307298.253 | E19: 375925.9143 | F19: 2713561.268 | G19: 100058.5151 | H19: 1531631.627 | I19: 215686.4151 | J19: 1847376.557 | K19: 104411.2354 | L19: 2563934.806 | M19: 359982.2159 | N19: 3028328.257 | O19: 64810.72 | P19: 1774577.149 | Q19: 217972.5738 | R19: 2057360.442 | S19: 46939.39429 | T19: 1840844.958 | U19: 226055.0131 | V19: 2113839.365 | W19: 57571.48909 | X19: 1877619.27 | Y19: 266346.1041 | Z19: 2201536.863 | AA19: 38985.01399 | AB19: 1997003.467 | AC19: 238098.9646 | AD19: 2274087.446 | AE19: 54205.36381 | AF19: 1802146.288 | AG19: 225384.5191 | AH19: 2081736.171 | AI19: 81474.54996 | AJ19: 2718485.838 | AK19: 322585.0823 | AL19: 3122545.47 | AM19: 45740.16068 | AN19: 1655902.169 | AO19: 218645.8792 | AP19: 1920288.209 | AQ19: 53822.23852 | AR19: 1691978.042 | AS19: 232242.758 | AT19: 1978043.039 | AU19: 80481.43688 | AV19: 2080784.522 | AW19: 273344.1212 | AX19: 2434610.08 | AY19: 23179.63332 | AZ19: 2268983.517 | BA19: 359837.8997 | BB19: 2652001.05 | BC19: 37118.07452 | BD19: 1667426.755 | BE19: 260542.9978 | BF19: 1965087.827 | BG19: 200868.108 | BH19: 2662707.33 | BI19: 416024.7614 | BJ19: 3279600.199 | BK19: 93287.74517 | BL19: 2029842.528 | BM19: 265571.5381 | BN19: 2388701.811 | BO19: 39597.2753 | BP19: 1878360.059 | BQ19: 244074.7769 | BR19: 2162032.112 | BS19: 32484.02062 | BT19: 1801587.478 | BU19: 257949.8406 | BV19: 2092021.339 | BW19: 11246.50269 | BX19: 2044299.652 | BY19: 283455.1837 | BZ19: 2339001.339 | CA19: 125824.072 | CB19: 2311374.372 | CC19: 645818.6403 | CD19: 3083017.085 | CE19: 58956.22721 | CF19: 1781807.234 | CG19: 311896.6187 | CH19: 2152660.079 | CI19: 23916.76421 | CJ19: 1897543.052 | CK19: 286038.0216 | CL19: 2207497.838 | CM19: 25162.43297 | CN19: 1735879.928 | CO19: 274817.336 | CP19: 2035859.697 | CQ19: 28259.2466 | CR19: 1635540.501 | CS19: 240786.4213 | CT19: 1904586.169 | CU19: 36193.5967 | CV19: 2433520.506 | CW19: 400886.1122 | CX19: 2870600.215 | CY19: 9023.779596 | CZ19: 1658861.729 | DA19: 287635.0456 | DB19: 1955520.554 | DC19: 75126.53318 | DD19: 5902303.216 | DE19: 411307.3414 | DF19: 6388737.09 | DG19: 108017.3923 | DH19: 3019904.297 | DI19: 279191.8802 | DJ19: 3407113.57 | DK19: 114898.672 | DL19: 1793013.659 | DM19: 268335.7548 | DN19: 2176248.086 | DO19: 67279.19973 | DP19: 1687419.165 | DQ19: 290211.1876 | DR19: 2044909.552 | DS19: 84651.83397 | DT19: 1587628.633 | DU19: 290746.1492 | DV19: 1963026.616 | DW19: 67329.37548 | DX19: 2706109.851 | DY19: 345583.6504 | DZ19: 3119022.877 | EA19: 35113.31678 | EB19: 1686109.308 | EC19: 252870.9442 | ED19: 1974093.569 | EE19: 34738.80855 | EF19: 1906016.921 | EG19: 289610.3198 | EH19: 2230366.049 | EI19: 53115.25934 | EJ19: 1614661.075 | EK19: 282331.2093 | EL19: 1950107.544 | EM19: 37787.26596 | EN19: 2162829.79 | EO19: 337807.8386 | EP19: 2538424.895 | EQ19: 90186.53284 | ER19: 2495691.23 | ES19: 389643.0451 | ET19: 2975520.808 | EU19: 31843.66644 | EV19: 1510981.379 | EW19: 236534.1451 | EX19: 1779359.191 | EY19: 25074.55596 | EZ19: 1465892.106 | FA19: 230250.1107 | FB19: 1721216.772 | FC19: 15350.56034 | FD19: 1033267.491 | FE19: 154650.5036 | FF19: 1203268.555 | FG19: 29964.31938 | FH19: 1350522.644 | FI19: 196025.3176 | FJ19: 1576512.281 | FK19: 33539.38001 | FL19: 1551195.247 | FM19: 238263.6672 | FN19: 1822998.295 | FO19: 13188.94472 | FP19: 2467567.463 | FQ19: 340262.1432 | FR19: 2821018.551
A20: 10657 | B20: Geotechnical Engineering | BC20: 12075.98777 | BE20: 0 | BF20: 12075.98777 | FG20: 0 | FJ20: 0
A21: 10695 | B21: Pikeville Const | C21: 149200.6853 | D21: 156470.8654 | E21: 195.35 | F21: 305866.9007 | G21: 133563.0523 | H21: 107183.5272 | I21: 74.63 | J21: 240821.2094 | K21: 194559.6334 | L21: 186621.8383 | M21: 12226.41 | N21: 393407.8818 | O21: 117320.6842 | P21: 103741.3771 | Q21: 5301.24 | R21: 226363.3013 | S21: 113822.9651 | T21: 184930.0692 | U21: 896.0108154 | V21: 299649.0451 | W21: 120996.3418 | X21: 173592.5585 | Y21: 514.51 | Z21: 295103.4103 | AA21: 122181.4894 | AB21: 130531.6611 | AC21: 230.02 | AD21: 252943.1704 | AE21: 129657.0459 | AF21: 146775.906 | AG21: 335.59 | AH21: 276768.5419 | AI21: 209850.936 | AJ21: 195955.1405 | AK21: 74803.31 | AL21: 480609.3865 | AM21: 129422.3463 | AN21: 82823.52833 | AO21: 8245.66 | AP21: 220491.5346 | AQ21: 151107.945 | AR21: 79108.38791 | AS21: 46241.18 | AT21: 276457.5129 | AU21: 178382.3171 | AV21: 118201.2836 | AW21: 3296.73 | AX21: 299880.3307 | AY21: 157326.8203 | AZ21: 88999.25694 | BA21: 328.93 | BB21: 246655.0073 | BC21: 129919.7983 | BD21: 93577.36155 | BE21: 34623.19 | BF21: 258120.3499 | BG21: 180125.7229 | BH21: 134265.0402 | BI21: 151365.95 | BJ21: 465756.7132 | BK21: 150226.0179 | BL21: 162182.6592 | BM21: 24801.85 | BN21: 337210.5271 | BO21: 139144.7573 | BP21: 104302.1122 | BQ21: 1666.31137 | BR21: 245113.1809 | BS21: 149031.7344 | BT21: 130243.2504 | BU21: 833.1220751 | BV21: 280108.1069 | BW21: 140804.9881 | BX21: 166999.3308 | BY21: 833.96 | BZ21: 308638.2789 | CA21: 182415.7192 | CB21: 218140.1644 | CC21: 451.28 | CD21: 401007.1636 | CE21: 150036.8636 | CF21: 135797.5442 | CG21: 662.62 | CH21: 286497.0278 | CI21: 148594.95 | CJ21: 123645.3321 | CK21: 76991.15 | CL21: 349231.4321 | CM21: 123149.2746 | CN21: 132840.1396 | CO21: 41032.14 | CP21: 297021.5543 | CQ21: 83797.47171 | CR21: 61225.2857 | CS21: 445.38 | CT21: 145468.1374 | CU21: 163729.0718 | CV21: 133571.9086 | CW21: 534 | CX21: 297834.9804 | CY21: 119955.25 | CZ21: 109650.2151 | DA21: 301.93 | DB21: 229907.3952 | DC21: 167877.5238 | DD21: 221627.1447 | DE21: 605.17 | DF21: 390109.8385 | DG21: 115476.6551 | DH21: 118142.369 | DI21: 238.72 | DJ21: 233857.7442 | DK21: 113772.0702 | DL21: 138091.7856 | DM21: 376.12 | DN21: 252239.9758 | DO21: 126255.921 | DP21: 173347.5255 | DQ21: 597.98 | DR21: 300201.4265 | DS21: 97924.93799 | DT21: 171181.9279 | DU21: 209.4 | DV21: 269316.2659 | DW21: 141832.2929 | DX21: 200211.521 | DY21: 960.11 | DZ21: 343003.9238 | EA21: 107974.8035 | EB21: 84885.59302 | EC21: 34519.18 | ED21: 227379.5765 | EE21: 142483.769 | EF21: 120082.0116 | EG21: 1150.07 | EH21: 263715.8506 | EI21: 207009.9927 | EJ21: 49891.61284 | EK21: 643.76 | EL21: 257545.3656 | EM21: 205605.9747 | EN21: 79037.07117 | EO21: 1125.22 | EP21: 285768.2659 | EQ21: 214559.8697 | ER21: 111311.5066 | ES21: 278.74 | ET21: 326150.1162 | EU21: 111150.6378 | EV21: 94148.11437 | EW21: 442.09 | EX21: 205740.8422 | EY21: 157282.2612 | EZ21: 84196.7593 | FA21: 153.01 | FB21: 241632.0305 | FC21: 117798.5532 | FD21: 103324.1385 | FE21: 25.72 | FF21: 221148.4117 | FG21: 145676.6383 | FH21: 117487.9292 | FI21: 181.59 | FJ21: 263346.1575 | FK21: 131208.3378 | FL21: 100897.3908 | FM21: 368.07 | FN21: 232473.7987 | FO21: 217307.1381 | FP21: 132055.7701 | FQ21: 135.58 | FR21: 349498.4882
A22: 10752 | B22: Cust Sol Ctr Network Services | DX22: -18 | DY22: 18 | DZ22: 0 | EB22: -9.9 | EC22: 9.9 | ED22: 0 | EF22: -8.7 | EG22: 8.7 | EH22: 0 | EJ22: -8.7 | EK22: 8.7 | EL22: 0 | EN22: -10.65 | EO22: 10.65 | EP22: 0 | ER22: -11.7 | ES22: 11.7 | ET22: 0 | EV22: -12.3 | EW22: 12.3 | EX22: 0 | EZ22: -10.8 | FA22: 10.8 | FB22: 0 | FD22: -8.4 | FE22: 8.4 | FF22: 0 | FH22: -7.8 | FI22: 7.8 | FJ22: 0 | FL22: -7.65 | FM22: 7.65 | FN22: 0 | FP22: -4.8 | FQ22: 4.8 | FR22: 0
A23: 10863 | B23: Real Estate Asset Management | EZ23: 0 | FB23: 0
A24: 10887 | B24: Kammer Plant | D24: 47008.55758 | E24: 0 | F24: 47008.55758 | H24: 31636.20254 | I24: 0 | J24: 31636.20254 | L24: 21185.941 | M24: 0 | N24: 21185.941 | EQ24: 4790.5084 | ES24: 0 | ET24: 4790.5084
A25: 10894 | B25: Corp HR Admin Benefits | D25: 106818.18 | F25: 106818.18 | L25: -1196455.664 | N25: -1196455.664 | AB25: 152028.14 | AD25: 152028.14 | AJ25: -61637.18 | AL25: -61637.18
A26: 10981 | B26: GET PCF Construction Svcs | AU26: 0 | AX26: 0 | AY26: 0 | BB26: 0
A27: 10992 | B27: Incentv Acrl Generation | C27: -110050.21 | D27: -258057 | F27: -368107.21 | K27: -37433.78 | L27: -87310 | N27: -124743.78 | O27: 37433.78 | P27: 87310 | R27: 124743.78 | W27: -3345.61 | X27: -8029 | Z27: -11374.61 | AA27: 3345.61 | AB27: 8029 | AD27: 11374.61 | AI27: -52783.45 | AJ27: -123292 | AL27: -176075.45 | AM27: 52783.45 | AN27: 123292 | AP27: 176075.45 | AU27: 76754.12 | AV27: 179203.6 | AX27: 255957.72 | AY27: -76754.12 | AZ27: -179203.6 | BB27: -255957.72 | BG27: 22 | BH27: 88 | BJ27: 110 | BK27: -22 | BL27: -88 | BN27: -110 | BS27: 45504 | BT27: 106922 | BV27: 152426 | BW27: -45504 | BX27: -106922 | BZ27: -152426 | CE27: 20802.9 | CF27: 48234 | CH27: 69036.9 | CI27: -20802.9 | CJ27: -48234 | CL27: -69036.9 | CQ27: 220084.29 | CR27: 514395.032 | CT27: 734479.322 | CU27: -220084.29 | CV27: -514395.032 | CX27: -734479.322 | DD27: 5.642361111e-05 | DF27: 5.642361111e-05 | EA27: 12515.16 | EB27: 350431.84 | ED27: 362947 | EE27: -12515.16 | EF27: -350431.84 | EH27: -362947
A28: 10995 | B28: I&C Engineering | BC28: 5747.572304 | BE28: 0 | BF28: 5747.572304 | FG28: 0 | FJ28: 0
A29: 11115 | B29: Trans Station Projs | W29: -523.982678 | Z29: -523.982678 | AE29: 2.842170943e-14 | AF29: 171.0252997 | AH29: 171.0252997 | AU29: 5.5 | AX29: 5.5 | CU29: -5.5 | CX29: -5.5 | DK29: 0 | DN29: 0 | EM29: 0 | EP29: 0 | FK29: -629.8215696 | FN29: -629.8215696
A30: 11143 | B30: GET PPC Project Controls | AU30: 0 | AX30: 0
A31: 11242 | B31: BOP Engineering | BC31: 1287.807817 | BE31: 0 | BF31: 1287.807817 | FG31: 0 | FJ31: 0
A32: 11266 | B32: Ashland Meter Revenue Opers | C32: 87.13590417 | D32: 44281.21015 | E32: 0 | F32: 44368.34606 | G32: 580.7680247 | H32: 42796.2091 | I32: 0 | J32: 43376.97712 | K32: 4465.982993 | L32: 62185.32131 | M32: 3.97903932e-13 | N32: 66651.3043 | O32: 52.21007151 | P32: 36839.61059 | Q32: 1.33226763e-15 | R32: 36891.82066 | S32: 368.169699 | T32: 45250.51726 | U32: 0 | V32: 45618.68696 | W32: 86.62012378 | X32: 47809.11138 | Y32: 1.136868377e-13 | Z32: 47895.73151 | AA32: 905.8371806 | AB32: 49497.73969 | AC32: 4.547473509e-13 | AD32: 50403.57687 | AE32: 65.64424972 | AF32: 42825.50522 | AG32: 0 | AH32: 42891.14947 | AI32: 212.7777786 | AJ32: 69260.54289 | AK32: 3343.36 | AL32: 72816.68067 | AM32: 91.22032203 | AN32: 41111.13451 | AO32: -4.547473509e-13 | AP32: 41202.35483 | AQ32: 62.64353445 | AR32: 45727.66369 | AS32: -58.26 | AT32: 45732.04722 | AU32: 21.44270852 | AV32: 46644.58325 | AW32: 36.01 | AX32: 46702.03595 | AY32: 179.5477345 | AZ32: 51139.04067 | BA32: 0 | BB32: 51318.5884 | BC32: 34.16401051 | BD32: 46982.91653 | BE32: 0 | BF32: 47017.08054 | BG32: 1572.424371 | BH32: 75148.015 | BI32: -1.364242053e-12 | BJ32: 76720.43938 | BK32: 1601.885358 | BL32: 53343.51561 | BM32: 4.547473509e-13 | BN32: 54945.40097 | BO32: 50.02957547 | BP32: 51333.48638 | BQ32: 0 | BR32: 51383.51595 | BS32: 52.77051572 | BT32: 53580.13103 | BU32: 2.273736754e-13 | BV32: 53632.90155 | BW32: 672.5313122 | BX32: 54202.45075 | BY32: 0 | BZ32: 54874.98206 | CA32: 775.0271565 | CB32: 82138.2474 | CC32: -2.273736754e-13 | CD32: 82913.27455 | CE32: 159.4285388 | CF32: 49081.19571 | CG32: 0 | CH32: 49240.62425 | CJ32: 49456.22422 | CK32: 11086.52 | CL32: 60542.74422 | CM32: 1844.218841 | CN32: 57779.67799 | CO32: -6.821210263e-13 | CP32: 59623.89684 | CQ32: 54.88631904 | CR32: 33511.48719 | CS32: 776.52 | CT32: 34342.89351 | CU32: 155.7370968 | CV32: 59904.16391 | CW32: -549.23 | CX32: 59510.67101 | CY32: 14.34190663 | CZ32: 47898.63128 | DA32: 0 | DB32: 47912.97318 | DC32: 2938.375328 | DD32: 75117.80828 | DE32: 1.591615728e-12 | DF32: 78056.18361 | DG32: 2.047244556 | DH32: 38588.24912 | DI32: -2.273736754e-13 | DJ32: 38590.29637 | DK32: 80.93446615 | DL32: 41373.18946 | DM32: 0 | DN32: 41454.12393 | DO32: 3.666908633 | DP32: 36420.59342 | DQ32: 1.136868377e-13 | DR32: 36424.26033 | DS32: 676.339093 | DT32: 36185.86557 | DU32: 0 | DV32: 36862.20466 | DW32: 62.10211596 | DX32: 57039.8694 | DY32: 2.273736754e-13 | DZ32: 57101.97151 | EA32: 19.10003599 | EB32: 37693.36605 | EC32: -7.105427358e-14 | ED32: 37712.46609 | EE32: 13.42259634 | EF32: 42446.79759 | EG32: 0 | EH32: 42460.22019 | EI32: 665.9069532 | EJ32: 41570.94279 | EK32: -7.105427358e-14 | EL32: 42236.84975 | EM32: 671.4711076 | EN32: 43109.0066 | EO32: -4.085620731e-14 | EP32: 43780.4777 | EQ32: 2183.550633 | ER32: 50928.5761 | ES32: 7.105427358e-14 | ET32: 53112.12674 | EU32: 20.88384623 | EV32: 32470.93364 | EW32: 0 | EX32: 32491.81749 | EY32: 963.8856763 | EZ32: 32136.60638 | FA32: 0 | FB32: 33100.49205 | FC32: 2515.005803 | FD32: 27754.83398 | FE32: 4.547473509e-13 | FF32: 30269.83979 | FG32: 880.3146879 | FH32: 33002.06899 | FI32: 8.526512829e-14 | FJ32: 33882.38368 | FK32: 467.7116923 | FL32: 28210.6138 | FM32: 0 | FN32: 28678.32549 | FO32: 23.35240477 | FP32: 48035.04299 | FQ32: 0 | FR32: 48058.3954
A33: 11364 | B33: Program Engineering | EA33: 8366.786652 | EB33: 40139.65593 | EC33: 542.2158006 | ED33: 49048.65838 | EE33: 12094.38446 | EF33: 45891.26074 | EG33: 4417.684504 | EH33: 62403.3297 | EI33: 9863.946099 | EJ33: 37125.08097 | EK33: 4856.46967 | EL33: 51845.49674 | EM33: 11268.77667 | EN33: 46422.17178 | EO33: 7968.376053 | EP33: 65659.32451 | EQ33: 14409.717 | ER33: 67227.57414 | ES33: 790.1971946 | ET33: 82427.48834 | EU33: 4461.773001 | EV33: 42934.75433 | EW33: 184.0157102 | EX33: 47580.54305 | EY33: 4931.690006 | EZ33: 39459.71337 | FA33: 235.2211232 | FB33: 44626.6245 | FC33: 6980.090526 | FD33: 26336.3538 | FE33: 760.1423165 | FF33: 34076.58664 | FG33: 11510.48694 | FH33: 36797.11287 | FI33: 605.4648161 | FJ33: 48913.06463 | FK33: 13357.84396 | FL33: 37887.19392 | FM33: 793.1546097 | FN33: 52038.1925 | FO33: 18731.22671 | FP33: 77603.171 | FQ33: 198.6583416 | FR33: 96533.05605
A34: 11386 | B34: Mitchell Plant Stores | E34: 0 | F34: 0 | I34: 0 | J34: 0 | M34: 0 | N34: 0 | Q34: 0 | R34: 0 | U34: 0 | V34: 0 | Y34: 0 | Z34: 0 | AC34: 0 | AD34: 0 | AG34: 0 | AH34: 0 | AK34: 0 | AL34: 0 | AO34: 0 | AP34: 0 | AS34: 0 | AT34: 0 | AW34: 0 | AX34: 0 | BA34: 0 | BB34: 0 | BE34: 0 | BF34: 0 | BI34: 0 | BJ34: 0 | BM34: 0 | BN34: 0 | BQ34: 0 | BR34: 0 | BU34: 0 | BV34: 0 | BY34: 0 | BZ34: 0 | CC34: 0 | CD34: 0 | CG34: 0 | CH34: 0 | CK34: 0 | CL34: 0 | CO34: 0 | CP34: 0 | CS34: 0 | CT34: 0 | CW34: 0 | CX34: 0 | DA34: 0 | DB34: 0 | DD34: 4863.088066 | DE34: 0 | DF34: 4863.088066 | DI34: 0 | DJ34: 0 | DL34: 17324.80674 | DM34: 0 | DN34: 17324.80674 | DQ34: 0 | DR34: 0 | DU34: 0 | DV34: 0 | DY34: 0 | DZ34: 0 | EC34: 0 | ED34: 0 | EG34: 0 | EH34: 0 | EK34: 0 | EL34: 0 | EO34: 0 | EP34: 0 | ES34: 0 | ET34: 0 | EW34: 0 | EX34: 0 | FA34: 0 | FB34: 0 | FE34: 0 | FF34: 0 | FI34: 0 | FJ34: 0 | FM34: 0 | FN34: 0 | FQ34: 0 | FR34: 0
A35: 11439 | B35: Kentucky Power Co Headquarters | D35: 37612.84814 | E35: 0 | F35: 37612.84814 | H35: 25452.65179 | I35: 0 | J35: 25452.65179 | L35: 124428.6858 | M35: 0 | N35: 124428.6858 | P35: 23170.71567 | Q35: 0 | R35: 23170.71567 | T35: 24365.10838 | V35: 24365.10838 | X35: 29354.71239 | Y35: 0 | Z35: 29354.71239 | AB35: 24538.70889 | AC35: 0 | AD35: 24538.70889 | AF35: 27364.86011 | AG35: 0 | AH35: 27364.86011 | AJ35: -29499.58554 | AK35: 0 | AL35: -29499.58554 | AN35: 24898.72944 | AP35: 24898.72944 | AR35: 27227.85958 | AS35: 0 | AT35: 27227.85958 | AV35: 33600.18448 | AW35: 0 | AX35: 33600.18448 | AZ35: 30129.98097 | BA35: 0 | BB35: 30129.98097 | BD35: 30774.35363 | BF35: 30774.35363 | BH35: 41112.5147 | BI35: 0 | BJ35: 41112.5147 | BL35: 37304.25165 | BM35: 0 | BN35: 37304.25165 | BP35: 44569.91998 | BR35: 44569.91998 | BT35: 31963.14025 | BU35: 0 | BV35: 31963.14025 | BX35: 27470.13866 | BY35: 0 | BZ35: 27470.13866 | CB35: 44595.11844 | CC35: 0 | CD35: 44595.11844 | CF35: 31805.16384 | CG35: 0 | CH35: 31805.16384 | CJ35: 33826.56165 | CL35: 33826.56165 | CN35: 52138.47161 | CP35: 52138.47161 | CR35: 18921.98348 | CS35: 0 | CT35: 18921.98348 | CV35: 34991.35918 | CW35: 0 | CX35: 34991.35918 | CZ35: 28767.30054 | DB35: 28767.30054 | DD35: 39839.91485 | DE35: 0 | DF35: 39839.91485 | DH35: 30842.13811 | DI35: 0 | DJ35: 30842.13811 | DL35: 29128.02483 | DM35: 0 | DN35: 29128.02483 | DP35: 26085.58588 | DQ35: 0 | DR35: 26085.58588 | DT35: 25064.1802 | DU35: 0 | DV35: 25064.1802 | DX35: 46062.21937 | DY35: 0 | DZ35: 46062.21937 | EB35: 30295.10108 | EC35: 0 | ED35: 30295.10108 | EF35: 31462.91855 | EG35: 0 | EH35: 31462.91855 | EJ35: 33918.61276 | EL35: 33918.61276 | EN35: 33789.39308 | EO35: 0 | EP35: 33789.39308 | ER35: 41150.90081 | ES35: 0 | ET35: 41150.90081 | EV35: 28900.95809 | EW35: 0 | EX35: 28900.95809 | EZ35: 30546.38344 | FB35: 30546.38344 | FD35: 22497.77544 | FE35: 0 | FF35: 22497.77544 | FH35: 29253.91646 | FJ35: 29253.91646 | FL35: 27891.29435 | FM35: 0 | FN35: 27891.29435 | FP35: 40208.64111 | FQ35: 0 | FR35: 40208.64111
A36: 11535 | B36: Incentv Acrl CFO | C36: -7797.85 | D36: -18194 | F36: -25991.85 | K36: -2477.33 | L36: -5779 | N36: -8256.33 | O36: 2477.33 | P36: 5779 | R36: 8256.33 | W36: -275.91 | X36: -644 | Z36: -919.91 | AA36: 275.91 | AB36: 644 | AD36: 919.91 | AI36: -3433 | AJ36: -8010 | AL36: -11443 | AM36: 3433 | AN36: 8010 | AP36: 11443 | AU36: 5984.92 | AV36: 13967 | AX36: 19951.92 | AY36: -5984.92 | AZ36: -13967 | BB36: -19951.92 | BS36: 3102.34 | BT36: 7239 | BV36: 10341.34 | BW36: -3102.34 | BX36: -7239 | BZ36: -10341.34 | CE36: 1509.8 | CF36: 3525 | CH36: 5034.8 | CI36: -1509.8 | CJ36: -3525 | CL36: -5034.8 | CQ36: 14591.27 | CR36: 34046 | CT36: 48637.27 | CU36: -14591.27 | CV36: -34046 | CX36: -48637.27 | EA36: 5966.85 | EB36: 24447.15 | ED36: 30414 | EE36: -5966.85 | EF36: -24447.15 | EH36: -30414
A37: 11585 | B37: Incentv Acrl Transmission | CQ37: 501.56 | CR37: 1169 | CT37: 1670.56 | CU37: -501.56 | CV37: -1169 | CX37: -1670.56
A38: 11637 | B38: TFS Line E WV/KY | AO38: 0 | AP38: 0 | EZ38: 2841.080056 | FB38: 2841.080056 | FH38: -502.61 | FJ38: -502.61
A39: 11680 | B39: Pikeville Design | C39: 43158.96705 | D39: 6347.224715 | E39: 0 | F39: 49506.19176 | G39: 41623.28203 | H39: 6260.977417 | I39: 0 | J39: 47884.25945 | K39: 57319.56462 | L39: 20687.79409 | M39: 2019.49 | N39: 80026.84871 | O39: 34449.53247 | P39: 6795.340277 | Q39: 0 | R39: 41244.87275 | S39: 44103.54841 | T39: 4981.33453 | U39: 0 | V39: 49084.88294 | W39: 46471.49261 | X39: 2772.173532 | Y39: 0 | Z39: 49243.66614 | AA39: 39774.85465 | AB39: 3064.7897 | AC39: 8.526512829e-14 | AD39: 42839.64435 | AE39: 47062.60869 | AF39: 4260.159933 | AG39: 0 | AH39: 51322.76862 | AI39: 72364.25849 | AJ39: 15453.3073 | AK39: 4144.96 | AL39: 91962.52578 | AM39: 39503.3412 | AN39: 4416.891645 | AO39: 0 | AP39: 43920.23284 | AQ39: 50933.77579 | AR39: 3462.763232 | AS39: 8413.3 | AT39: 62809.83902 | AU39: 60326.15333 | AV39: 5264.378898 | AW39: 44.64 | AX39: 65635.17223 | AY39: 53880.73324 | AZ39: 3089.555447 | BA39: 0 | BB39: 56970.28869 | BC39: 49655.86851 | BD39: 3660.333781 | BE39: 0 | BF39: 53316.20229 | BG39: 70288.33466 | BH39: 11517.62763 | BI39: -1.136868377e-13 | BJ39: 81805.96228 | BK39: 41941.64419 | BL39: 21021.1236 | BM39: 2.842170943e-14 | BN39: 62962.76779 | BO39: 48234.80407 | BP39: 2832.773559 | BQ39: 0 | BR39: 51067.57763 | BS39: 47605.1509 | BT39: 3986.378664 | BU39: 0 | BV39: 51591.52956 | BW39: 57891.2804 | BX39: 4537.130794 | BY39: 0 | BZ39: 62428.41119 | CA39: 76843.07294 | CB39: 12123.87205 | CC39: -4.547473509e-13 | CD39: 88966.94499 | CE39: 64517.99769 | CF39: 9585.849984 | CG39: -5.684341886e-14 | CH39: 74103.84767 | CI39: 53327.65888 | CJ39: 5302.098378 | CK39: 40048.91 | CL39: 98678.66726 | CM39: 67837.32824 | CN39: 8326.435324 | CO39: 14825.73 | CP39: 90989.49356 | CQ39: 27664.97401 | CR39: 6274.098689 | CS39: 1.705302566e-12 | CT39: 33939.0727 | CU39: 50590.29745 | CV39: 4834.585009 | CW39: 0 | CX39: 55424.88246 | CY39: 51361.21117 | CZ39: 3970.094803 | DA39: -2.842170943e-14 | DB39: 55331.30598 | DC39: 83805.08038 | DD39: 22422.9829 | DE39: 2.50111043e-12 | DF39: 106228.0633 | DG39: 60706.12247 | DH39: 7571.324965 | DI39: 0 | DJ39: 68277.44744 | DK39: 46954.07412 | DL39: 7581.125734 | DM39: 2.273736754e-13 | DN39: 54535.19986 | DO39: 48937.8435 | DP39: 12889.54185 | DQ39: -1.98951966e-13 | DR39: 61827.38535 | DS39: 45552.24903 | DT39: 11159.52675 | DU39: -3.410605132e-13 | DV39: 56711.77578 | DW39: 54738.04322 | DX39: 21056.30681 | DY39: 2.273736754e-13 | DZ39: 75794.35003 | EA39: 60189.81991 | EB39: 4608.667056 | EC39: -2.842170943e-14 | ED39: 64798.48697 | EE39: 64524.59313 | EF39: 10722.72344 | EG39: -5.684341886e-14 | EH39: 75247.31657 | EI39: 59611.21532 | EJ39: 14644.33779 | EK39: -2.273736754e-13 | EL39: 74255.55311 | EM39: 79214.02885 | EN39: 10676.15401 | EO39: -1.136868377e-13 | EP39: 89890.18286 | EQ39: 101327.4244 | ER39: 12170.11361 | ES39: 1686.12 | ET39: 115183.6581 | EU39: 76864.00107 | EV39: 5466.604639 | EW39: 0 | EX39: 82330.60571 | EY39: 60053.111 | EZ39: 4365.968891 | FA39: 2700.61 | FB39: 67119.68989 | FC39: 57357.08159 | FD39: 11912.95667 | FE39: 2.700062396e-12 | FF39: 69270.03826 | FG39: 62649.17215 | FH39: 7574.670105 | FI39: 2243.97 | FJ39: 72467.81225 | FK39: 63383.76498 | FL39: 3304.83454 | FM39: 0 | FN39: 66688.59952 | FO39: 101154.6944 | FP39: 5629.624113 | FQ39: 0 | FR39: 106784.3185
A40: 11683 | B40: Hazard Const | C40: 169092.2842 | D40: 166913.7087 | E40: 636.25 | F40: 336642.2429 | G40: 125643.9508 | H40: 140101.897 | I40: 562.74 | J40: 266308.5879 | K40: 195880.5149 | L40: 207983.1231 | M40: 12980.05 | N40: 416843.688 | O40: 109598.9315 | P40: 103744.1989 | Q40: 553.93 | R40: 213897.0604 | S40: 131058.1034 | T40: 155619.4978 | U40: 968.01 | V40: 287645.6112 | W40: 134735.2628 | X40: 175016.0381 | Y40: 946.47 | Z40: 310697.7709 | AA40: 125704.5975 | AB40: 141913.6286 | AC40: 248.38 | AD40: 267866.6061 | AE40: 131525.6071 | AF40: 146944.2785 | AG40: 430.02 | AH40: 278899.9056 | AI40: 216168.1248 | AJ40: 224018.0652 | AK40: 96451.46 | AL40: 536637.65 | AM40: 135314.4866 | AN40: 77794.87099 | AO40: 24869.25 | AP40: 237978.6076 | AQ40: 149987.0997 | AR40: 86963.78666 | AS40: 45589.98 | AT40: 282540.8664 | AU40: 165725.6733 | AV40: 100419.9637 | AW40: 8421.85 | AX40: 274567.487 | AY40: 175841.2276 | AZ40: 105212.3746 | BA40: 873.57 | BB40: 281927.1722 | BC40: 131709.5177 | BD40: 110839.8514 | BE40: 33751.89 | BF40: 276301.2591 | BG40: 204062.8815 | BH40: 157316.2365 | BI40: 109942.67 | BJ40: 471321.788 | BK40: 135032.4405 | BL40: 160618.5342 | BM40: 16338.86 | BN40: 311989.8348 | BO40: 157074.362 | BP40: 114269.3219 | BQ40: 1521.188014 | BR40: 272864.872 | BS40: 157841.8101 | BT40: 139100.4657 | BU40: 400.19 | BV40: 297342.4658 | BW40: 158984.204 | BX40: 173702.6583 | BY40: 142.48 | BZ40: 332829.3423 | CA40: 201724.1297 | CB40: 192785.15 | CC40: 668.08 | CD40: 395177.3597 | CE40: 148703.2859 | CF40: 133875.0299 | CG40: 1086.41 | CH40: 283664.7258 | CI40: 141559.0763 | CJ40: 116376.9155 | CK40: 88152.14 | CL40: 346088.1318 | CM40: 146554.4091 | CN40: 135641.3196 | CO40: 46503.07 | CP40: 328698.7986 | CQ40: 91488.8291 | CR40: 72460.3953 | CS40: 101.32 | CT40: 164050.5444 | CU40: 228632.8861 | CV40: 146372.4362 | CW40: 956.14 | CX40: 375961.4622 | CY40: 149004.4607 | CZ40: 124649.0626 | DA40: 125.25 | DB40: 273778.7733 | DC40: 248255.563 | DD40: 251431.8351 | DE40: 504.66 | DF40: 500192.0581 | DG40: 153751.4905 | DH40: 136525.4882 | DI40: 394.95 | DJ40: 290671.9286 | DK40: 157904.0355 | DL40: 143863.9283 | DM40: 965.14 | DN40: 302733.1038 | DO40: 157991.4661 | DP40: 157281.3358 | DQ40: 482.94 | DR40: 315755.7419 | DS40: 158079.761 | DT40: 198427.5194 | DU40: 481.93 | DV40: 356989.2104 | DW40: 246007.8133 | DX40: 194116.5368 | DY40: 1006.13 | DZ40: 441130.4801 | EA40: 146815.3899 | EB40: 123649.2054 | EC40: 37040.16 | ED40: 307504.7553 | EE40: 186371.4149 | EF40: 146027.8742 | EG40: 980.19 | EH40: 333379.4791 | EI40: 248181.014 | EJ40: 50808.93812 | EK40: 1316.190962 | EL40: 300306.1431 | EM40: 185914.192 | EN40: 151818.1853 | EO40: 718.5 | EP40: 338450.8773 | EQ40: 240062.4117 | ER40: 220890.2138 | ES40: 1319.243492 | ET40: 462271.869 | EU40: 152732.1638 | EV40: 132104.5736 | EW40: 562.55 | EX40: 285399.2874 | EY40: 169586.2954 | EZ40: 96123.29687 | FA40: 112.65 | FB40: 265822.2422 | FC40: 152947.9994 | FD40: 127893.1177 | FE40: 171.3 | FF40: 281012.4171 | FG40: 168763.1623 | FH40: 174662.6547 | FI40: 492.49 | FJ40: 343918.307 | FK40: 148703.7548 | FL40: 148590.0744 | FM40: 279.48 | FN40: 297573.3093 | FO40: 249804.5874 | FP40: 165991.7412 | FQ40: 791.32 | FR40: 416587.6487
A41: 11685 | B41: Paintsville Construction | C41: 51714.14413 | D41: 50214.70303 | E41: 20.13 | F41: 101948.9772 | G41: 63388.16365 | H41: 32908.22253 | I41: 3.637978807e-12 | J41: 96296.38618 | K41: 76396.34794 | L41: 67043.95657 | M41: 3778.55 | N41: 147218.8545 | O41: 42770.53643 | P41: 31822.02722 | Q41: 361.6 | R41: 74954.16365 | S41: 39305.74053 | T41: 51636.03279 | U41: 588.97 | V41: 91530.74332 | W41: 43896.59833 | X41: 66200.91587 | Y41: 421.14 | Z41: 110518.6542 | AA41: 37792.1856 | AB41: 48301.86236 | AC41: 306.79 | AD41: 86400.83796 | AE41: 40769.1712 | AF41: 56162.05716 | AG41: 117.47 | AH41: 97048.69836 | AI41: 61956.83173 | AJ41: 73234.06903 | AK41: 26618.13 | AL41: 161809.0308 | AM41: 36967.52929 | AN41: 30104.89853 | AO41: 2194.64 | AP41: 69267.06782 | AQ41: 34771.44821 | AR41: 19319.9587 | AS41: 11880.18 | AT41: 65971.58691 | AU41: 54226.68513 | AV41: 41436.87549 | AW41: 1237.7 | AX41: 96901.26061 | AY41: 63033.53346 | AZ41: 45048.74303 | BA41: 80.13 | BB41: 108162.4065 | BC41: 50922.26272 | BD41: 37755.25144 | BE41: 221.14 | BF41: 88898.65417 | BG41: 52664.07097 | BH41: 53845.86327 | BI41: 34965.03 | BJ41: 141474.9642 | BK41: 38141.57891 | BL41: 58404.54658 | BM41: 8220 | BN41: 104766.1255 | BO41: 45870.92027 | BP41: 31903.67981 | BQ41: 188.46 | BR41: 77963.06008 | BS41: 42349.50389 | BT41: 37065.4051 | BU41: 112.07 | BV41: 79526.97899 | BW41: 51424.67018 | BX41: 68076.12453 | BY41: 121.48 | BZ41: 119622.2747 | CA41: 64252.74817 | CB41: 73165.91276 | CC41: -9.308109838e-12 | CD41: 137418.6609 | CE41: 37764.50761 | CF41: 46997.39842 | CG41: 130.46 | CH41: 84892.36603 | CI41: 48621.42111 | CJ41: 51984.99795 | CK41: 3.637978807e-12 | CL41: 100606.4191 | CM41: 44610.76965 | CN41: 53427.90271 | CO41: 0 | CP41: 98038.67236 | CQ41: 29031.97433 | CR41: 30178.57603 | CS41: -1.95 | CT41: 59208.60035 | CU41: 59958.94731 | CV41: 52310.08404 | CW41: -7.275957614e-12 | CX41: 112269.0313 | CY41: 46959.6178 | CZ41: 43468.32985 | DA41: 159.6 | DB41: 90587.54764 | DC41: 59599.97893 | DD41: 72902.38827 | DE41: 415.52 | DF41: 132917.8872 | DG41: 36367.4859 | DH41: 32453.44255 | DI41: 177.02 | DJ41: 68997.94845 | DK41: 37279.37762 | DL41: 40436.86111 | DM41: 247.42 | DN41: 77963.65873 | DO41: 38305.50492 | DP41: 60184.47336 | DQ41: 549.29 | DR41: 99039.26828 | DS41: 30484.6125 | DT41: 50001.24914 | DU41: 213.3 | DV41: 80699.16165 | DW41: 59586.36958 | DX41: 71893.84622 | DY41: 807.39 | DZ41: 132287.6058 | EA41: 39926.35393 | EB41: 51227.08446 | EC41: 7818.75 | ED41: 98972.18839 | EE41: 49430.37977 | EF41: 78834.2106 | EG41: 419.47 | EH41: 128684.0604 | EI41: 49886.17316 | EJ41: 51270.71983 | EK41: 740.61 | EL41: 101897.503 | EM41: 56893.95965 | EN41: 60631.14643 | EO41: 208.77 | EP41: 117733.8761 | EQ41: 68150.41132 | ER41: 64921.44792 | ES41: 264.75 | ET41: 133336.6092 | EU41: 47105.6954 | EV41: 35926.32506 | EW41: -3.922195901e-12 | EX41: 83032.02046 | EY41: 64974.01442 | EZ41: 35771.01172 | FA41: 213.85 | FB41: 100958.8761 | FC41: 50391.61303 | FD41: 48313.13356 | FE41: 134.54 | FF41: 98839.28658 | FG41: 57162.62157 | FH41: 44710.17207 | FI41: 430.71 | FJ41: 102303.5036 | FK41: 56079.912 | FL41: 50698.48064 | FM41: 60.86 | FN41: 106839.2526 | FO41: 68076.0742 | FP41: 76824.08033 | FQ41: 217.34 | FR41: 145117.4945
A42: 11783 | B42: Regulatory Services - Kentucky | D42: 44525.36124 | E42: 0 | F42: 44525.36124 | H42: 36992.75497 | I42: 0 | J42: 36992.75497 | K42: 120.4509686 | L42: 50073.81609 | M42: 0 | N42: 50194.26706 | P42: 32724.05248 | Q42: 0 | R42: 32724.05248 | T42: 37320.16645 | U42: 0 | V42: 37320.16645 | X42: 37596.13516 | Y42: 0 | Z42: 37596.13516 | AB42: 37425.06638 | AC42: 0 | AD42: 37425.06638 | AF42: 20129.60702 | AG42: 0 | AH42: 20129.60702 | AJ42: 33002.32954 | AK42: 0 | AL42: 33002.32954 | AN42: 15489.19742 | AO42: 0 | AP42: 15489.19742 | AR42: 21420.48816 | AS42: 0 | AT42: 21420.48816 | AV42: 23713.70639 | AW42: 0 | AX42: 23713.70639 | AZ42: 20971.67224 | BA42: 0 | BB42: 20971.67224 | BD42: 17288.50344 | BE42: 0 | BF42: 17288.50344 | BH42: 22634.43951 | BI42: 0 | BJ42: 22634.43951 | BL42: 15043.18637 | BM42: 0 | BN42: 15043.18637 | BP42: 18051.93957 | BQ42: 0 | BR42: 18051.93957 | BT42: 32879.41457 | BU42: 0 | BV42: 32879.41457 | BX42: 42471.05895 | BY42: 0 | BZ42: 42471.05895 | CB42: 51526.28484 | CC42: 0 | CD42: 51526.28484 | CF42: 39215.79897 | CG42: 0 | CH42: 39215.79897 | CJ42: 41966.63698 | CK42: 0 | CL42: 41966.63698 | CN42: 86278.93822 | CO42: 0 | CP42: 86278.93822 | CR42: 37067.5544 | CS42: 0 | CT42: 37067.5544 | CV42: 38310.53663 | CW42: 0 | CX42: 38310.53663 | CZ42: 13757.35253 | DA42: 0 | DB42: 13757.35253 | DD42: 43475.25551 | DE42: 0 | DF42: 43475.25551 | DH42: 29596.476 | DI42: 0 | DJ42: 29596.476 | DL42: 27053.2568 | DM42: 0 | DN42: 27053.2568 | DP42: 57134.77547 | DQ42: 0 | DR42: 57134.77547 | DT42: 25752.97751 | DU42: 0 | DV42: 25752.97751 | DX42: 42539.80714 | DY42: 0 | DZ42: 42539.80714 | EB42: 28898.61508 | EC42: 0 | ED42: 28898.61508 | EF42: 37493.67418 | EG42: 0 | EH42: 37493.67418 | EJ42: 31634.4139 | EK42: 0 | EL42: 31634.4139 | EN42: 35992.00632 | EO42: 0 | EP42: 35992.00632 | ER42: 40927.31301 | ES42: 0 | ET42: 40927.31301 | EV42: 27852.65942 | EW42: 0 | EX42: 27852.65942 | EZ42: 28124.49277 | FA42: 0 | FB42: 28124.49277 | FD42: 20945.15619 | FE42: 0 | FF42: 20945.15619 | FH42: 27839.40878 | FI42: 0 | FJ42: 27839.40878 | FL42: 28279.99516 | FM42: 0 | FN42: 28279.99516 | FP42: 43771.54837 | FQ42: 0 | FR42: 43771.54837
A43: 11834 | B43: ED DSM Compliance | D43: 32501.36734 | E43: 0 | F43: 32501.36734 | H43: 24262.82758 | I43: 0 | J43: 24262.82758 | L43: 33216.10562 | M43: 0 | N43: 33216.10562 | P43: 21204.17602 | Q43: 0 | R43: 21204.17602 | T43: 24877.7245 | U43: 0 | V43: 24877.7245 | X43: 26091.00208 | Y43: 0 | Z43: 26091.00208 | AB43: 25819.29245 | AC43: 0 | AD43: 25819.29245 | AF43: 22514.75014 | AG43: 0 | AH43: 22514.75014 | AJ43: 36318.17068 | AK43: 0 | AL43: 36318.17068 | AN43: 21201.7061 | AO43: 0 | AP43: 21201.7061 | AR43: 22489.92102 | AS43: 0 | AT43: 22489.92102 | AV43: 25183.04645 | AW43: 0 | AX43: 25183.04645 | AZ43: 31525.95907 | BA43: 0 | BB43: 31525.95907 | BD43: 24652.58698 | BE43: 0 | BF43: 24652.58698 | BH43: 32897.30486 | BI43: 0 | BJ43: 32897.30486 | BL43: 23541.93823 | BM43: 0 | BN43: 23541.93823 | BO43: 3489.176045 | BP43: 19197.31368 | BQ43: 0 | BR43: 22686.48972
A44: 11836 | B44: Inctv Acrl DistrCustOpReg Svcs | C44: -100773.06 | D44: -239686 | F44: -340459.06 | K44: -32193.05 | L44: -74971 | N44: -107164.05 | O44: 32193.05 | P44: 74971 | R44: 107164.05 | W44: -4938.98 | X44: -12604 | Z44: -17542.98 | AA44: 4938.98 | AB44: 12604 | AD44: 17542.98 | AI44: -44566.89 | AJ44: -104496 | AL44: -149062.89 | AM44: 44566.89 | AN44: 104496 | AP44: 149062.89 | AU44: 69827.4 | AV44: 163356 | AX44: 233183.4 | AY44: -69827.4 | AZ44: -163356 | BB44: -233183.4 | BG44: 58 | BH44: 232 | BJ44: 290 | BK44: -58 | BL44: -232 | BN44: -290 | BS44: 35434.33 | BT44: 84885 | BV44: 120319.33 | BW44: -35434.33 | BX44: -84885 | BZ44: -120319.33 | CE44: 18606.14 | CF44: 42481 | CH44: 61087.14 | CI44: -18606.14 | CJ44: -42481 | CL44: -61087.14 | CQ44: 150473.97 | CR44: 355229.778 | CT44: 505703.748 | CU44: -150473.97 | CV44: -355229.778 | CX44: -505703.748 | DD44: -11.95859955 | DF44: -11.95859955 | EA44: 91884.53 | EB44: 295038.97 | ED44: 386923.5 | EE44: -91884.53 | EF44: -295038.97 | EH44: -386923.5 | EN44: 134883 | EP44: 134883 | ER44: -134883 | ET44: -134883 | EZ44: -755290.2 | FB44: -755290.2 | FD44: 755290.2 | FF44: 755290.2
A45: 11988 | B45: GET PPC FGD Projects | AY45: 0 | BB45: 0
A46: 12144 | B46: Ashland Telecom Ops | C46: 31180.80898 | D46: 52064.12263 | E46: 0 | F46: 83244.93161 | G46: 19986.32386 | H46: 48621.45241 | I46: 0 | J46: 68607.77628 | K46: 46606.93323 | L46: 59869.04162 | M46: -2.273736754e-13 | N46: 106475.9748 | O46: 28176.28788 | P46: 34831.7891 | Q46: 0 | R46: 63008.07698 | S46: 31403.54106 | T46: 47315.50348 | U46: 0 | V46: 78719.04454 | W46: 30788.71586 | X46: 36872.58314 | Y46: 0 | Z46: 67661.29899 | AA46: 17467.32561 | AB46: 41982.31676 | AC46: 0 | AD46: 59449.64237 | AE46: 20770.01263 | AF46: 45464.56196 | AG46: 0 | AH46: 66234.57458 | AI46: 60980.75546 | AJ46: 59511.58798 | AK46: 0 | AL46: 120492.3434 | AM46: 32710.76167 | AN46: 31871.91477 | AO46: 0 | AP46: 64582.67644 | AQ46: 27669.2842 | AR46: 40216.77853 | AS46: 0 | AT46: 67886.06274 | AU46: 31830.11954 | AV46: 64457.57304 | AW46: 0 | AX46: 96287.69258 | AY46: 24283.74457 | AZ46: 64699.02782 | BA46: 0 | BB46: 88982.77239 | BC46: 22784.47331 | BD46: 42059.13123 | BE46: 0 | BF46: 64843.60454 | BG46: 11364.65888 | BH46: 81613.41172 | BI46: 0 | BJ46: 92978.0706 | BK46: 12522.9403 | BL46: 51349.87206 | BM46: 0 | BN46: 63872.81237 | BO46: 19464.23067 | BP46: 45881.6104 | BQ46: 0 | BR46: 65345.84107 | BS46: 22973.82514 | BT46: 52203.4475 | BU46: 0 | BV46: 75177.27264 | BW46: 14705.84639 | BX46: 68739.39189 | BY46: 0 | BZ46: 83445.23828 | CA46: 25591.76269 | CB46: 76989.96513 | CC46: 0 | CD46: 102581.7278 | CE46: 15965.88733 | CF46: 59149.44901 | CG46: 0 | CH46: 75115.33634 | CI46: 19298.57833 | CJ46: 63935.55882 | CK46: 0 | CL46: 83234.13715 | CM46: 26688.40739 | CN46: 56540.83387 | CO46: 0 | CP46: 83229.24126 | CQ46: 21077.35151 | CR46: 36785.31565 | CS46: 0 | CT46: 57862.66716 | CU46: 32723.2342 | CV46: 67476.51909 | CW46: 0 | CX46: 100199.7533 | CY46: 23717.04117 | CZ46: 46832.34012 | DA46: 0 | DB46: 70549.38129 | DC46: 37321.15485 | DD46: 70731.70104 | DE46: 0 | DF46: 108052.8559 | DG46: 25233.88107 | DH46: 35403.07673 | DI46: 0 | DJ46: 60636.9578 | DK46: 14840.90449 | DL46: 49493.01924 | DM46: 0 | DN46: 64333.92372 | DO46: 28584.27757 | DP46: 28907.20126 | DQ46: 0 | DR46: 57491.47883 | DS46: 33970.28902 | DT46: 34747.11326 | DU46: 0 | DV46: 68717.40228 | DW46: 25184.00553 | DX46: 68554.26437 | DY46: 0 | DZ46: 93738.2699 | EA46: 20005.83122 | EB46: 52565.72831 | EC46: 0 | ED46: 72571.55953 | EE46: 34549.57044 | EF46: 62686.10784 | EG46: 0 | EH46: 97235.67827 | EI46: 33529.2151 | EJ46: 60881.11922 | EK46: 1.136868377e-13 | EL46: 94410.33433 | EM46: 47921.51213 | EN46: 77540.50472 | EO46: 0 | EP46: 125462.0168 | EQ46: 22011.15013 | ER46: 76189.54996 | ES46: 0 | ET46: 98200.70009 | EU46: 17414.79941 | EV46: 52785.64775 | EW46: 0 | EX46: 70200.44717 | EY46: 4181.583392 | EZ46: 55704.53527 | FA46: 0 | FB46: 59886.11867 | FC46: -6538.520716 | FD46: 24556.56785 | FE46: -6.821210263e-13 | FF46: 18018.04714 | FG46: 11985.72766 | FH46: 56071.58826 | FI46: 4.547473509e-13 | FJ46: 68057.31592 | FK46: 14272.65465 | FL46: 37169.81804 | FM46: 5.684341886e-14 | FN46: 51442.47269 | FO46: 43700.51708 | FP46: 42402.7543 | FQ46: 0 | FR46: 86103.27138
A47: 12213 | B47: GET FSV RSO Regions 1-3 | AA47: 0 | AD47: 0 | AE47: 0 | AH47: 0
A48: 12315 | B48: Steam Process and Welding Eng | BC48: 381.654248 | BE48: 0 | BF48: 381.654248 | FG48: 0 | FJ48: 0
A49: 12389 | B49: Hazard Design | C49: 37148.69668 | D49: 3916.930868 | E49: 72.56 | F49: 41138.18755 | G49: 31616.46279 | H49: 1665.478743 | I49: 216.56 | J49: 33498.50153 | K49: 43336.9069 | L49: 11613.71425 | M49: 64.46 | N49: 55015.08115 | O49: 33263.27595 | P49: 1740.25846 | Q49: 0 | R49: 35003.53441 | S49: 38308.07355 | T49: 3180.095566 | U49: 1.10134124e-13 | V49: 41488.16911 | W49: 38911.08782 | X49: 2424.79913 | Y49: 0 | Z49: 41335.88695 | AA49: 36143.2108 | AB49: 1654.083594 | AC49: 0 | AD49: 37797.29439 | AE49: 42324.3085 | AF49: 1730.268792 | AG49: 137.54 | AH49: 44192.1173 | AI49: 47222.82245 | AJ49: 10927.36854 | AK49: 15622.28 | AL49: 73772.47099 | AM49: 31721.57135 | AN49: 820.4314121 | AO49: 1958.44 | AP49: 34500.44276 | AQ49: 35552.29883 | AR49: 1572.999026 | AS49: 0 | AT49: 37125.29785 | AU49: 44218.21984 | AV49: 2004.038813 | AW49: 677.45 | AX49: 46899.70865 | AY49: 45462.57838 | AZ49: 1081.670172 | BA49: 0 | BB49: 46544.24855 | BC49: 39421.13398 | BD49: 589.0133279 | BE49: 0 | BF49: 40010.1473 | BG49: 51714.48203 | BH49: 7169.349382 | BI49: -2.273736754e-13 | BJ49: 58883.83141 | BK49: 36825.56024 | BL49: 13358.50601 | BM49: -9.094947018e-13 | BN49: 50184.06625 | BO49: 34097.65969 | BP49: 1884.719311 | BQ49: 120.34 | BR49: 36102.719 | BS49: 44494.32578 | BT49: 3652.006854 | BU49: 223.42 | BV49: 48369.75264 | BW49: 52460.92952 | BX49: 5734.397674 | BY49: -5.684341886e-14 | BZ49: 58195.32719 | CA49: 71969.43212 | CB49: 4793.955707 | CC49: 96.84 | CD49: 76860.22783 | CE49: 39155.13767 | CF49: 1269.650606 | CG49: 118.74 | CH49: 40543.52828 | CI49: 44205.91419 | CJ49: 1408.900256 | CK49: 26319.44 | CL49: 71934.25445 | CM49: 71960.98674 | CN49: 480.6563782 | CO49: -17942.16 | CP49: 54499.48312 | CQ49: 24848.52206 | CR49: 190.9042562 | CS49: -2.842170943e-14 | CT49: 25039.42632 | CU49: 52657.19829 | CV49: 824.5332312 | CW49: 0 | CX49: 53481.73152 | CY49: 50055.54926 | CZ49: 1183.859162 | DA49: 0 | DB49: 51239.40843 | DC49: 75360.40117 | DD49: 7769.709644 | DE49: 0 | DF49: 83130.11082 | DG49: 46283.26942 | DH49: 4620.053173 | DI49: 0 | DJ49: 50903.32259 | DK49: 36823.28877 | DL49: 3133.093106 | DM49: 0 | DN49: 39956.38187 | DO49: 40565.03972 | DP49: 5468.531118 | DQ49: 75.98 | DR49: 46109.55084 | DS49: 42300.3328 | DT49: 3286.030582 | DU49: 77.84 | DV49: 45664.20338 | DW49: 61792.60557 | DX49: 5755.454502 | DY49: 0 | DZ49: 67548.06007 | EA49: 45426.86701 | EB49: 3367.85783 | EC49: 0 | ED49: 48794.72484 | EE49: 48697.49838 | EF49: 5492.471776 | EG49: 0 | EH49: 54189.97015 | EI49: 37272.20178 | EJ49: 6561.4597 | EK49: 2.273736754e-13 | EL49: 43833.66148 | EM49: 46081.38713 | EN49: 7092.721809 | EO49: -5.684341886e-14 | EP49: 53174.10894 | EQ49: 60176.60291 | ER49: 7332.258629 | ES49: 0 | ET49: 67508.86154 | EU49: 49482.34096 | EV49: 2217.400564 | EW49: 0 | EX49: 51699.74153 | EY49: 50468.01495 | EZ49: 5225.24126 | FA49: 0 | FB49: 55693.25621 | FC49: 40570.88025 | FD49: 13394.72389 | FE49: 0 | FF49: 53965.60414 | FG49: 47270.22739 | FH49: 19040.39591 | FI49: -1.591615728e-12 | FJ49: 66310.6233 | FK49: 45296.86904 | FL49: 5187.805346 | FM49: 1.98951966e-13 | FN49: 50484.67438 | FO49: 69349.68401 | FP49: 3612.072132 | FQ49: 0 | FR49: 72961.75614
A50: 12390 | B50: Kentucky Gov & Envir Aff | D50: 8396.419856 | E50: 15360.47534 | F50: 23756.8952 | H50: 13256.51589 | I50: 11697.83055 | J50: 24954.34644 | L50: 13909.25329 | M50: 20117.62239 | N50: 34026.87568 | P50: 16269.71255 | Q50: 5558.35226 | R50: 21828.06481 | T50: 12361.71941 | U50: 3711.471288 | V50: 16073.1907 | X50: 14414.30853 | Y50: 6429.311386 | Z50: 20843.61992 | AB50: 13965.61946 | AC50: 8424.316396 | AD50: 22389.93585 | AF50: 11845.70799 | AG50: 10915.77558 | AH50: 22761.48357 | AJ50: 22558.33943 | AK50: 11520.67489 | AL50: 34079.01432 | AN50: 13723.4843 | AO50: 4597.738297 | AP50: 18321.22259 | AR50: 16453.32771 | AS50: 5870.253452 | AT50: 22323.58116 | AV50: 20036.04024 | AW50: 7259.594986 | AX50: 27295.63523 | AZ50: 9388.946445 | BA50: 16403.32247 | BB50: 25792.26892 | BD50: 6807.133848 | BE50: 11146.08505 | BF50: 17953.21889 | BH50: 7232.155671 | BI50: 7910.247003 | BJ50: 15142.40267 | BL50: 8762.290381 | BM50: 2220.199174 | BN50: 10982.48955 | BP50: 7850.601672 | BQ50: 2619.312062 | BR50: 10469.91373 | BS50: 717.8076065 | BT50: 16876.55269 | BU50: 637.2808586 | BV50: 18231.64115 | BX50: 27082.52505 | BY50: 0 | BZ50: 27082.52505 | CB50: 30683.04009 | CC50: 0 | CD50: 30683.04009 | CF50: 22917.99704 | CG50: 0 | CH50: 22917.99704 | CJ50: 22201.81037 | CK50: 0 | CL50: 22201.81037 | CN50: 24404.75983 | CO50: 0 | CP50: 24404.75983 | CR50: 12478.9716 | CS50: 0 | CT50: 12478.9716 | CV50: 22932.55044 | CW50: 1304.88378 | CX50: 24237.43422 | CZ50: 19620.31344 | DA50: 2199.72661 | DB50: 21820.04005 | DD50: 29474.03568 | DE50: 4522.546865 | DF50: 33996.58254 | DH50: 19189.07746 | DI50: 0 | DJ50: 19189.07746 | DL50: 23983.37432 | DM50: 0 | DN50: 23983.37432 | DP50: 29264.15325 | DQ50: 0 | DR50: 29264.15325 | DT50: 29317.84767 | DU50: 0 | DV50: 29317.84767 | DX50: 50475.03893 | DY50: 0 | DZ50: 50475.03893 | EB50: 34330.59102 | EC50: 706.2539131 | ED50: 35036.84494 | EF50: 37908.59885 | EG50: 853.2051709 | EH50: 38761.80402 | EJ50: 35330.93312 | EK50: 0 | EL50: 35330.93312 | EN50: 41309.27373 | EO50: 0 | EP50: 41309.27373 | ER50: 47189.17708 | ES50: 594.8693449 | ET50: 47784.04643 | EV50: 30004.15026 | EW50: 885.3718419 | EX50: 30889.5221 | EZ50: 29982.97668 | FA50: 574.256292 | FB50: 30557.23298 | FC50: 677.1800817 | FD50: 22883.59138 | FE50: 726.7863754 | FF50: 24287.55784 | FG50: 115.4710913 | FH50: 31488.97929 | FI50: 130.4051703 | FJ50: 31734.85555 | FL50: 29628.31544 | FM50: 0 | FN50: 29628.31544 | FP50: 47150.13208 | FQ50: 0 | FR50: 47150.13208
A51: 12392 | B51: Kentucky Bus Oper Support | C51: 14399.17847 | D51: 55064.61404 | E51: 21.06 | F51: 69484.85251 | G51: 13708.87487 | H51: 48641.58736 | I51: 94.73 | J51: 62445.19224 | K51: 15371.66698 | L51: 79811.53331 | M51: 65.44 | N51: 95248.6403 | O51: 10534.29745 | P51: 61187.32353 | Q51: 0 | R51: 71721.62098 | S51: 13451.97292 | T51: 58063.25175 | U51: 693.5901608 | V51: 72208.81483 | W51: 16643.72502 | X51: 61368.61165 | Y51: 0 | Z51: 78012.33667 | AA51: 15457.50076 | AB51: 66717.04442 | AC51: 0 | AD51: 82174.54518 | AE51: 13632.12927 | AF51: 47467.78352 | AG51: 0 | AH51: 61099.91279 | AI51: 18601.1139 | AJ51: 82933.60739 | AK51: 0 | AL51: 101534.7213 | AM51: 12224.33383 | AN51: 44124.99887 | AO51: 77.11 | AP51: 56426.4427 | AQ51: 11020.38677 | AR51: 54549.73854 | AS51: 616.54 | AT51: 66186.66531 | AU51: 16785.76075 | AV51: 60787.77821 | AW51: 747.05 | AX51: 78320.58897 | AY51: 17525.94911 | AZ51: 56393.72778 | BA51: 596.08 | BB51: 74515.75689 | BC51: 13993.77805 | BD51: 51719.79442 | BE51: 104.41 | BF51: 65817.98247 | BG51: 17382.34858 | BH51: 74321.85622 | BI51: 25.14 | BJ51: 91729.3448 | BK51: 13910.67413 | BL51: 46003.25504 | BM51: 0 | BN51: 59913.92917 | BO51: 21999.0947 | BP51: 53785.54912 | BQ51: 0 | BR51: 75784.64382 | BS51: 12807.95007 | BT51: 35194.41636 | BU51: 0 | BV51: 48002.36643 | BW51: 15410.98699 | BX51: 31130.72033 | BY51: -89.94 | BZ51: 46451.76732 | CA51: 20008.41696 | CB51: 43609.89554 | CC51: -614.85 | CD51: 63003.46251 | CE51: 11010.31603 | CF51: 31403.0398 | CG51: 50.47 | CH51: 42463.82582 | CI51: 12711.11282 | CJ51: 35729.44591 | CK51: 0 | CL51: 48440.55873 | CM51: 12774.59783 | CN51: 40668.7243 | CO51: 0 | CP51: 53443.32212 | CQ51: 6719.544854 | CR51: 16125.92759 | CS51: 0 | CT51: 22845.47245 | CU51: 16897.8175 | CV51: 46668.85842 | CW51: -1177.27 | CX51: 62389.40592 | CY51: 11400.76214 | CZ51: 34187.58973 | DA51: 0 | DB51: 45588.35187 | DC51: 17398.81694 | DD51: 54817.85572 | DE51: 0 | DF51: 72216.67266 | DG51: 11816.2518 | DH51: 39017.08164 | DI51: 774.2373281 | DJ51: 51607.57077 | DK51: 15071.74551 | DL51: 35714.54532 | DM51: 0 | DN51: 50786.29084 | DO51: 15012.68431 | DP51: 37782.46491 | DQ51: 0 | DR51: 52795.14922 | DS51: 14345.91962 | DT51: 37836.34978 | DU51: 24.24 | DV51: 52206.50939 | DW51: 20659.31109 | DX51: 52294.66427 | DY51: 0 | DZ51: 72953.97535 | EA51: 12505.45083 | EB51: 38638.0086 | EC51: 0 | ED51: 51143.45943 | EE51: 19091.57656 | EF51: 48798.40019 | EG51: 0 | EH51: 67889.97675 | EI51: 16010.13541 | EJ51: 38954.08893 | EK51: 808.7612696 | EL51: 55772.98561 | EM51: 18345.09358 | EN51: 44685.61051 | EO51: 0 | EP51: 63030.70408 | EQ51: 21298.25837 | ER51: 51893.99255 | ES51: 102.92 | ET51: 73295.17092 | EU51: 13966.6469 | EV51: 36298.58385 | EW51: 188.8 | EX51: 50454.03075 | EY51: 13632.97767 | EZ51: 39580.90773 | FA51: 225.82 | FB51: 53439.7054 | FC51: 11543.76974 | FD51: 29550.68628 | FE51: 0 | FF51: 41094.45601 | FG51: 14306.52591 | FH51: 38350.53393 | FI51: 0 | FJ51: 52657.05985 | FK51: 13769.03233 | FL51: 36013.7069 | FM51: 81.15 | FN51: 49863.88924 | FO51: 22468.65678 | FP51: 56709.68674 | FQ51: 157 | FR51: 79335.34352
A52: 12393 | B52: Ashland Design | C52: 29609.37822 | D52: 5552.877152 | E52: 514.29 | F52: 35676.54537 | G52: 28906.84492 | H52: 5729.475777 | I52: 0 | J52: 34636.32069 | K52: 38374.28258 | L52: 18544.06866 | M52: 0 | N52: 56918.35124 | O52: 27589.31106 | P52: 6687.154597 | Q52: 0 | R52: 34276.46565 | S52: 26578.76861 | T52: 7696.2342 | U52: 810.25 | V52: 35085.25281 | W52: 30808.09288 | X52: 4777.880349 | Y52: 7.105427358e-14 | Z52: 35585.97323 | AA52: 32966.92893 | AB52: 8811.508992 | AC52: 0 | AD52: 41778.43792 | AE52: 29173.60512 | AF52: 5974.265238 | AG52: 5.684341886e-14 | AH52: 35147.87036 | AI52: 43258.38656 | AJ52: 9877.616861 | AK52: 3740.2 | AL52: 56876.20342 | AM52: 22928.67259 | AN52: 6980.161856 | AO52: -5.684341886e-14 | AP52: 29908.83444 | AQ52: 28277.35716 | AR52: 5270.326542 | AS52: 0 | AT52: 33547.68371 | AU52: 30185.67352 | AV52: 5398.177274 | AW52: 0.87 | AX52: 35584.72079 | AY52: 36253.36217 | AZ52: 4541.541041 | BA52: 0 | BB52: 40794.90321 | BC52: 33875.00334 | BD52: 4506.50884 | BE52: 148.72 | BF52: 38530.23218 | BG52: 44451.33148 | BH52: 19289.44014 | BI52: 134.1 | BJ52: 63874.87162 | BK52: 32507.63773 | BL52: 16064.48426 | BM52: 185.62 | BN52: 48757.742 | BO52: 30945.0379 | BP52: 6494.132894 | BQ52: 804.56 | BR52: 38243.7308 | BS52: 29108.67019 | BT52: 4294.006594 | BU52: 1327.79 | BV52: 34730.46678 | BW52: 28327.53006 | BX52: 4294.526367 | BY52: 3784.9 | BZ52: 36406.95642 | CA52: 59080.49985 | CB52: 11698.13607 | CC52: 1962.42 | CD52: 72741.05592 | CE52: 45233.36127 | CF52: 6461.776804 | CG52: 1162.3 | CH52: 52857.43807 | CI52: 32511.58143 | CJ52: 3458.125356 | CK52: 26068.6 | CL52: 62038.30679 | CM52: 37076.29795 | CN52: 9294.257461 | CO52: 377.4443227 | CP52: 46747.99973 | CQ52: 29068.05272 | CR52: 6275.832079 | CS52: -4.547473509e-13 | CT52: 35343.8848 | CU52: 51692.03187 | CV52: 4574.083665 | CW52: 0 | CX52: 56266.11553 | CY52: 40154.89423 | CZ52: 4019.951644 | DA52: -1.421085472e-14 | DB52: 44174.84588 | DC52: 63924.16491 | DD52: 15269.79802 | DE52: 120.84 | DF52: 79314.80294 | DG52: 40786.90053 | DH52: 7996.435751 | DI52: 79.1 | DJ52: 48862.43628 | DK52: 39266.70328 | DL52: 6063.822117 | DM52: 0 | DN52: 45330.52539 | DO52: 40883.18371 | DP52: 3613.990657 | DQ52: -528.88 | DR52: 43968.29436 | DS52: 44506.02676 | DT52: 7670.170215 | DU52: 2.842170943e-13 | DV52: 52176.19698 | DW52: 62302.16793 | DX52: 6840.295415 | DY52: -7.105427358e-15 | DZ52: 69142.46335 | EA52: 45793.73649 | EB52: 3211.096708 | EC52: 4043.31 | ED52: 53048.1432 | EE52: 54767.09353 | EF52: 6044.132857 | EG52: 309.89 | EH52: 61121.11639 | EI52: 45238.76989 | EJ52: 5830.358708 | EK52: 2.629008122e-13 | EL52: 51069.1286 | EM52: 57144.18625 | EN52: 7587.350431 | EO52: 0 | EP52: 64731.53668 | EQ52: 64491.75144 | ER52: 15049.62129 | ES52: 292.3313244 | ET52: 79833.70405 | EU52: 38531.51852 | EV52: 9541.81454 | EW52: 230.59 | EX52: 48303.92306 | EY52: 48512.54889 | EZ52: -219.7271376 | FA52: 2185.74 | FB52: 50478.56175 | FC52: 36490.52125 | FD52: 17231.46128 | FE52: 9.06 | FF52: 53731.04253 | FG52: 43576.61865 | FH52: 8254.53064 | FI52: 0 | FJ52: 51831.14929 | FK52: 41270.54796 | FL52: 8001.160997 | FM52: -2.273736754e-13 | FN52: 49271.70896 | FO52: 63385.27363 | FP52: 5404.191586 | FQ52: 0 | FR52: 68789.46522
A53: 12394 | B53: Kentucky Corp Comm | D53: 13401.88247 | E53: 0 | F53: 13401.88247 | H53: 11415.81761 | J53: 11415.81761 | L53: 15308.66174 | M53: 0 | N53: 15308.66174 | P53: 9882.582318 | Q53: 0 | R53: 9882.582318 | T53: 10145.31956 | U53: 0 | V53: 10145.31956 | X53: 11761.46614 | Y53: 0 | Z53: 11761.46614 | AB53: 10731.40416 | AC53: 0 | AD53: 10731.40416 | AF53: 11397.10192 | AG53: 0 | AH53: 11397.10192 | AJ53: 16240.80628 | AK53: 0 | AL53: 16240.80628 | AN53: 9381.523056 | AO53: 0 | AP53: 9381.523056 | AR53: 10360.54018 | AS53: 0 | AT53: 10360.54018 | AV53: 13466.63855 | AW53: 0 | AX53: 13466.63855 | AZ53: 11157.27586 | BA53: 0 | BB53: 11157.27586 | BD53: 11306.10442 | BE53: 0 | BF53: 11306.10442 | BH53: 15640.4253 | BI53: 0 | BJ53: 15640.4253 | BL53: 11758.94347 | BM53: 0 | BN53: 11758.94347 | BP53: 11166.87736 | BQ53: 0 | BR53: 11166.87736 | BT53: 9264.72446 | BU53: 0 | BV53: 9264.72446 | BX53: 10953.08233 | BY53: 0 | BZ53: 10953.08233 | CB53: 15941.8019 | CC53: 0 | CD53: 15941.8019 | CF53: 12009.82055 | CG53: 0 | CH53: 12009.82055 | CJ53: 12358.18666 | CK53: 0 | CL53: 12358.18666 | CN53: 12726.19926 | CP53: 12726.19926 | CR53: 7129.995644 | CS53: 0 | CT53: 7129.995644 | CV53: 12287.92339 | CW53: 0 | CX53: 12287.92339 | CZ53: 11047.54556 | DB53: 11047.54556 | DD53: 17720.84063 | DF53: 17720.84063 | DH53: 10550.92451 | DI53: 0 | DJ53: 10550.92451 | DL53: 12387.8793 | DM53: 0 | DN53: 12387.8793 | DP53: 12337.11508 | DQ53: 0 | DR53: 12337.11508 | DT53: 12068.42485 | DU53: 0 | DV53: 12068.42485 | DX53: 13309.62012 | DY53: 0 | DZ53: 13309.62012 | EB53: 11952.44818 | EC53: 0 | ED53: 11952.44818 | EF53: 14976.30524 | EG53: 0 | EH53: 14976.30524 | EJ53: 10636.89483 | EK53: 0 | EL53: 10636.89483 | EN53: 15617.82423 | EO53: 0 | EP53: 15617.82423 | ER53: 16829.50601 | ES53: 0 | ET53: 16829.50601 | EV53: 9863.772054 | EW53: 0 | EX53: 9863.772054 | EZ53: 10525.91369 | FA53: 0 | FB53: 10525.91369 | FD53: 9004.708674 | FE53: 0 | FF53: 9004.708674
A54: 12396 | B54: Kentucky Region Support | C54: 125836.9233 | D54: -18232.83096 | E54: -5.684341886e-14 | F54: 107604.0924 | G54: 123685.8669 | H54: -35532.30883 | I54: 0 | J54: 88153.55811 | K54: 168471.5524 | L54: -42634.18816 | M54: 0 | N54: 125837.3642 | O54: 149183.9324 | P54: -58581.42825 | Q54: 0 | R54: 90602.50412 | S54: 173935.6873 | T54: -64993.04477 | U54: -5.115907697e-13 | V54: 108942.6426 | W54: 146035.5306 | X54: -19511.59483 | Y54: 2.842170943e-14 | Z54: 126523.9357 | AA54: 158095.9384 | AB54: -9662.664459 | AC54: -2.273736754e-13 | AD54: 148433.274 | AE54: 132842.3161 | AF54: 11520.33051 | AG54: -9.947598301e-14 | AH54: 144362.6466 | AI54: 169676.4126 | AJ54: 51598.13891 | AK54: 27334.89 | AL54: 248609.4415 | AM54: 158788.9574 | AN54: -22741.30012 | AO54: 2091.18 | AP54: 138138.8372 | AQ54: 194996.238 | AR54: -49716.56166 | AS54: 21772.78 | AT54: 167052.4564 | AU54: 175369.6744 | AV54: -1026.582078 | AW54: 869.07 | AX54: 175212.1623 | AY54: 188302.9166 | AZ54: -30059.79699 | BA54: 0 | BB54: 158243.1196 | BC54: 139106.5776 | BD54: 18925.10948 | BE54: 0 | BF54: 158031.6871 | BG54: 187157.5074 | BH54: 33808.47667 | BI54: -3.410605132e-13 | BJ54: 220965.9841 | BK54: 145233.1986 | BL54: 18505.13561 | BM54: -3.410605132e-13 | BN54: 163738.3342 | BO54: 159571.5419 | BP54: -10343.58952 | BQ54: 0 | BR54: 149227.9524 | BS54: 193592.483 | BT54: -51927.62458 | BU54: 0 | BV54: 141664.8585 | BW54: 197881.5271 | BX54: -42876.57425 | BY54: 0 | BZ54: 155004.9529 | CA54: 190445.9129 | CB54: 9508.211773 | CC54: 6.821210263e-13 | CD54: 199954.1247 | CE54: 151487.8156 | CF54: -23517.62083 | CG54: 0 | CH54: 127970.1947 | CI54: 167457.9409 | CJ54: -41256.85371 | CK54: 13157.39 | CL54: 139358.4772 | CM54: 136535.8433 | CN54: -369.8431262 | CO54: 7420.25 | CP54: 143586.2502 | CQ54: 123726.1346 | CR54: -37836.70453 | CS54: -1.421085472e-13 | CT54: 85889.43004 | CU54: 210754.0986 | CV54: -31467.73726 | CW54: -1.136868377e-13 | CX54: 179286.3613 | CY54: 175229.7678 | CZ54: -42540.90208 | DA54: 2.273736754e-13 | DB54: 132688.8658 | DC54: 188459.1716 | DD54: 5566.280919 | DE54: -3.410605132e-13 | DF54: 194025.4525 | DG54: 150809.3391 | DH54: -43729.44743 | DI54: 0 | DJ54: 107079.8917 | DK54: 158200.9521 | DL54: -76782.21379 | DM54: 0 | DN54: 81418.73827 | DO54: 155577.5851 | DP54: -57770.73564 | DQ54: -8.526512829e-14 | DR54: 97806.8495 | DS54: 178483.4668 | DT54: -78770.76684 | DU54: 0 | DV54: 99712.69997 | DW54: 201649.9291 | DX54: -52825.55401 | DY54: 0 | DZ54: 148824.3751 | EA54: 201491.6406 | EB54: -97269.80287 | EC54: 5302.49 | ED54: 109524.3277 | EE54: 213920.5844 | EF54: -73462.40271 | EG54: 0 | EH54: 140458.1817 | EI54: 144294.5437 | EJ54: -33939.52383 | EK54: -4.547473509e-13 | EL54: 110355.0199 | EM54: 180821.0434 | EN54: -28882.95304 | EO54: 0 | EP54: 151938.0903 | EQ54: 216632.7015 | ER54: -35315.45403 | ES54: 1.705302566e-13 | ET54: 181317.2475 | EU54: 162186.1712 | EV54: -51558.58999 | EW54: 0 | EX54: 110627.5812 | EY54: 163034.7193 | EZ54: -65777.26127 | FA54: 0 | FB54: 97257.458 | FC54: 199580.6686 | FD54: -102929.3194 | FE54: 5.087485988e-12 | FF54: 96651.34917 | FG54: 188570.6739 | FH54: -45143.4512 | FI54: -1.136868377e-12 | FJ54: 143427.2227 | FK54: 177305.6604 | FL54: -56167.83814 | FM54: -5.684341886e-14 | FN54: 121137.8222 | FO54: 254058.5617 | FP54: -72762.37893 | FQ54: 0 | FR54: 181296.1828
A55: 12491 | B55: GET ENG Project & FGD Eng | BC55: 16714.97558 | BE55: 0 | BF55: 16714.97558 | FG55: 0 | FJ55: 0
A56: 12539 | B56: Trans Charge-Offs | FH56: 502.61 | FJ56: 502.61
A57: 12632 | B57: Transmission Forestry | D57: 5739.038522 | E57: 0 | F57: 5739.038522 | G57: 1109.334473 | H57: 4237.990697 | J57: 5347.32517 | K57: 1786.816053 | L57: 4800.477451 | M57: 0 | N57: 6587.293504 | O57: 1628.541296 | P57: 2596.621823 | Q57: 0 | R57: 4225.163119 | S57: 1685.609279 | T57: 2942.786727 | V57: 4628.396006 | W57: 1480.376981 | X57: 3161.048642 | Y57: 0 | Z57: 4641.425622 | AA57: 1455.835913 | AB57: 3139.81414 | AC57: 0 | AD57: 4595.650053 | AE57: 792.2521597 | AF57: 5185.927838 | AH57: 5978.179998 | AI57: 1545.001489 | AJ57: 3956.924801 | AK57: 7936.21 | AL57: 13438.13629 | AM57: 4821.72784 | AN57: 7630.059234 | AO57: 1050.73 | AP57: 13502.51707 | AQ57: 1406.730084 | AR57: 3009.033612 | AS57: 0 | AT57: 4415.763696 | AU57: 1383.09327 | AV57: 3166.102722 | AW57: 163.65 | AX57: 4712.845993 | AZ57: 5720.100651 | BA57: 0 | BB57: 5720.100651 | BC57: 1153.790295 | BD57: 4025.629365 | BE57: 0 | BF57: 5179.41966 | BG57: 1890.957128 | BH57: 5899.611992 | BJ57: 7790.56912 | BK57: 2261.786824 | BL57: 2658.768051 | BM57: 0 | BN57: 4920.554875 | BO57: 1454.64578 | BP57: 3600.948955 | BR57: 5055.594736 | BS57: 669.0487751 | BT57: 4606.088589 | BU57: 0 | BV57: 5275.137364 | BX57: 5597.619797 | BY57: 0 | BZ57: 5597.619797 | CB57: 8968.173073 | CD57: 8968.173073 | CF57: 5701.861867 | CG57: 0 | CH57: 5701.861867 | CI57: 299.2224858 | CJ57: 4368.78601 | CL57: 4668.008495 | CN57: 5705.225354 | CO57: 0 | CP57: 5705.225354 | CQ57: 446.0032835 | CR57: 3587.68655 | CS57: 0 | CT57: 4033.689833
A58: 12639 | B58: GIS Roanoke Graphics | C58: 10710.04118 | D58: 2127.914592 | E58: 0 | F58: 12837.95577 | G58: 10809.0425 | H58: 3158.71291 | I58: 0 | J58: 13967.75541 | K58: 15018.33431 | L58: 2983.614464 | M58: 0 | N58: 18001.94878 | O58: 9391.600915 | P58: 2023.081335 | Q58: 0 | R58: 11414.68225 | S58: 10945.80856 | T58: 2308.21302 | U58: 0 | V58: 13254.02158 | W58: 10888.76878 | X58: 1879.227026 | Y58: 0 | Z58: 12767.99581 | AA58: 11491.73391 | AB58: 1693.326485 | AC58: 0 | AD58: 13185.0604 | AE58: 10105.21688 | AF58: 1767.128067 | AG58: 0 | AH58: 11872.34495 | AI58: 13949.2488 | AJ58: 2542.846356 | AK58: 0 | AL58: 16492.09515 | AM58: 8245.145025 | AN58: 1315.510248 | AO58: 0 | AP58: 9560.655273 | AQ58: 8512.160353 | AR58: 1478.881339 | AS58: 0 | AT58: 9991.041692 | AU58: 12100.2818 | AV58: -5040.764287 | AW58: 0 | AX58: 7059.517509 | AY58: 14164.72223 | AZ58: 3247.515982 | BA58: 0 | BB58: 17412.23821 | BC58: 11985.58759 | BD58: 3194.71319 | BE58: 0 | BF58: 15180.30078 | BG58: 13354.24903 | BH58: 2979.911748 | BI58: 0 | BJ58: 16334.16077 | BK58: 10227.15423 | BL58: 2518.476289 | BM58: 0 | BN58: 12745.63052
A59: 12660 | B59: New Project Development | BC59: 3862.226933 | BE59: 0 | BF59: 3862.226933 | FG59: 0 | FJ59: 0
A60: 12681 | B60: KY Forestry Support | C60: 11968.37345 | D60: 36684.76132 | E60: 0 | F60: 48653.13477 | G60: 7085.875677 | H60: 33493.46143 | I60: 0 | J60: 40579.33711 | K60: 10831.60429 | L60: 46602.38377 | M60: 0 | N60: 57433.98806 | O60: 4022.064414 | P60: 17792.1255 | Q60: 0 | R60: 21814.18992 | S60: 2178.718534 | T60: 10956.35719 | U60: 0 | V60: 13135.07572 | W60: 2283.376157 | X60: 10852.89121 | Y60: 0 | Z60: 13136.26736 | AA60: 1371.911206 | AB60: 10152.52399 | AC60: 0 | AD60: 11524.43519 | AE60: 1463.092666 | AF60: 10696.68004 | AG60: 0 | AH60: 12159.7727 | AI60: 2977.427483 | AJ60: 15354.15895 | AK60: 872.61 | AL60: 19204.19644 | AM60: 2618.973195 | AN60: 8192.253633 | AO60: 513.71 | AP60: 11324.93683 | AQ60: 2369.370792 | AR60: 10368.24306 | AS60: 177.68 | AT60: 12915.29385 | AU60: 4166.321611 | AV60: 9949.241332 | AW60: 108.7 | AX60: 14224.26294 | AY60: 4053.056132 | AZ60: 11905.63084 | BA60: 0 | BB60: 15958.68697 | BC60: 2947.42026 | BD60: 11020.12646 | BE60: 238.76 | BF60: 14206.30672 | BG60: 5069.865908 | BH60: 13922.20991 | BI60: -5.684341886e-14 | BJ60: 18992.07582 | BK60: 1538.755403 | BL60: 4796.454037 | BM60: 0 | BN60: 6335.20944 | BO60: 2574.392198 | BP60: 5637.481343 | BQ60: 0 | BR60: 8211.87354 | BS60: 2703.769265 | BT60: 6252.307515 | BU60: 0 | BV60: 8956.07678 | BW60: 4324.290508 | BX60: 4911.021894 | BY60: 0 | BZ60: 9235.312402 | CA60: 6274.138017 | CB60: 12824.21111 | CC60: 1.421085472e-14 | CD60: 19098.34913 | CE60: 5307.281923 | CF60: 7662.799245 | CG60: 0 | CH60: 12970.08117 | CI60: 5503.856297 | CJ60: 7894.690246 | CK60: 0 | CL60: 13398.54654 | CM60: 5933.625069 | CN60: 6792.352898 | CO60: 0 | CP60: 12725.97797 | CQ60: 3270.375571 | CR60: 4654.891076 | CS60: 0 | CT60: 7925.266647 | CU60: 4976.862347 | CV60: 10137.5139 | CW60: 0 | CX60: 15114.37625 | CY60: 3232.443683 | CZ60: 8471.030762 | DA60: 0 | DB60: 11703.47444 | DC60: 7688.958006 | DD60: 11765.52956 | DE60: 1.136868377e-13 | DF60: 19454.48756 | DG60: 5433.70764 | DH60: 7391.953212 | DI60: 0 | DJ60: 12825.66085 | DK60: 4490.086834 | DL60: 7824.521959 | DM60: 0 | DN60: 12314.60879 | DO60: 5280.610133 | DP60: 7427.233408 | DQ60: 0 | DR60: 12707.84354 | DS60: 5017.835033 | DT60: 7566.990985 | DU60: 0 | DV60: 12584.82602 | DW60: 9210.091901 | DX60: 8935.419382 | DY60: 0 | DZ60: 18145.51128 | EA60: 4454.354547 | EB60: 8478.397596 | EC60: 0 | ED60: 12932.75214 | EE60: 6720.829663 | EF60: 9788.810144 | EG60: 0 | EH60: 16509.63981 | EI60: 4403.902655 | EJ60: 9013.935524 | EK60: 0 | EL60: 13417.83818 | EM60: 5876.663014 | EN60: 9714.742542 | EO60: 1.421085472e-14 | EP60: 15591.40556 | EQ60: 4600.300722 | ER60: 12842.38491 | ES60: -3.552713679e-14 | ET60: 17442.68563 | EU60: 2631.287349 | EV60: 9673.147336 | EW60: 0 | EX60: 12304.43468 | EY60: 2961.254094 | EZ60: 9635.815582 | FA60: 0 | FB60: 12597.06968 | FC60: 2901.927688 | FD60: 8350.111765 | FE60: 2.273736754e-13 | FF60: 11252.03945 | FG60: 3034.343944 | FH60: 10283.22336 | FI60: 8.526512829e-14 | FJ60: 13317.5673 | FK60: 4134.624136 | FL60: 8345.342121 | FM60: 0 | FN60: 12479.96626 | FO60: 6617.041101 | FP60: 11395.33826 | FQ60: 0 | FR60: 18012.37936
A61: 12682 | B61: Kentucky Distribution Dispatch | C61: 62136.45669 | D61: 53194.5012 | E61: -1.818989404e-12 | F61: 115330.9579 | G61: 46115.57707 | H61: 43523.41417 | I61: -1.818989404e-12 | J61: 89638.99124 | K61: 65750.03429 | L61: 74662.38479 | M61: -1.818989404e-12 | N61: 140412.4191 | O61: 55196.6543 | P61: 50460.36299 | Q61: -1.818989404e-12 | R61: 105657.0173 | S61: 45198.62044 | T61: 48413.33427 | U61: -1.818989404e-12 | V61: 93611.95471 | W61: 43122.60594 | X61: 46756.08316 | Y61: -1.818989404e-12 | Z61: 89878.6891 | AA61: 43492.87352 | AB61: 42799.77584 | AC61: -1.818989404e-12 | AD61: 86292.64935 | AE61: 40720.22933 | AF61: 41217.84101 | AG61: 0 | AH61: 81938.07034 | AI61: 66901.81513 | AJ61: 49808.53493 | AK61: -1.818989404e-12 | AL61: 116710.3501 | AM61: 40582.92078 | AN61: 23640.03706 | AO61: 0 | AP61: 64222.95785 | AQ61: 46297.74102 | AR61: 26659.71343 | AS61: 1.818989404e-12 | AT61: 72957.45445 | AU61: 64738.26313 | AV61: 45452.94096 | AW61: 0 | AX61: 110191.2041 | AY61: 69707.93292 | AZ61: 36861.03981 | BA61: -1.818989404e-12 | BB61: 106568.9727 | BC61: 59321.65277 | BD61: 35051.81607 | BE61: 0 | BF61: 94373.46884 | BG61: 78623.32607 | BH61: 55326.59577 | BI61: 1.591615728e-12 | BJ61: 133949.9218 | BK61: 51242.56805 | BL61: 50757.07712 | BM61: 5.684341886e-13 | BN61: 101999.6452 | BO61: 52658.68363 | BP61: 39531.47694 | BQ61: -1.818989404e-12 | BR61: 92190.16058 | BS61: 56704.94682 | BT61: 43094.89354 | BU61: 0 | BV61: 99799.84035 | BW61: 58178.11441 | BX61: 51267.94056 | BY61: 0 | BZ61: 109446.055 | CA61: 77947.71401 | CB61: 71894.564 | CC61: -2.785327524e-12 | CD61: 149842.278 | CE61: 60740.22713 | CF61: 47099.04305 | CG61: -7.389644452e-13 | CH61: 107839.2702 | CI61: 64233.23125 | CJ61: 50677.84461 | CK61: -1.818989404e-12 | CL61: 114911.0759 | CM61: 62741.17006 | CN61: 50359.22363 | CO61: 5.684341886e-14 | CP61: 113100.3937 | CQ61: 37228.30728 | CR61: 26949.24574 | CS61: -3.410605132e-12 | CT61: 64177.55302 | CU61: 88444.96258 | CV61: 56903.11845 | CW61: -1.818989404e-12 | CX61: 145348.081 | CY61: 84005.11668 | CZ61: 18006.80459 | DA61: 0 | DB61: 102011.9213 | DC61: 121782.6291 | DD61: 47041.67244 | DE61: -2.842170943e-13 | DF61: 168824.3015 | DG61: 85625.92958 | DH61: 22112.84582 | DI61: 0 | DJ61: 107738.7754 | DK61: 85186.80143 | DL61: 23213.18445 | DM61: 0 | DN61: 108399.9859 | DO61: 70730.31967 | DP61: 21970.65138 | DQ61: 0 | DR61: 92700.97106 | DS61: 78867.72578 | DT61: 23733.991 | DU61: 0 | DV61: 102601.7168 | DW61: 107849.7203 | DX61: 28850.66597 | DY61: 0 | DZ61: 136700.3863 | EA61: 70153.6017 | EB61: 21053.11583 | EC61: 0 | ED61: 91206.71753 | EE61: 89623.54045 | EF61: 23068.40982 | EG61: -1.136868377e-13 | EH61: 112691.9503 | EI61: 71616.34207 | EJ61: 21278.32369 | EK61: -2.273736754e-13 | EL61: 92894.66576 | EM61: 113157.8037 | EN61: 34759.64789 | EO61: 0 | EP61: 147917.4516 | EQ61: 121895.6723 | ER61: 39437.57275 | ES61: 1.136868377e-13 | ET61: 161333.245 | EU61: 78811.18372 | EV61: 22250.12368 | EW61: 0 | EX61: 101061.3074 | EY61: 71489.7986 | EZ61: 19871.26054 | FA61: 0 | FB61: 91361.05914 | FC61: 52715.98199 | FD61: 28588.28998 | FE61: 2.842170943e-13 | FF61: 81304.27197 | FG61: 68548.64287 | FH61: 24933.43827 | FI61: 0 | FJ61: 93482.08114 | FK61: 66800.9694 | FL61: 22661.07244 | FM61: -1.98951966e-13 | FN61: 89462.04184 | FO61: 105399.7579 | FP61: 27669.45101 | FQ61: 0 | FR61: 133069.2089
A62: 12748 | B62: Int Emission Controls&Chem Eng | BC62: 15849.65572 | BE62: 0 | BF62: 15849.65572 | FG62: 0 | FJ62: 0
A63: 12763 | B63: Fleet Operations - East | DI63: 0 | DJ63: 0 | DM63: 0 | DN63: 0 | DQ63: 0 | DR63: 0 | DU63: 0 | DV63: 0 | DY63: 0 | DZ63: 0 | EB63: 0 | EC63: 0 | ED63: 0 | EG63: 0 | EH63: 0 | EK63: 0 | EL63: 0 | EO63: 0 | EP63: 0
A64: 12778 | B64: SC Kentucky District Ops | D64: 1943.413784 | E64: 0 | F64: 1943.413784 | H64: -951.5523138 | I64: 0 | J64: -951.5523138 | M64: 0 | N64: 0 | Q64: 0 | R64: 0 | U64: 0 | V64: 0 | Y64: 0 | Z64: 0 | AC64: 0 | AD64: 0 | AF64: 0 | AG64: 0 | AH64: 0 | AK64: 0 | AL64: 0 | AN64: 711.1636086 | AO64: 0 | AP64: 711.1636086 | AS64: 0 | AT64: 0 | AV64: -117.814339 | AW64: 0 | AX64: -117.814339 | BA64: 0 | BB64: 0 | BE64: 0 | BF64: 0 | BI64: 0 | BJ64: 0 | BM64: 0 | BN64: 0 | BQ64: 0 | BR64: 0 | BU64: 0 | BV64: 0 | BY64: 0 | BZ64: 0 | CC64: 0 | CD64: 0 | CG64: 0 | CH64: 0 | CK64: 0 | CL64: 0 | CO64: 0 | CP64: 0 | CS64: 0 | CT64: 0 | CW64: 0 | CX64: 0 | DA64: 0 | DB64: 0 | DD64: 27.20697649 | DE64: 0 | DF64: 27.20697649 | DI64: 0 | DJ64: 0 | DM64: 0 | DN64: 0 | DP64: 1297.842007 | DQ64: 0 | DR64: 1297.842007 | DT64: 521.4682267 | DU64: 0 | DV64: 521.4682267 | DX64: 1.27340646 | DY64: 0 | DZ64: 1.27340646 | EC64: 0 | ED64: 0 | EG64: 0 | EH64: 0 | EK64: 0 | EL64: 0 | EO64: 0 | EP64: 0 | ER64: -424.6847374 | ES64: 0 | ET64: -424.6847374 | EW64: 0 | EX64: 0 | FA64: 0 | FB64: 0 | FD64: -348.9780831 | FE64: 0 | FF64: -348.9780831 | FH64: 198.0786467 | FI64: 0 | FJ64: 198.0786467 | FL64: 0 | FM64: 0 | FN64: 0 | FQ64: 0 | FR64: 0
A65: 12868 | B65: GBS Document Management | AU65: 0 | AX65: 0
A66: 12961 | B66: Pikeville Meter Electricians | C66: 2715.135205 | D66: 22502.56223 | E66: 0 | F66: 25217.69743 | G66: 4490.086587 | H66: 20898.35638 | I66: 1.136868377e-13 | J66: 25388.44297 | K66: 7765.86704 | L66: 32246.88076 | M66: 3014.34 | N66: 43027.0878 | O66: 2634.80697 | P66: 18298.63863 | Q66: -2.273736754e-13 | R66: 20933.4456 | S66: 1677.895665 | T66: 21929.16226 | U66: -1.136868377e-13 | V66: 23607.05792 | W66: 2468.589932 | X66: 21881.64428 | Y66: 0 | Z66: 24350.23421 | AA66: 4709.588848 | AB66: 23460.84518 | AC66: -9.094947018e-13 | AD66: 28170.43403 | AE66: 2573.38515 | AF66: 22293.96322 | AG66: -2.273736754e-13 | AH66: 24867.34837 | AI66: 12584.94106 | AJ66: 39329.73098 | AK66: 4458.19 | AL66: 56372.86204 | AM66: 3924.047115 | AN66: 16831.06101 | AO66: 0 | AP66: 20755.10813 | AQ66: 4952.803534 | AR66: 18033.47598 | AS66: 0 | AT66: 22986.27951 | AU66: 1864.185745 | AV66: 28171.48359 | AW66: 48.02 | AX66: 30083.68934 | AY66: 5162.500075 | AZ66: 20011.72289 | BA66: 0 | BB66: 25174.22296 | BC66: 2915.866849 | BD66: 21524.4082 | BE66: 0 | BF66: 24440.27505 | BG66: 3375.51691 | BH66: 28412.02613 | BI66: 1.136868377e-12 | BJ66: 31787.54304 | BK66: 6787.142583 | BL66: 27274.04996 | BM66: -2.273736754e-13 | BN66: 34061.19255 | BO66: 3195.419446 | BP66: 22986.27301 | BQ66: 0 | BR66: 26181.69245 | BS66: 2358.282583 | BT66: 20766.21142 | BU66: 0 | BV66: 23124.494 | BW66: 4510.501175 | BX66: 25935.46391 | BY66: -2.273736754e-13 | BZ66: 30445.96509 | CA66: 11134.93706 | CB66: 35033.27598 | CC66: 4.547473509e-13 | CD66: 46168.21304 | CE66: 3917.83871 | CF66: 26303.20768 | CG66: -1.136868377e-13 | CH66: 30221.04639 | CI66: 757.1363088 | CJ66: 16120.80013 | CK66: 29964.41 | CL66: 46842.34644 | CM66: 2474.532432 | CN66: 20896.77944 | CO66: 8219.69 | CP66: 31591.00187 | CQ66: 2257.405089 | CR66: 19892.56837 | CS66: 6.821210263e-13 | CT66: 22149.97346 | CU66: 2782.281282 | CV66: 23890.74229 | CW66: 0 | CX66: 26673.02357 | CY66: 2026.229441 | CZ66: 19746.75683 | DA66: 0 | DB66: 21772.98627 | DC66: 6780.875384 | DD66: 39358.98901 | DE66: -7.958078641e-13 | DF66: 46139.86439 | DG66: 2294.44521 | DH66: 20915.18358 | DI66: 0 | DJ66: 23209.62879 | DK66: 2261.705115 | DL66: 24400.81753 | DM66: 1.136868377e-13 | DN66: 26662.52264 | DO66: 3765.64635 | DP66: 21959.82898 | DQ66: 0 | DR66: 25725.47533 | DS66: 3419.948908 | DT66: 27099.41528 | DU66: -1.136868377e-13 | DV66: 30519.36419 | DW66: 3598.322941 | DX66: 38109.12767 | DY66: 0 | DZ66: 41707.45061 | EA66: 3501.302048 | EB66: 25064.67557 | EC66: 0 | ED66: 28565.97762 | EE66: 2551.188181 | EF66: 30980.5294 | EG66: 0 | EH66: 33531.71758 | EI66: 4015.722425 | EJ66: 28604.74001 | EK66: 3.410605132e-13 | EL66: 32620.46244 | EM66: 7132.895885 | EN66: 26592.96327 | EO66: -2.273736754e-13 | EP66: 33725.85915 | EQ66: 7507.759939 | ER66: 32013.20871 | ES66: -1.136868377e-13 | ET66: 39520.96865 | EU66: 3587.758083 | EV66: 22222.60473 | EW66: 1.136868377e-13 | EX66: 25810.36282 | EY66: 2538.548645 | EZ66: 16934.24408 | FA66: 0 | FB66: 19472.79273 | FC66: 5195.661728 | FD66: 17369.81204 | FE66: -6.821210263e-13 | FF66: 22565.47377 | FG66: 7445.81732 | FH66: 24503.01049 | FI66: 1.136868377e-13 | FJ66: 31948.82781 | FK66: 1323.676266 | FL66: 21706.12913 | FM66: -1.136868377e-13 | FN66: 23029.8054 | FO66: 6591.383869 | FP66: 28892.92647 | FQ66: -1.136868377e-13 | FR66: 35484.31034
A67: 12962 | B67: Ashland Meter Electricians | C67: 2035.918341 | D67: 9154.332175 | E67: 0 | F67: 11190.25052 | G67: 2751.881184 | H67: 6554.166206 | I67: -1.136868377e-13 | J67: 9306.04739 | K67: 2796.256216 | L67: 11637.05844 | M67: 8.526512829e-14 | N67: 14433.31465 | O67: 1830.684559 | P67: 5373.963945 | Q67: 0 | R67: 7204.648503 | S67: 3066.15524 | T67: 6003.704096 | U67: 2.273736754e-13 | V67: 9069.859335 | W67: 2260.543751 | X67: 9028.022922 | Y67: 0 | Z67: 11288.56667 | AA67: 3138.797826 | AB67: 11331.06421 | AC67: 0 | AD67: 14469.86203 | AE67: 2332.945515 | AF67: 10473.59065 | AG67: -1.136868377e-13 | AH67: 12806.53617 | AI67: 3218.43428 | AJ67: 14063.57894 | AK67: 11685.25 | AL67: 28967.26322 | AM67: 3265.77961 | AN67: 8752.48603 | AO67: 1377.26 | AP67: 13395.52564 | AQ67: 3336.393348 | AR67: 9046.626435 | AS67: 0 | AT67: 12383.01978 | AU67: 2423.482251 | AV67: 13624.98095 | AW67: 504.33 | AX67: 16552.7932 | AY67: 3372.903622 | AZ67: 14315.04195 | BA67: 0 | BB67: 17687.94557 | BC67: 2284.62816 | BD67: 12681.62085 | BE67: -1.136868377e-13 | BF67: 14966.24901 | BG67: 1980.408408 | BH67: 14360.83795 | BI67: 6.394884622e-14 | BJ67: 16341.24636 | BK67: 370.4052273 | BL67: 8515.586774 | BM67: 0 | BN67: 8885.992001 | BO67: 1860.15657 | BP67: 13643.7568 | BQ67: -2.273736754e-13 | BR67: 15503.91337 | BS67: 2450.963263 | BT67: 12389.91287 | BU67: 0 | BV67: 14840.87613 | BW67: 1442.161619 | BX67: 13340.73911 | BY67: 121.24 | BZ67: 14904.14073 | CA67: 2174.373325 | CB67: 22285.98556 | CC67: 1.136868377e-13 | CD67: 24460.35888 | CE67: 1715.908918 | CF67: 17550.93128 | CG67: 0 | CH67: 19266.84019 | CI67: 649.5883715 | CJ67: 12277.34561 | CK67: 14691.1 | CL67: 27618.03398 | CM67: 4069.372649 | CN67: 11803.19474 | CO67: 5.684341886e-14 | CP67: 15872.56739 | CQ67: 3450.353743 | CR67: 6878.345584 | CS67: 1.705302566e-13 | CT67: 10328.69933 | CU67: 5281.943536 | CV67: 13293.55997 | CW67: 0 | CX67: 18575.50351 | CY67: 1772.148695 | CZ67: 13212.91788 | DA67: 1.705302566e-13 | DB67: 14985.06657 | DC67: 5384.376288 | DD67: 23643.94553 | DE67: -2.273736754e-13 | DF67: 29028.32182 | DG67: 2441.966876 | DH67: 13626.57813 | DI67: 1.136868377e-13 | DJ67: 16068.545 | DK67: 2903.177088 | DL67: 15671.29183 | DM67: 2.273736754e-13 | DN67: 18574.46892 | DO67: 4382.412761 | DP67: 12652.49995 | DQ67: -28.44 | DR67: 17006.47271 | DS67: 3919.081964 | DT67: 12477.57028 | DU67: -4.547473509e-13 | DV67: 16396.65225 | DW67: 3094.004946 | DX67: 21601.51471 | DY67: -3.410605132e-13 | DZ67: 24695.51966 | EA67: 2822.297839 | EB67: 15333.42851 | EC67: 2.273736754e-13 | ED67: 18155.72635 | EE67: 7036.709383 | EF67: 14092.93671 | EG67: 0 | EH67: 21129.6461 | EI67: 6690.472683 | EJ67: 16880.1307 | EK67: 5.684341886e-13 | EL67: 23570.60339 | EM67: 6367.571141 | EN67: 17718.77084 | EO67: -1.421085472e-13 | EP67: 24086.34198 | EQ67: 9699.070477 | ER67: 18708.06853 | ES67: -2.273736754e-13 | ET67: 28407.139 | EU67: 5757.129233 | EV67: 10955.70557 | EW67: 201.47 | EX67: 16914.30481 | EY67: 3388.944691 | EZ67: 12930.3361 | FA67: -4.547473509e-13 | FB67: 16319.28079 | FC67: 6346.379229 | FD67: 12287.71375 | FE67: 1.136868377e-12 | FF67: 18634.09298 | FG67: 11024.12559 | FH67: 12307.31324 | FI67: -2.273736754e-13 | FJ67: 23331.43883 | FK67: 4442.715926 | FL67: 14311.69191 | FM67: -2.273736754e-13 | FN67: 18754.40783 | FO67: 11510.01696 | FP67: 15005.36333 | FQ67: 0 | FR67: 26515.38029
A68: 12963 | B68: Hazard Meter Electricians | C68: 1187.470844 | D68: 16224.6043 | E68: 2.842170943e-14 | F68: 17412.07514 | G68: 1351.197471 | H68: 14957.9913 | I68: 0 | J68: 16309.18877 | K68: 1636.627039 | L68: 23212.11884 | M68: 1.136868377e-13 | N68: 24848.74588 | O68: 569.5543567 | P68: 12549.55912 | Q68: 0 | R68: 13119.11347 | S68: 1935.290242 | T68: 14743.63997 | U68: 1.136868377e-13 | V68: 16678.93021 | W68: 1112.794351 | X68: 14551.97263 | Y68: 0 | Z68: 15664.76698 | AA68: 1253.213304 | AB68: 12987.01741 | AC68: 0 | AD68: 14240.23071 | AE68: 1626.485555 | AF68: 15167.43349 | AG68: -1.136868377e-13 | AH68: 16793.91904 | AI68: 1804.674618 | AJ68: 19168.99476 | AK68: -1.136868377e-13 | AL68: 20973.66938 | AM68: 1742.713265 | AN68: 12937.97759 | AO68: 0 | AP68: 14680.69086 | AQ68: 1368.335192 | AR68: 11489.19074 | AS68: 1.136868377e-13 | AT68: 12857.52593 | AU68: 1589.631222 | AV68: 17308.57013 | AW68: 8.526512829e-14 | AX68: 18898.20135 | AY68: 1054.107142 | AZ68: 15258.81961 | BA68: 5.684341886e-14 | BB68: 16312.92675 | BC68: 992.9447267 | BD68: 15700.92056 | BE68: -5.684341886e-14 | BF68: 16693.86529 | BG68: 823.6881325 | BH68: 23678.72395 | BI68: 0 | BJ68: 24502.41208 | BK68: 2872.433023 | BL68: 15296.79904 | BM68: -5.684341886e-13 | BN68: 18169.23206 | BO68: 763.3672874 | BP68: 16070.15396 | BQ68: 0 | BR68: 16833.52125 | BS68: 473.2986364 | BT68: 17381.75961 | BU68: 0 | BV68: 17855.05824 | BW68: 418.6618884 | BX68: 16699.90928 | BY68: 2.842170943e-14 | BZ68: 17118.57117 | CA68: 1488.405399 | CB68: 21428.96678 | CC68: 0 | CD68: 22917.37218 | CE68: 828.2761582 | CF68: 17151.44747 | CG68: 0 | CH68: 17979.72363 | CI68: 1246.042331 | CJ68: 16247.96404 | CK68: -5.684341886e-14 | CL68: 17494.00637 | CM68: 1056.734147 | CN68: 17709.28925 | CO68: 5.684341886e-14 | CP68: 18766.0234 | CQ68: 663.4035935 | CR68: 9805.088203 | CS68: 1.136868377e-13 | CT68: 10468.4918 | CU68: 647.8026817 | CV68: 13452.99469 | CW68: 0 | CX68: 14100.79737 | CY68: 448.5111186 | CZ68: 8344.706778 | DA68: 0 | DB68: 8793.217896 | DC68: 877.5569482 | DD68: 13592.37763 | DE68: 117.51 | DF68: 14587.44458 | DG68: 283.007195 | DH68: 6431.321794 | DI68: 0 | DJ68: 6714.328989 | DK68: 1890.126421 | DL68: 7790.318426 | DM68: -1.136868377e-13 | DN68: 9680.444847 | DO68: 1127.467509 | DP68: 7293.770565 | DQ68: 0 | DR68: 8421.238074 | DS68: 238.6100376 | DT68: 5068.965911 | DU68: 0 | DV68: 5307.575949 | DW68: 1153.540671 | DX68: 21030.69546 | DY68: -5.684341886e-14 | DZ68: 22184.23613 | EA68: 767.2388607 | EB68: 13857.83457 | EC68: -2.842170943e-14 | ED68: 14625.07343 | EE68: 1531.505574 | EF68: 16560.93059 | EG68: 2.842170943e-14 | EH68: 18092.43616 | EI68: 2435.288018 | EJ68: 15654.03917 | EK68: 2.842170943e-14 | EL68: 18089.32719 | EM68: 4366.612561 | EN68: 15488.47712 | EO68: -2.664535259e-14 | EP68: 19855.08968 | EQ68: 1865.271357 | ER68: 18529.72267 | ES68: 0 | ET68: 20394.99403 | EU68: 755.9668287 | EV68: 8000.711336 | EW68: 129.25 | EX68: 8885.928164 | EY68: 156.8508337 | EZ68: 7219.178326 | FA68: -7.105427358e-15 | FB68: 7376.029159 | FC68: 1783.398653 | FD68: 5789.463269 | FE68: -5.684341886e-13 | FF68: 7572.861922 | FG68: 2258.413774 | FH68: 9715.251676 | FI68: 0 | FJ68: 11973.66545 | FK68: 1207.547177 | FL68: 7008.239959 | FM68: 0 | FN68: 8215.787136 | FO68: 851.046411 | FP68: 11149.71618 | FQ68: 0 | FR68: 12000.76259
A69: 13134 | B69: Fleet Operations - KY | E69: 0 | F69: 0 | I69: 0 | J69: 0 | L69: 290.5917759 | M69: 0 | N69: 290.5917759 | P69: -215.4808269 | Q69: 0 | R69: -215.4808269 | U69: 0 | V69: 0 | X69: 5149.103544 | Y69: 0 | Z69: 5149.103544 | AB69: -4160.742769 | AC69: 0 | AD69: -4160.742769 | AF69: 5081.390588 | AG69: 0 | AH69: 5081.390588 | AJ69: -5568.700213 | AK69: 0 | AL69: -5568.700213 | AN69: -479.5160202 | AO69: 0 | AP69: -479.5160202 | AR69: 0 | AS69: 0 | AT69: 0 | AV69: 11874.34488 | AW69: 0 | AX69: 11874.34488 | AZ69: 2168.063563 | BA69: 0 | BB69: 2168.063563 | BE69: 0 | BF69: 0 | BH69: -412.1365626 | BI69: 0 | BJ69: -412.1365626 | BL69: -14.20076674 | BM69: 2306.31 | BN69: 2292.109233 | BQ69: 0 | BR69: 0 | BU69: 0 | BV69: 0 | BY69: 0 | BZ69: 0 | CC69: 0 | CD69: 0 | CG69: 0 | CH69: 0 | CK69: 0 | CL69: 0 | CN69: 2666.697599 | CO69: 0 | CP69: 2666.697599 | CR69: -817.5013193 | CS69: 0 | CT69: -817.5013193 | CW69: 0 | CX69: 0 | DA69: 0 | DB69: 0 | DD69: 5320.792665 | DE69: 510.55 | DF69: 5831.342665 | DI69: 0 | DJ69: 0 | DM69: 0 | DN69: 0 | DQ69: 0 | DR69: 0 | DT69: 0 | DU69: 0 | DV69: 0 | DY69: 0 | DZ69: 0 | EB69: 2370.017948 | EC69: 0 | ED69: 2370.017948 | EF69: 4320.53142 | EG69: 0 | EH69: 4320.53142 | EJ69: -2622.943903 | EK69: 0 | EL69: -2622.943903 | EN69: 1636.196268 | EO69: 0 | EP69: 1636.196268 | ER69: 1045.621607 | ES69: 0 | ET69: 1045.621607 | EW69: 0 | EX69: 0 | EZ69: 0 | FA69: 0 | FB69: 0 | FE69: 0 | FF69: 0 | FH69: 0 | FI69: 0 | FJ69: 0 | FM69: 0 | FN69: 0 | FP69: 717.0010859 | FQ69: 0 | FR69: 717.0010859
A70: 13158 | B70: AppalachnKentuckyPwrTelecomOps | C70: 22583.39114 | D70: 13728.46446 | E70: 0 | F70: 36311.85559 | G70: 17278.09157 | H70: 13527.33896 | I70: 0 | J70: 30805.43053 | K70: 24214.86559 | L70: 20123.69692 | M70: 0 | N70: 44338.56251 | O70: 4622.321431 | P70: 11755.9407 | Q70: 0 | R70: 16378.26213 | S70: 8238.465496 | T70: 12525.07054 | U70: 0 | V70: 20763.53603 | W70: 6038.532635 | X70: 26833.44668 | Y70: 0 | Z70: 32871.97931 | AA70: 8884.343287 | AB70: 22147.83522 | AC70: 0 | AD70: 31032.1785 | AE70: 9357.140669 | AF70: 16555.46252 | AG70: 0 | AH70: 25912.60319 | AI70: 17486.79073 | AJ70: 21717.41605 | AK70: 0 | AL70: 39204.20678 | AM70: 9231.796015 | AN70: 12376.24677 | AO70: 0 | AP70: 21608.04279 | AQ70: 4776.046877 | AR70: 4543.272835 | AS70: 0 | AT70: 9319.319711 | AU70: 313.3473159 | AV70: 5088.322843 | AW70: 0 | AX70: 5401.670159 | AY70: 221.088321 | AZ70: 11360.21853 | BA70: 0 | BB70: 11581.30685 | BC70: 103.5138148 | BD70: 9801.118972 | BE70: 0 | BF70: 9904.632786 | BG70: -185.7853171 | BH70: 10488.37974 | BI70: 0 | BJ70: 10302.59443 | BK70: 117.6102973 | BL70: 10307.36503 | BM70: 0 | BN70: 10424.97532 | BO70: 476.589031 | BP70: 6603.909143 | BQ70: 0 | BR70: 7080.498174 | BS70: 1912.906301 | BT70: 8789.552748 | BU70: 1.136868377e-13 | BV70: 10702.45905 | BW70: 989.3573828 | BX70: 10785.38164 | BY70: 0 | BZ70: 11774.73902 | CA70: 974.1062806 | CB70: 15827.92009 | CC70: 0 | CD70: 16802.02638 | CE70: 181.5274531 | CF70: 7646.699196 | CG70: 0 | CH70: 7828.226649 | CI70: -6867.015034 | CJ70: 15016.51692 | CK70: 0 | CL70: 8149.50189 | CM70: 271.6707237 | CN70: 10707.51277 | CO70: 0 | CP70: 10979.18349 | CQ70: 79.88830046 | CR70: 6368.140823 | CS70: 0 | CT70: 6448.029123 | CU70: 651.8266558 | CV70: 11415.54683 | CW70: 0 | CX70: 12067.37348 | CY70: 753.2785865 | CZ70: 8984.560369 | DA70: 0 | DB70: 9737.838955 | DC70: 361.6449317 | DD70: 12160.22973 | DE70: 0 | DF70: 12521.87466 | DG70: 564.9598784 | DH70: 9941.423107 | DI70: 0 | DJ70: 10506.38299 | DK70: 1102.175833 | DL70: 6603.57319 | DM70: 0 | DN70: 7705.749023 | DO70: 1121.964911 | DP70: 9528.298234 | DQ70: 0 | DR70: 10650.26314 | DS70: 1785.720341 | DT70: 9550.955883 | DU70: 0 | DV70: 11336.67622 | DW70: 1573.265669 | DX70: 10459.93955 | DY70: 0 | DZ70: 12033.20522 | EA70: 555.7668978 | EB70: 10072.39345 | EC70: 0 | ED70: 10628.16035 | EE70: 1407.348106 | EF70: 12492.49592 | EG70: 0 | EH70: 13899.84403 | EI70: 579.5377756 | EJ70: 10264.06663 | EK70: 0 | EL70: 10843.6044 | EM70: 1.678596289 | EN70: 13725.98222 | EO70: 0 | EP70: 13727.66081 | EQ70: 0.40270845 | ER70: 12214.48991 | ES70: 0 | ET70: 12214.89262 | EU70: 1368.133513 | EV70: 8993.438295 | EW70: 0 | EX70: 10361.57181 | EY70: 1499.416586 | EZ70: 6386.384636 | FA70: 0 | FB70: 7885.801222 | FC70: -806.5038374 | FD70: 4640.720448 | FE70: 0 | FF70: 3834.21661 | FG70: 591.5770267 | FH70: 9457.686889 | FJ70: 10049.26392 | FK70: 1081.288915 | FL70: 9255.556248 | FN70: 10336.84516 | FO70: 2385.723764 | FP70: 14303.81413 | FQ70: 0 | FR70: 16689.5379
A71: 13403 | B71: Mitchell Alloc/WPCo Billing | C71: -61837.98055 | D71: -1213080.172 | F71: -1274918.152 | G71: -107848.5123 | H71: -799491.3512 | J71: -907339.8635 | K71: -79884.67929 | L71: 385027.2022 | N71: 305142.5229 | O71: -37396.67512 | P71: -920509.6083 | R71: -957906.2834 | S71: -32464.2864 | T71: -958620.6615 | V71: -991084.9479 | W71: -43152.18541 | X71: -974413.6066 | Z71: -1017565.792 | AA71: -36593.01759 | AB71: -1026667.56 | AD71: -1063260.578 | AE71: -41626.79105 | AF71: -925088.1049 | AH71: -966714.896 | AI71: -64388.84615 | AJ71: -1362848.442 | AL71: -1427237.289 | AM71: -37655.10122 | AN71: -838944.7286 | AP71: -876599.8298 | AQ71: -46717.59996 | AR71: -864274.49 | AT71: -910992.0899 | AU71: -81717.26183 | AV71: -1057641.493 | AX71: -1139358.754 | AY71: -38847.76051 | AZ71: -1153555.985 | BB71: -1192403.746 | BC71: -26972.97392 | BD71: -854488.5868 | BF71: -881461.5607 | BG71: -119319.4987 | BH71: -1420639.833 | BJ71: -1539959.332 | BK71: -59346.4748 | BL71: -1088909.032 | BN71: -1148255.507 | BO71: -25214.56193 | BP71: -981859.3512 | BR71: -1007073.913 | BS71: -32658.10558 | BT71: -947780.3982 | BV71: -980438.5038 | BW71: -15520.28526 | BX71: -1076960.49 | BZ71: -1092480.776 | CA71: -99914.90557 | CB71: -1182328.804 | CD71: -1282243.71 | CE71: -32963.85156 | CF71: -934387.3897 | CH71: -967351.2413 | CI71: -21641.5412 | CJ71: -989582.5811 | CL71: -1011224.122 | CM71: -57010.43837 | CN71: -916611.8876 | CP71: -973622.326 | CQ71: -52607.67931 | CR71: -852109.5996 | CT71: -904717.2789 | CU71: -80683.7705 | CV71: -1260939.41 | CX71: -1341623.181 | CY71: -24680.16727 | CZ71: -852568.5623 | DB71: -877248.7296 | DC71: -56026.40947 | DD71: -3015270.286 | DF71: -3071296.695 | DG71: -63606.15802 | DH71: -921670.4401 | DJ71: -985276.5982 | DK71: -43541.71733 | DL71: -838737.9871 | DN71: -882279.7044 | DO71: -47892.68787 | DP71: -882855.5346 | DR71: -930748.2225 | DS71: -62296.93255 | DT71: -818719.8837 | DV71: -881016.8163 | DW71: -50099.85235 | DX71: -1397568.736 | DZ71: -1447668.588 | EA71: -21717.324 | EB71: -882801.0628 | ED71: -904518.3868 | EE71: -23416.89159 | EF71: -997970.1699 | EG71: -131.1821298 | EH71: -1021518.244 | EI71: -31489.9692 | EJ71: -868271.4282 | EL71: -899761.3974 | EM71: -24162.47305 | EN71: -1136495.195 | EP71: -1160657.668 | EQ71: -56384.50914 | ER71: -1306710.457 | ET71: -1363094.966 | EU71: -18091.46607 | EV71: -792612.8633 | EX71: -810704.3294 | EY71: -14402.10668 | EZ71: -760608.8629 | FB71: -775010.9695 | FC71: -10501.52034 | FD71: -543849.2994 | FF71: -554350.8197 | FG71: -18207.72548 | FH71: -704839.5609 | FJ71: -723047.2864 | FK71: -20965.95089 | FL71: -846920.036 | FN71: -867885.9869 | FO71: -10237.83416 | FP71: -1288902.515 | FR71: -1299140.349
A72: 13448 | B72: Ashland District Support | C72: 15555.04359 | D72: 4514.572809 | E72: 0 | F72: 20069.6164 | G72: 13669.61417 | H72: 4592.450075 | I72: 0 | J72: 18262.06425 | K72: 16393.642 | L72: 10137.58505 | M72: -2.273736754e-13 | N72: 26531.22705 | O72: 10450.76842 | P72: 6262.298199 | Q72: 0 | R72: 16713.06662 | S72: 13194.27555 | T72: 4415.193347 | U72: -2.842170943e-14 | V72: 17609.46889 | W72: 9367.637418 | X72: 8169.311513 | Y72: 0 | Z72: 17536.94893 | AA72: 12787.47177 | AB72: 6343.153918 | AC72: 0 | AD72: 19130.62569 | AE72: 8958.095759 | AF72: 10140.26611 | AG72: 0 | AH72: 19098.36186 | AI72: 11953.48489 | AJ72: 9694.87607 | AK72: 3644.95 | AL72: 25293.31096 | AM72: 5830.686502 | AN72: 8937.637267 | AO72: 0 | AP72: 14768.32377 | AQ72: 6628.209764 | AR72: 8714.872609 | AS72: 0 | AT72: 15343.08237 | AU72: 8616.884932 | AV72: 10226.26921 | AW72: 39.26 | AX72: 18882.41414 | AY72: 8674.740452 | AZ72: 8287.319762 | BA72: 0 | BB72: 16962.06021 | BC72: 10745.446 | BD72: 8315.991879 | BE72: 0 | BF72: 19061.43788 | BG72: 8383.230375 | BH72: 7321.092803 | BI72: 0 | BJ72: 15704.32318 | BK72: 3113.336857 | BL72: 4584.277115 | BM72: 0 | BN72: 7697.613972 | BO72: 2801.333769 | BP72: 2394.447961 | BQ72: 0 | BR72: 5195.781731 | BS72: 6750.69951 | BT72: 5247.532005 | BU72: 0 | BV72: 11998.23151 | BW72: 5292.282462 | BX72: 3324.216516 | BY72: 0 | BZ72: 8616.498979 | CA72: 9124.448048 | CB72: 7908.654687 | CC72: 5.684341886e-14 | CD72: 17033.10273 | CE72: 6299.90478 | CF72: 5066.771958 | CG72: 0 | CH72: 11366.67674 | CI72: 12779.35315 | CJ72: 5087.230411 | CK72: 0 | CL72: 17866.58356 | CM72: 14502.56432 | CN72: 5692.014601 | CO72: -1.136868377e-13 | CP72: 20194.57892 | CQ72: 7798.456036 | CR72: 2837.049049 | CS72: 0 | CT72: 10635.50509 | CU72: 14581.50181 | CV72: 5883.63222 | CW72: 0 | CX72: 20465.13403 | CY72: 13095.46339 | CZ72: 5118.421545 | DA72: 0 | DB72: 18213.88493 | DC72: 31049.25308 | DD72: 10536.37719 | DE72: -1.136868377e-13 | DF72: 41585.63027 | DG72: 23804.79978 | DH72: 4504.956351 | DI72: 0 | DJ72: 28309.75613 | DK72: 24395.63168 | DL72: 4558.19423 | DM72: 0 | DN72: 28953.82591 | DO72: 22906.2784 | DP72: 4416.792318 | DQ72: 0 | DR72: 27323.07071 | DS72: 26752.79746 | DT72: 5046.71612 | DU72: 0 | DV72: 31799.51358 | DW72: 34182.7665 | DX72: 6484.299972 | DY72: 0 | DZ72: 40667.06648 | EA72: 25389.64599 | EB72: 7795.93426 | EC72: 0 | ED72: 33185.58025 | EE72: 37710.67796 | EF72: 13385.67513 | EG72: 0 | EH72: 51096.35309 | EI72: 28530.99097 | EJ72: 9241.908385 | EK72: -5.684341886e-14 | EL72: 37772.89935 | EM72: 30531.17839 | EN72: 10833.10747 | EO72: -1.136868377e-13 | EP72: 41364.28586 | EQ72: 41668.93292 | ER72: 24603.61026 | ES72: 3.410605132e-13 | ET72: 66272.54318 | EU72: 27665.30977 | EV72: 11448.28624 | EW72: 0 | EX72: 39113.59601 | EY72: 29886.97652 | EZ72: 12124.55433 | FA72: -4.547473509e-13 | FB72: 42011.53085 | FC72: 24798.29592 | FD72: 11251.83088 | FE72: -6.821210263e-13 | FF72: 36050.1268 | FG72: 31183.72745 | FH72: 12513.73546 | FI72: -4.547473509e-13 | FJ72: 43697.46291 | FK72: 26006.56421 | FL72: 8880.736091 | FM72: 2.842170943e-13 | FN72: 34887.30031 | FO72: 43088.04859 | FP72: 13771.87771 | FQ72: -2.273736754e-13 | FR72: 56859.9263
A73: 13449 | B73: Hazard District Support | C73: 13841.10117 | D73: 3812.541725 | E73: 0 | F73: 17653.64289 | G73: 13922.22789 | H73: 3000.329961 | I73: 0 | J73: 16922.55785 | K73: 17975.29515 | L73: 6993.429822 | M73: 0 | N73: 24968.72497 | O73: 10973.44968 | P73: 2991.56278 | Q73: 0 | R73: 13965.01246 | S73: 12452.08555 | T73: 5535.838597 | U73: 863.6881568 | V73: 18851.6123 | W73: 13630.63144 | X73: 4444.213409 | Y73: 0 | Z73: 18074.84485 | AA73: 13018.86187 | AB73: 5606.98999 | AC73: 0 | AD73: 18625.85186 | AE73: 9220.834917 | AF73: 3817.312889 | AG73: 0 | AH73: 13038.14781 | AI73: 19316.68253 | AJ73: 6545.380511 | AK73: 0 | AL73: 25862.06304 | AM73: 8982.174053 | AN73: 3618.97926 | AO73: 0 | AP73: 12601.15331 | AQ73: 11235.96532 | AR73: 4860.682152 | AS73: 0 | AT73: 16096.64747 | AU73: 14603.28378 | AV73: 4626.993085 | AW73: 0 | AX73: 19230.27687 | AY73: 7314.972389 | AZ73: 3321.18419 | BA73: 0 | BB73: 10636.15658 | BC73: 5837.966382 | BD73: 5005.155529 | BE73: 0 | BF73: 10843.12191 | BG73: 13717.8662 | BH73: 10811.59882 | BI73: 0 | BJ73: 24529.46502 | BK73: 11228.64881 | BL73: 8607.003704 | BM73: 3.410605132e-13 | BN73: 19835.65251 | BO73: 12717.52224 | BP73: 5661.38072 | BQ73: 568.8492289 | BR73: 18947.75219 | BS73: 13552.17246 | BT73: 5662.816601 | BU73: 0 | BV73: 19214.98906 | BW73: 16338.92609 | BX73: 5881.739753 | BY73: 0 | BZ73: 22220.66584 | CA73: 19284.50322 | CB73: 5528.447819 | CC73: 0 | CD73: 24812.95104 | CE73: 16524.91259 | CF73: 3503.048366 | CG73: 0 | CH73: 20027.96096 | CI73: 14970.63261 | CJ73: 4130.402539 | CK73: 0 | CL73: 19101.03515 | CM73: 14383.2406 | CN73: 4216.123997 | CO73: 0 | CP73: 18599.3646 | CQ73: 6417.505249 | CR73: 2264.813677 | CS73: 0 | CT73: 8682.318926 | CU73: 17597.1113 | CV73: 4012.592401 | CW73: 0 | CX73: 21609.7037 | CY73: 14712.88517 | CZ73: 3076.84625 | DA73: 0 | DB73: 17789.73142 | DC73: 24634.50387 | DD73: 7728.32692 | DE73: -1.705302566e-13 | DF73: 32362.83079 | DG73: 19904.17584 | DH73: 7456.694112 | DI73: 548.7267185 | DJ73: 27909.59667 | DK73: 19475.2026 | DL73: 8567.045726 | DM73: 0 | DN73: 28042.24832 | DO73: 18595.89888 | DP73: 6402.773923 | DQ73: 0 | DR73: 24998.67281 | DS73: 23452.63459 | DT73: 5058.144048 | DU73: 0 | DV73: 28510.77864 | DW73: 29744.98487 | DX73: 8147.865776 | DY73: 0 | DZ73: 37892.85064 | EA73: 27696.40053 | EB73: 9011.591063 | EC73: 0 | ED73: 36707.99159 | EE73: 38707.75677 | EF73: 6609.430873 | EG73: 0 | EH73: 45317.18765 | EI73: 25579.55586 | EJ73: 11890.74733 | EK73: -5.684341886e-14 | EL73: 37470.30318 | EM73: 29814.8843 | EN73: 11663.38671 | EO73: 0 | EP73: 41478.27101 | EQ73: 32502.28358 | ER73: 19333.39303 | ES73: -4.547473509e-13 | ET73: 51835.67661 | EU73: 24278.4866 | EV73: 13973.65073 | EW73: 4.547473509e-13 | EX73: 38252.13733 | EY73: 22137.9943 | EZ73: 13700.12969 | FA73: 4.547473509e-13 | FB73: 35838.12399 | FC73: 21587.53967 | FD73: 10362.54336 | FE73: -1.136868377e-12 | FF73: 31950.08304 | FG73: 28842.9577 | FH73: 13966.98515 | FI73: 4.547473509e-13 | FJ73: 42809.94285 | FK73: 21168.60926 | FL73: 10959.1575 | FM73: -4.547473509e-13 | FN73: 32127.76676 | FO73: 31333.87156 | FP73: 18587.08885 | FQ73: 9.094947018e-13 | FR73: 49920.96042
A74: 13450 | B74: Pikeville District Support | C74: 15384.74242 | D74: 4240.53268 | E74: 0 | F74: 19625.2751 | G74: 15187.24546 | H74: 4641.706741 | I74: 0 | J74: 19828.95221 | K74: 20878.64864 | L74: 11614.04413 | M74: 2.273736754e-13 | N74: 32492.69278 | O74: 13221.97448 | P74: 4332.521774 | Q74: 0 | R74: 17554.49626 | S74: 10157.04141 | T74: 4948.32889 | U74: 617.5429921 | V74: 15722.91329 | W74: 8058.601453 | X74: 4965.14765 | Y74: 0 | Z74: 13023.7491 | AA74: 8487.162052 | AB74: 5218.221552 | AC74: 0 | AD74: 13705.3836 | AE74: 15492.0406 | AF74: 5979.648221 | AG74: 0 | AH74: 21471.68882 | AI74: 20554.10026 | AJ74: 8249.599595 | AK74: 0 | AL74: 28803.69986 | AM74: 12075.20583 | AN74: 3709.38558 | AO74: 0 | AP74: 15784.59141 | AQ74: 10478.64203 | AR74: 8162.630981 | AS74: 0 | AT74: 18641.27301 | AU74: 13601.55136 | AV74: 6157.445569 | AW74: 0 | AX74: 19758.99693 | AY74: 17196.76947 | AZ74: 5540.305519 | BA74: 0 | BB74: 22737.07499 | BC74: 15853.46313 | BD74: 6011.047837 | BF74: 21864.51096 | BG74: 15407.26072 | BH74: 12196.7481 | BI74: 0 | BJ74: 27604.00883 | BK74: 12867.6017 | BL74: 7784.499545 | BM74: -2.273736754e-13 | BN74: 20652.10124 | BO74: 10340.18584 | BP74: 10586.3298 | BQ74: 1228.639137 | BR74: 22155.15477 | BS74: 11034.84853 | BT74: 6286.477199 | BU74: 0 | BV74: 17321.32573 | BW74: 17591.4045 | BX74: 7857.514695 | BY74: 0 | BZ74: 25448.9192 | CA74: 23083.38349 | CB74: 8287.259146 | CC74: 0 | CD74: 31370.64263 | CE74: 17178.83844 | CF74: 8655.487811 | CG74: 0 | CH74: 25834.32625 | CI74: 22952.19102 | CJ74: 8396.571842 | CK74: 0 | CL74: 31348.76287 | CM74: 20741.28358 | CN74: 10522.77893 | CO74: -5.684341886e-14 | CP74: 31264.0625 | CQ74: 10138.56641 | CR74: 4178.179604 | CS74: -1.136868377e-13 | CT74: 14316.74601 | CU74: 24815.55875 | CV74: 5437.416996 | CW74: 0 | CX74: 30252.97574 | CY74: 21115.97763 | CZ74: 5788.619198 | DA74: 0 | DB74: 26904.59683 | DC74: 34582.65788 | DD74: 13263.23963 | DE74: -5.115907697e-13 | DF74: 47845.89751 | DG74: 21138.28008 | DH74: 6625.74601 | DI74: 0 | DJ74: 27764.02609 | DK74: 24557.62453 | DL74: 6897.627791 | DM74: 0 | DN74: 31455.25232 | DO74: 20796.10584 | DP74: 7560.907377 | DQ74: -5.684341886e-14 | DR74: 28357.01322 | DS74: 23445.26888 | DT74: 7140.841528 | DU74: 0 | DV74: 30586.11041 | DW74: 36071.32478 | DX74: 11066.7553 | DY74: 0 | DZ74: 47138.08008 | EA74: 29877.29265 | EB74: 8619.44673 | EC74: 0 | ED74: 38496.73938 | EE74: 33859.48268 | EF74: 8537.842912 | EG74: 0 | EH74: 42397.3256 | EI74: 27251.94726 | EJ74: 9320.592198 | EK74: 1.136868377e-13 | EL74: 36572.53946 | EM74: 35694.86652 | EN74: 8483.927209 | EO74: -5.684341886e-14 | EP74: 44178.79373 | EQ74: 34757.13397 | ER74: 19286.80447 | ES74: -8.526512829e-13 | ET74: 54043.93844 | EU74: 22319.11416 | EV74: 14207.96566 | EW74: 0 | EX74: 36527.07982 | EY74: 28670.58517 | EZ74: 14777.36543 | FA74: -4.547473509e-13 | FB74: 43447.95061 | FC74: 25678.43593 | FD74: 19188.52683 | FE74: 3.410605132e-12 | FF74: 44866.96276 | FG74: 31391.5059 | FH74: 19232.49311 | FI74: 1.023181539e-12 | FJ74: 50623.99901 | FK74: 28997.22088 | FL74: 14770.96456 | FM74: 1.108446668e-12 | FN74: 43768.18544 | FO74: 46416.43934 | FP74: 21925.45563 | FQ74: 0 | FR74: 68341.89497
A75: 13453 | B75: KY Customer Services | C75: 9201.794826 | D75: 87854.62621 | E75: 0 | F75: 97056.42103 | G75: 8226.528207 | H75: 81996.05089 | I75: 0 | J75: 90222.5791 | K75: 13635.71274 | L75: 122979.3371 | M75: -1.364242053e-12 | N75: 136615.0498 | O75: 5983.268623 | P75: 64735.76617 | Q75: 0 | R75: 70719.03479 | S75: 6561.499125 | T75: 51731.11245 | U75: 0 | V75: 58292.61157 | W75: 6293.368987 | X75: 55409.74346 | Y75: -3.552713679e-15 | Z75: 61703.11244 | AA75: 7225.232099 | AB75: 45617.26607 | AC75: 4.97379915e-14 | AD75: 52842.49817 | AE75: 6961.133814 | AF75: 48042.0253 | AG75: 0 | AH75: 55003.15911 | AI75: 9317.952901 | AJ75: 65214.63498 | AK75: 0 | AL75: 74532.58789 | AM75: 5668.533398 | AN75: 39215.35775 | AO75: 0 | AP75: 44883.89115 | AQ75: 5578.459083 | AR75: 49173.5326 | AS75: 0 | AT75: 54751.99169 | AU75: 6408.645591 | AV75: 58205.11372 | AW75: 0 | AX75: 64613.75931 | AY75: 7464.65646 | AZ75: 56030.86957 | BA75: 0 | BB75: 63495.52603 | BC75: 6408.693779 | BD75: 54787.25582 | BE75: 0 | BF75: 61195.9496 | BG75: 8986.589266 | BH75: 68362.0332 | BI75: -2.842170943e-14 | BJ75: 77348.62246 | BK75: 7426.115977 | BL75: 54452.90211 | BM75: 3.694822226e-13 | BN75: 61879.01808 | BO75: 6426.061805 | BP75: 49981.05505 | BQ75: 0 | BR75: 56407.11686 | BS75: 7055.878707 | BT75: 67815.16915 | BU75: 0 | BV75: 74871.04785 | BW75: 7079.725515 | BX75: 60213.91021 | BY75: 0 | BZ75: 67293.63573 | CA75: 7237.043293 | CB75: 96610.9677 | CC75: -4.618527782e-14 | CD75: 103848.011 | CE75: 2675.47953 | CF75: 69701.58147 | CG75: 0 | CH75: 72377.061 | CI75: 5285.220713 | CJ75: 76585.6923 | CK75: 0 | CL75: 81870.91301 | CM75: 7920.852873 | CN75: 75734.61198 | CO75: 0 | CP75: 83655.46485 | CQ75: 2365.081198 | CR75: 40417.91464 | CS75: 2.842170943e-14 | CT75: 42782.99584 | CU75: 6121.122347 | CV75: 77410.50962 | CW75: 0 | CX75: 83531.63197 | CY75: 4547.034417 | CZ75: 61602.71758 | DA75: 0 | DB75: 66149.75199 | DC75: 7746.077404 | DD75: 102239.0534 | DE75: -1.136868377e-13 | DF75: 109985.1308 | DG75: 3614.928975 | DH75: 70635.84546 | DI75: 0 | DJ75: 74250.77444 | DK75: 5519.503862 | DL75: 72506.42771 | DM75: 0 | DN75: 78025.93157 | DO75: 4799.12641 | DP75: 79480.0781 | DQ75: 0 | DR75: 84279.20451 | DS75: 5155.985992 | DT75: 78059.54045 | DU75: 0 | DV75: 83215.52644 | DW75: 7806.514333 | DX75: 105416.8118 | DY75: 0 | DZ75: 113223.3261 | EA75: 3661.481919 | EB75: 82096.01262 | EC75: 0 | ED75: 85757.49454 | EE75: 6354.500221 | EF75: 105479.8307 | EG75: 0 | EH75: 111834.3309 | EI75: 5451.280677 | EJ75: 90353.15494 | EK75: 0 | EL75: 95804.43562 | EM75: 6332.7437 | EN75: 102285.8499 | EO75: 2.842170943e-14 | EP75: 108618.5936 | EQ75: 7069.372295 | ER75: 112303.6052 | ES75: 0 | ET75: 119372.9775 | EU75: 5760.40808 | EV75: 77502.10459 | EW75: 0 | EX75: 83262.51267 | EY75: 5360.521522 | EZ75: 79649.52923 | FA75: 0 | FB75: 85010.05075 | FC75: 9354.435738 | FD75: 58423.99682 | FE75: -4.547473509e-13 | FF75: 67778.43256 | FG75: 7604.336531 | FH75: 79261.43495 | FI75: 5.684341886e-14 | FJ75: 86865.77148 | FK75: 7668.804351 | FL75: 74307.1356 | FM75: 0 | FN75: 81975.93995 | FO75: 8780.696913 | FP75: 120440.2487 | FQ75: 0 | FR75: 129220.9456
A76: 13454 | B76: KY Reliability | C76: 38611.09003 | D76: 20997.61032 | E76: 2.842170943e-14 | F76: 59608.70035 | G76: 33825.16712 | H76: 21492.44339 | I76: 0 | J76: 55317.6105 | K76: 43057.12747 | L76: 43132.81364 | M76: -1.023181539e-12 | N76: 86189.94111 | O76: 29189.34818 | P76: 24641.1623 | Q76: 0 | R76: 53830.51048 | S76: 30716.50543 | T76: 21879.86561 | U76: 469.9416931 | V76: 53066.31273 | W76: 25608.02678 | X76: 28721.3464 | Y76: 699.0435987 | Z76: 55028.41678 | AA76: 28008.54768 | AB76: 27662.14691 | AC76: 0 | AD76: 55670.69459 | AE76: 23951.48769 | AF76: 29155.1099 | AG76: 0 | AH76: 53106.59758 | AI76: 45043.60889 | AJ76: 40947.10779 | AK76: 0 | AL76: 85990.71668 | AM76: 27154.05758 | AN76: 26559.55987 | AO76: 0 | AP76: 53713.61745 | AQ76: 28598.05286 | AR76: 29423.09283 | AS76: 0 | AT76: 58021.14569 | AU76: 33902.03674 | AV76: 37963.79889 | AW76: 0 | AX76: 71865.83563 | AY76: 39439.29193 | AZ76: 32827.25919 | BA76: 0 | BB76: 72266.55112 | BC76: 31847.38091 | BD76: 34366.76384 | BE76: 0 | BF76: 66214.14474 | BG76: 50406.83568 | BH76: 40300.46266 | BI76: 4.547473509e-13 | BJ76: 90707.29835 | BK76: 39381.29868 | BL76: 34570.14511 | BM76: 6.821210263e-13 | BN76: 73951.44379 | BO76: 40202.70008 | BP76: 19299.6921 | BQ76: 604.7101396 | BR76: 60107.10231 | BS76: 41951.18478 | BT76: 20423.85688 | BU76: 0 | BV76: 62375.04166 | BW76: 43124.61302 | BX76: 24269.76124 | BY76: 0 | BZ76: 67394.37426 | CA76: 61830.29946 | CB76: 38776.58507 | CC76: 1.136868377e-13 | CD76: 100606.8845 | CE76: 44324.11047 | CF76: 22098.93993 | CG76: 0 | CH76: 66423.0504 | CI76: 52716.80972 | CJ76: 19146.83682 | CK76: 0 | CL76: 71863.64653 | CM76: 51501.98794 | CN76: 18050.99306 | CO76: 7.105427358e-15 | CP76: 69552.98101 | CQ76: 29350.12113 | CR76: 10967.65335 | CS76: 0 | CT76: 40317.77448 | CU76: 63721.51477 | CV76: 16842.40482 | CW76: 0 | CX76: 80563.91959 | CY76: 46204.40884 | CZ76: 16924.29974 | DA76: 0 | DB76: 63128.70858 | DC76: 59669.46168 | DD76: 37918.085 | DE76: 124.26 | DF76: 97711.80667 | DG76: 38560.8905 | DH76: 26903.88039 | DI76: 1259.070549 | DJ76: 66723.84144 | DK76: 40327.43681 | DL76: 18397.14486 | DM76: 1751.13 | DN76: 60475.71167 | DO76: 31380.84754 | DP76: 23573.99135 | DQ76: -2.273736754e-13 | DR76: 54954.83889 | DS76: 29350.15792 | DT76: 21508.67966 | DU76: 71.63 | DV76: 50930.46758 | DW76: 35891.61175 | DX76: 30576.87284 | DY76: 0 | DZ76: 66468.48459 | EA76: 23828.88784 | EB76: 15576.20455 | EC76: 0 | ED76: 39405.09239 | EE76: 33674.43634 | EF76: 25239.84233 | EG76: 0 | EH76: 58914.27867 | EI76: 25106.17449 | EJ76: 18654.42076 | EK76: 165.9 | EL76: 43926.49525 | EM76: 21978.07549 | EN76: 25425.49877 | EO76: 311.68 | EP76: 47715.25425 | EQ76: 34531.08661 | ER76: 25130.31905 | ES76: 216.8 | ET76: 59878.20565 | EU76: 23843.95613 | EV76: 16125.8756 | EW76: 473.1219513 | EX76: 40442.95368 | EY76: 32171.41823 | EZ76: 22087.74746 | FA76: 157.49 | FB76: 54416.65569 | FC76: 19280.11725 | FD76: 21765.9778 | FE76: 77.74 | FF76: 41123.83505 | FG76: 29487.34649 | FH76: 26394.24029 | FI76: 151.14 | FJ76: 56032.72678 | FK76: 30081.76417 | FL76: 14315.30377 | FM76: 0 | FN76: 44397.06793 | FO76: 45498.15024 | FP76: 28083.90715 | FQ76: 214.67 | FR76: 73796.72739
A77: 13455 | B77: KY Reliability Design | C77: 22992.53012 | D77: 1679.184476 | E77: 569.01 | F77: 25240.7246 | G77: 18731.09284 | H77: 2094.393822 | I77: 1156.11 | J77: 21981.59666 | K77: 25187.13491 | L77: 11076.5602 | M77: 1265.8 | N77: 37529.49511 | O77: 15612.82708 | P77: 3418.731782 | Q77: 1721.89 | R77: 20753.44886 | S77: 16574.55173 | T77: 3954.831444 | U77: 7004.3 | V77: 27533.68318 | W77: 20744.05913 | X77: 2282.517159 | Y77: 4388.34 | Z77: 27414.91629 | AA77: 14464.27082 | AB77: 1618.344469 | AC77: 3820.23 | AD77: 19902.84529 | AE77: 19248.98404 | AF77: 5580.141217 | AG77: 3562.82 | AH77: 28391.94525 | AI77: 30119.16801 | AJ77: 1402.395462 | AK77: 18148.38 | AL77: 49669.94347 | AM77: 14762.16235 | AN77: 337.7114696 | AO77: 4035.74 | AP77: 19135.61382 | AQ77: 13888.62718 | AR77: 192.2347444 | AS77: 7277.22 | AT77: 21358.08192 | AU77: 27982.65997 | AV77: 1882.754308 | AW77: 4927.3 | AX77: 34792.71428 | AY77: 25490.98185 | AZ77: 1081.147392 | BA77: 3943.92 | BB77: 30516.04924 | BC77: 23141.49898 | BD77: 359.7847679 | BE77: 5942.27 | BF77: 29443.55374 | BG77: 36538.29658 | BH77: 10359.73427 | BI77: 2195.42 | BJ77: 49093.45085 | BK77: 18927.3829 | BL77: 12931.75187 | BM77: 324.03 | BN77: 32183.16477 | BO77: 46335.18414 | BP77: 5375.63846 | BQ77: -44400 | BR77: 7310.822596 | BS77: 15207.34901 | BT77: 1420.198139 | BU77: 518.88 | BV77: 17146.42715 | BW77: 23937.0516 | BX77: -821.4991781 | BY77: 1703.93 | BZ77: 24819.48242 | CA77: 25746.49754 | CB77: 4759.791902 | CC77: 171.28 | CD77: 30677.56944 | CE77: 15404.27874 | CF77: 459.8957872 | CG77: 1478.04 | CH77: 17342.21453 | CI77: 15469.83794 | CJ77: 303.1483296 | CK77: 2319.46 | CL77: 18092.44627 | CM77: 18853.67105 | CN77: 641.496634 | CO77: -1284.73 | CP77: 18210.43768 | CQ77: 12641.67216 | CR77: 521.1958228 | CS77: 0 | CT77: 13162.86798 | CU77: 26074.13505 | CV77: 819.852217 | CW77: 0 | CX77: 26893.98726 | CY77: 23718.91802 | CZ77: 474.6513042 | DA77: 0 | DB77: 24193.56933 | DC77: 32453.75666 | DD77: 5355.15688 | DE77: 0 | DF77: 37808.91354 | DG77: 19013.79859 | DH77: 1659.344655 | DI77: 90.25 | DJ77: 20763.39324 | DK77: 21330.01227 | DL77: 851.3732431 | DM77: -760.98 | DN77: 21420.40552 | DO77: 18911.72104 | DP77: 2724.714941 | DQ77: 0 | DR77: 21636.43598 | DS77: 17536.23101 | DT77: 2079.670974 | DU77: 0 | DV77: 19615.90199 | DW77: 26008.37057 | DX77: 1605.622754 | DY77: 0 | DZ77: 27613.99332 | EA77: 20940.36364 | EB77: 1146.275065 | EC77: -9193.42 | ED77: 12893.21871 | EE77: 10505.80049 | EF77: 520.0622479 | EG77: 0 | EH77: 11025.86274 | EI77: 8861.129295 | EJ77: 1206.782166 | EK77: 2.842170943e-14 | EL77: 10067.91146 | EM77: 10039.69448 | EN77: 1364.273614 | EO77: 1.421085472e-14 | EP77: 11403.9681 | EQ77: 11567.92357 | ER77: 1224.653958 | ES77: 0 | ET77: 12792.57752 | EU77: 4964.643221 | EV77: 191.5207869 | EW77: 0 | EX77: 5156.164008 | EY77: 4194.316882 | FA77: -3391.74 | FB77: 802.5768817 | FG77: 4304.70734 | FI77: -3728.49 | FJ77: 576.2173399
A78: 13523 | B78: TFS Capital Projects | AE78: 0 | AH78: 0
A79: 13537 | B79: Incentive Accrual EA | K79: -224.69 | L79: -526 | N79: -750.69 | O79: 224.69 | P79: 526 | R79: 750.69 | W79: -19.27 | X79: -45 | Z79: -64.27 | AA79: 19.27 | AB79: 45 | AD79: 64.27 | AI79: -304.86 | AJ79: -713 | AL79: -1017.86 | AM79: 304.86 | AN79: 713 | AP79: 1017.86 | AU79: 485.56 | AV79: 1131 | AX79: 1616.56 | AY79: -485.56 | AZ79: -1131 | BB79: -1616.56
A80: 13555 | B80: F Hazard Forestry | O80: 1018.459553 | P80: 4251.896926 | Q80: 0 | R80: 5270.356479 | S80: 2104.981602 | T80: 8359.401055 | U80: 1.065814104e-14 | V80: 10464.38266 | W80: 1943.797681 | X80: 7763.55207 | Y80: 0 | Z80: 9707.349751 | AA80: 2504.324741 | AB80: 8397.12656 | AC80: 0 | AD80: 10901.4513 | AE80: 1731.908167 | AF80: 7569.937696 | AG80: 0 | AH80: 9301.845863 | AI80: 5514.013831 | AJ80: 14449.50475 | AK80: 881.09 | AL80: 20844.60858 | AM80: 1807.070137 | AN80: 5839.267848 | AO80: 1367.46 | AP80: 9013.797985 | AQ80: 2207.982219 | AR80: 6743.06541 | AS80: 0 | AT80: 8951.047629 | AU80: 4146.482604 | AV80: 7276.093555 | AW80: 0 | AX80: 11422.57616 | AY80: 3588.381597 | AZ80: 8507.849505 | BA80: 0 | BB80: 12096.2311 | BC80: 2121.845335 | BD80: 8810.806347 | BE80: 224.4 | BF80: 11157.05168 | BG80: 3286.357187 | BH80: 10962.41809 | BI80: 556.36 | BJ80: 14805.13528 | BK80: 2882.418755 | BL80: 8394.953233 | BM80: 2.202682481e-13 | BN80: 11277.37199 | BO80: 3086.937557 | BP80: 7646.55658 | BQ80: 0 | BR80: 10733.49414 | BS80: 3539.518928 | BT80: 8611.312073 | BU80: 0 | BV80: 12150.831 | BW80: 2853.310825 | BX80: 7978.798533 | BY80: 0 | BZ80: 10832.10936 | CA80: 4636.911762 | CB80: 11088.72241 | CC80: 0 | CD80: 15725.63417 | CE80: 3463.780849 | CF80: 8717.261375 | CG80: 0 | CH80: 12181.04222 | CI80: 3286.884124 | CJ80: 9252.192354 | CK80: 0 | CL80: 12539.07648 | CM80: 3071.641569 | CN80: 8615.330801 | CO80: 0 | CP80: 11686.97237 | CQ80: 2152.031725 | CR80: 5079.791415 | CS80: 0 | CT80: 7231.82314 | CU80: 12366.53558 | CV80: 9755.233168 | CW80: -4940.77 | CX80: 17180.99875 | CY80: -1884.22277 | CZ80: 12593.57481 | DA80: 0 | DB80: 10709.35204 | DC80: 5882.104478 | DD80: 11649.55754 | DE80: 0 | DF80: 17531.66202 | DG80: 2901.77907 | DH80: 7776.578626 | DI80: 0 | DJ80: 10678.3577 | DK80: 3548.082321 | DL80: 7667.974594 | DM80: 0 | DN80: 11216.05692 | DO80: 3276.01255 | DP80: 6890.751207 | DQ80: 7.105427358e-15 | DR80: 10166.76376 | DS80: 3848.08652 | DT80: 7874.301791 | DU80: 0 | DV80: 11722.38831 | DW80: 5632.30688 | DX80: 11998.74446 | DY80: 0 | DZ80: 17631.05134 | EA80: 3332.699917 | EB80: 8205.498455 | EC80: 0 | ED80: 11538.19837 | EE80: 4828.740688 | EF80: 10952.78733 | EG80: 0 | EH80: 15781.52802 | EI80: 3392.811799 | EJ80: 7553.141991 | EK80: -7.105427358e-14 | EL80: 10945.95379 | EM80: 4052.452003 | EN80: 9230.75822 | EO80: -3.552713679e-15 | EP80: 13283.21022 | EQ80: 4934.54053 | ER80: 12088.69282 | ES80: 0 | ET80: 17023.23335 | EU80: 2729.474906 | EV80: 8561.119563 | EW80: 0 | EX80: 11290.59447 | EY80: 2501.991509 | EZ80: 8604.02125 | FA80: 0 | FB80: 11106.01276 | FC80: 2312.427057 | FD80: 7067.744799 | FE80: -7.105427358e-14 | FF80: 9380.171856 | FG80: 3450.273674 | FH80: 10050.65246 | FI80: 1.136868377e-13 | FJ80: 13500.92613 | FK80: 2313.822828 | FL80: 8819.487285 | FM80: 0 | FN80: 11133.31011 | FO80: 3425.556073 | FP80: 13224.17466 | FQ80: 0 | FR80: 16649.73074
A81: 13556 | B81: G Pikeville Forestry | O81: 667.5036122 | P81: 5084.837695 | Q81: 0 | R81: 5752.341308 | S81: 1616.415749 | T81: 10112.31246 | U81: 0 | V81: 11728.72821 | W81: 1643.857883 | X81: 10190.16884 | Y81: 0 | Z81: 11834.02672 | AA81: 2049.77786 | AB81: 9644.669871 | AC81: 0 | AD81: 11694.44773 | AE81: 1334.160811 | AF81: 9560.087404 | AG81: 0 | AH81: 10894.24821 | AI81: 5636.726878 | AJ81: 17355.90914 | AK81: 9.094947018e-13 | AL81: 22992.63602 | AM81: 1290.294292 | AN81: 8911.801627 | AO81: 0 | AP81: 10202.09592 | AQ81: 1030.393383 | AR81: 7793.809496 | AS81: 0 | AT81: 8824.202879 | AU81: 2222.212945 | AV81: 9767.729017 | AW81: 0 | AX81: 11989.94196 | AY81: 2546.889088 | AZ81: 9853.562645 | BA81: 0 | BB81: 12400.45173 | BC81: 2566.960116 | BD81: 9419.766475 | BE81: 0 | BF81: 11986.72659 | BG81: 3126.025741 | BH81: 13596.17031 | BI81: 0 | BJ81: 16722.19605 | BK81: 1608.876144 | BL81: 8947.891032 | BM81: 0 | BN81: 10556.76718 | BO81: 2296.433085 | BP81: 9232.401289 | BQ81: 0 | BR81: 11528.83437 | BS81: 1598.770524 | BT81: 9545.861106 | BU81: 0 | BV81: 11144.63163 | BW81: 2234.146226 | BX81: 11539.13296 | BY81: 0 | BZ81: 13773.27919 | CA81: 4185.212051 | CB81: 14094.52469 | CC81: 0 | CD81: 18279.73674 | CE81: 3777.727058 | CF81: 8333.145287 | CG81: 0 | CH81: 12110.87235 | CI81: 2310.490929 | CJ81: 7843.363785 | CK81: 0 | CL81: 10153.85471 | CM81: 4119.289917 | CN81: 9258.732933 | CO81: 0 | CP81: 13378.02285 | CQ81: 1779.396815 | CR81: 4940.748239 | CS81: 0 | CT81: 6720.145054 | CU81: 3852.997649 | CV81: 11897.96622 | CW81: 0 | CX81: 15750.96387 | CY81: 3282.989596 | CZ81: 8333.299989 | DA81: 0 | DB81: 11616.28959 | DC81: 5712.93905 | DD81: 12572.91227 | DE81: 0 | DF81: 18285.85132 | DG81: 2895.30777 | DH81: 9771.04412 | DI81: 0 | DJ81: 12666.35189 | DK81: 3282.617474 | DL81: 10083.66725 | DM81: 0 | DN81: 13366.28472 | DO81: 3713.699584 | DP81: 8592.946672 | DQ81: -7.105427358e-15 | DR81: 12306.64626 | DS81: 4149.489509 | DT81: 7224.535875 | DU81: 0 | DV81: 11374.02538 | DW81: 7482.671172 | DX81: 11517.00412 | DY81: 0 | DZ81: 18999.67529 | EA81: 3206.214594 | EB81: 7406.455148 | EC81: 0 | ED81: 10612.66974 | EE81: 5985.730063 | EF81: 7808.534631 | EG81: 0 | EH81: 13794.26469 | EI81: 5247.000667 | EJ81: 8582.130538 | EK81: 1.136868377e-13 | EL81: 13829.13121 | EM81: 5291.084331 | EN81: 9111.658846 | EO81: 0 | EP81: 14402.74318 | EQ81: 5284.162664 | ER81: 12140.66073 | ES81: 0 | ET81: 17424.8234 | EU81: 4206.826936 | EV81: 7997.841334 | EW81: 0 | EX81: 12204.66827 | EY81: 3845.715479 | EZ81: 7690.164689 | FA81: 0 | FB81: 11535.88017 | FC81: 3083.41943 | FD81: 6310.832256 | FE81: 0 | FF81: 9394.251686 | FG81: 3828.087755 | FH81: 8770.337704 | FI81: 0 | FJ81: 12598.42546 | FK81: 3877.046217 | FL81: 8273.412261 | FM81: 0 | FN81: 12150.45848 | FO81: 5895.869259 | FP81: 13550.93102 | FQ81: 0 | FR81: 19446.80028
A82: 13557 | B82: K Ashland Forestry | O82: 692.4370049 | P82: 3701.41593 | Q82: 0 | R82: 4393.852935 | S82: 1227.885498 | T82: 8853.574117 | U82: 0 | V82: 10081.45961 | W82: 1837.212573 | X82: 9502.441144 | Y82: 0 | Z82: 11339.65372 | AA82: 1162.555753 | AB82: 8829.321666 | AC82: 0 | AD82: 9991.877419 | AE82: 1076.902155 | AF82: 8468.949763 | AG82: 0 | AH82: 9545.851919 | AI82: 4013.119518 | AJ82: 16113.94574 | AK82: -6.252776075e-13 | AL82: 20127.06526 | AM82: 2069.72869 | AN82: 7574.589049 | AO82: 0 | AP82: 9644.317739 | AQ82: 2120.196087 | AR82: 8206.086046 | AS82: 0 | AT82: 10326.28213 | AU82: 2658.132822 | AV82: 9655.33615 | AW82: 0 | AX82: 12313.46897 | AY82: 3412.744435 | AZ82: 8722.98494 | BA82: 0 | BB82: 12135.72938 | BC82: 3078.89105 | BD82: 8275.171055 | BE82: 0 | BF82: 11354.0621 | BG82: 3485.699494 | BH82: 11655.61907 | BI82: 0 | BJ82: 15141.31857 | BK82: 1500.601607 | BL82: 7720.279965 | BM82: 0 | BN82: 9220.881572 | BO82: 2580.007313 | BP82: 8614.481829 | BQ82: 0 | BR82: 11194.48914 | BS82: 3004.105004 | BT82: 8899.344427 | BU82: 0 | BV82: 11903.44943 | BW82: 2901.01486 | BX82: 8010.58172 | BY82: 0 | BZ82: 10911.59658 | CA82: 4279.783713 | CB82: 11955.10946 | CC82: 0 | CD82: 16234.89318 | CE82: 2592.66215 | CF82: 8874.656108 | CG82: 0 | CH82: 11467.31826 | CI82: 2920.611046 | CJ82: 8853.471146 | CK82: 0 | CL82: 11774.08219 | CM82: 2603.320977 | CN82: 9287.151374 | CO82: 0 | CP82: 11890.47235 | CQ82: 2588.96241 | CR82: 3738.748155 | CS82: 0 | CT82: 6327.710565 | CU82: 3473.192525 | CV82: 8465.759998 | CW82: 0 | CX82: 11938.95252 | CY82: 2191.711116 | CZ82: 7810.090379 | DA82: 0 | DB82: 10001.8015 | DC82: 3668.834043 | DD82: 12675.74807 | DE82: 0 | DF82: 16344.58211 | DG82: 2576.870696 | DH82: 8563.297953 | DI82: 0 | DJ82: 11140.16865 | DK82: 2652.202695 | DL82: 9709.367397 | DM82: 0 | DN82: 12361.57009 | DO82: 2100.885391 | DP82: 8295.585274 | DQ82: 0 | DR82: 10396.47067 | DS82: 3048.597814 | DT82: 9455.047929 | DU82: 0 | DV82: 12503.64574 | DW82: 3224.732076 | DX82: 12575.96661 | DY82: 0 | DZ82: 15800.69869 | EA82: 1980.419495 | EB82: 9189.365768 | EC82: 0 | ED82: 11169.78526 | EE82: 3167.400222 | EF82: 12052.43699 | EG82: 0 | EH82: 15219.83722 | EI82: 3081.316116 | EJ82: 9687.62766 | EK82: 0 | EL82: 12768.94378 | EM82: 3550.025379 | EN82: 11229.35491 | EO82: 0 | EP82: 14779.38029 | EQ82: 2645.789776 | ER82: 12567.27872 | ES82: 0 | ET82: 15213.06849 | EU82: 1278.691742 | EV82: 9820.555606 | EW82: 0 | EX82: 11099.24735 | EY82: 1389.384556 | EZ82: 9652.680838 | FA82: 0 | FB82: 11042.06539 | FC82: 1037.904081 | FD82: 8071.96452 | FE82: 0 | FF82: 9109.868601 | FG82: 1759.634591 | FH82: 9336.443918 | FI82: 0 | FJ82: 11096.07851 | FK82: 1588.491292 | FL82: 7593.301856 | FM82: 0 | FN82: 9181.793149 | FO82: 2484.535045 | FP82: 14167.88085 | FQ82: 0 | FR82: 16652.4159
A83: 13580 | B83: APKP TOps Project Delivery | AQ83: 10352.06957 | AR83: 5028.532451 | AS83: 0 | AT83: 15380.60202 | AU83: 13993.08321 | AV83: 8704.513997 | AW83: 0 | AX83: 22697.59721 | AY83: 19046.083 | AZ83: 8199.107496 | BA83: 0 | BB83: 27245.19049 | BC83: 22373.21945 | BD83: 2700.296801 | BE83: 0 | BF83: 25073.51625 | BG83: 26375.70039 | BH83: 11900.47568 | BI83: 0 | BJ83: 38276.17606 | BK83: 15455.52973 | BL83: 7123.596506 | BM83: 0 | BN83: 22579.12624 | BO83: 20597.53054 | BP83: 10309.21741 | BQ83: 2.842170943e-14 | BR83: 30906.74796 | BS83: 20696.80097 | BT83: 9758.696596 | BU83: 0 | BV83: 30455.49756 | BW83: 28103.86591 | BX83: 5208.099498 | BY83: 0 | BZ83: 33311.96541 | CA83: 29410.91341 | CB83: 13935.90278 | CC83: 0 | CD83: 43346.81619 | CE83: 25690.35966 | CF83: 4112.586382 | CG83: 0 | CH83: 29802.94604 | CI83: 22421.91122 | CJ83: 5669.861621 | CK83: 0 | CL83: 28091.77284 | CM83: 27211.71196 | CN83: 7775.228239 | CO83: 0 | CP83: 34986.94019 | CQ83: 14379.42042 | CR83: 3885.882828 | CS83: 0 | CT83: 18265.30325 | CU83: 42393.57465 | CV83: 6153.653184 | CW83: 0 | CX83: 48547.22784 | CY83: 23760.67793 | CZ83: 2574.176292 | DA83: 0 | DB83: 26334.85422 | DC83: 31937.78127 | DD83: 4241.21355 | DE83: 0 | DF83: 36178.99482 | DG83: 21988.64534 | DH83: 3054.8433 | DI83: 0 | DJ83: 25043.48864 | DK83: 31251.28996 | DL83: 2496.349269 | DM83: 0 | DN83: 33747.63923 | DO83: 26014.16221 | DP83: 4142.597818 | DQ83: 0 | DR83: 30156.76003 | DS83: 25025.39069 | DT83: 5582.378314 | DU83: 0 | DV83: 30607.769 | DW83: 36534.51075 | DX83: 6820.423241 | DY83: 0 | DZ83: 43354.93399 | EA83: 23939.33829 | EB83: 2296.034495 | EC83: 0 | ED83: 26235.37278 | EE83: 34700.00586 | EF83: 8810.447189 | EG83: 0 | EH83: 43510.45305 | EI83: 24955.53202 | EJ83: 1647.990816 | EK83: 0 | EL83: 26603.52284 | EM83: 45177.75184 | EN83: 4884.918908 | EO83: 0 | EP83: 50062.67075 | EQ83: 43605.48674 | ER83: 4067.083333 | ES83: 0 | ET83: 47672.57008 | EU83: 22069.99579 | EV83: 4900.715612 | EW83: 0 | EX83: 26970.7114 | EY83: 23579.01374 | EZ83: 7983.582103 | FA83: 0 | FB83: 31562.59584 | FC83: 11340.12249 | FD83: 3084.449739 | FE83: 0 | FF83: 14424.57223 | FG83: 19009.2393 | FH83: 7874.925699 | FI83: 0 | FJ83: 26884.165 | FK83: 20422.8064 | FL83: 3595.944665 | FM83: 0 | FN83: 24018.75106 | FO83: 34915.04391 | FP83: 6730.231782 | FQ83: 0 | FR83: 41645.27569
A84: 13620 | B84: Incentv Acrl Chief Cust Offc | BS84: 119.67 | BT84: 279 | BV84: 398.67 | BW84: -119.67 | BX84: -279 | BZ84: -398.67 | CE84: 56.11 | CF84: 132 | CH84: 188.11 | CI84: -56.11 | CJ84: -132 | CL84: -188.11
A85: 13655 | B85: Kentucky ContinuousImprovement | BS85: 9859.264194 | BT85: 16449.58352 | BU85: 0 | BV85: 26308.84771 | BW85: 20183.21111 | BX85: 13012.03514 | BY85: 0 | BZ85: 33195.24625 | CA85: 20333.54209 | CB85: 22084.51204 | CC85: 0 | CD85: 42418.05413 | CE85: 12806.82062 | CF85: 17979.53414 | CG85: 0 | CH85: 30786.35476 | CI85: 12662.27467 | CJ85: 19754.57413 | CK85: 0 | CL85: 32416.8488 | CM85: 8335.844478 | CN85: 23128.79099 | CO85: 0 | CP85: 31464.63547 | CQ85: 3364.062746 | CR85: 11411.50045 | CS85: 0 | CT85: 14775.56319 | CU85: 9251.001569 | CV85: 24452.80448 | CW85: 0 | CX85: 33703.80605 | CY85: 9373.298688 | CZ85: 20322.93753 | DA85: 0 | DB85: 29696.23622 | DC85: 13074.97385 | DD85: 29976.87602 | DE85: 0 | DF85: 43051.84987 | DG85: 8872.007267 | DH85: 21737.42849 | DI85: 0 | DJ85: 30609.43576 | DK85: 12256.81814 | DL85: 19770.80067 | DM85: 0 | DN85: 32027.61881 | DO85: 16412.77438 | DP85: 10167.2345 | DQ85: 0 | DR85: 26580.00888 | DS85: 17404.71323 | DT85: 8792.558236 | DU85: 0 | DV85: 26197.27147 | DW85: 25397.24786 | DX85: 10710.56672 | DY85: 0 | DZ85: 36107.81458 | EA85: 14985.11424 | EB85: 5871.109508 | EC85: 0 | ED85: 20856.22375 | EE85: 23777.32516 | EF85: 6839.627665 | EG85: 0 | EH85: 30616.95282 | EI85: 16702.92334 | EJ85: 6452.124871 | EK85: 0 | EL85: 23155.04821 | EM85: 19147.76506 | EN85: 6759.687455 | EO85: 0 | EP85: 25907.45251 | EQ85: 30335.08677 | ER85: 12487.3236 | ES85: 0 | ET85: 42822.41037 | EU85: 15449.99367 | EV85: 14311.44506 | EW85: 0 | EX85: 29761.43873 | EY85: 30025.21176 | EZ85: 3661.672601 | FA85: 0 | FB85: 33686.88436 | FC85: 17877.29364 | FD85: 4588.116291 | FE85: 0 | FF85: 22465.40993 | FG85: 40632.9425 | FH85: 3689.194703 | FI85: 0 | FJ85: 44322.1372 | FK85: 20592.82655 | FL85: 5263.765243 | FM85: 0 | FN85: 25856.5918 | FO85: 32726.39186 | FP85: 8035.35368 | FQ85: 0 | FR85: 40761.74554
A86: 13736 | B86: Kentucky Meter Group | DK86: 2252.758556 | DL86: 26504.60752 | DM86: -4.263256415e-14 | DN86: 28757.36608 | DO86: 9096.781266 | DP86: 32472.6518 | DQ86: 0 | DR86: 41569.43307 | DS86: 7188.110436 | DT86: 28587.33512 | DU86: 5.684341886e-14 | DV86: 35775.44556 | DW86: 10965.42291 | DX86: 55186.92841 | DY86: 0 | DZ86: 66152.35133 | EA86: 9991.606616 | EB86: 49992.37551 | EC86: 5735.24 | ED86: 65719.22212 | EE86: 12676.9742 | EF86: 61699.88678 | EG86: 0 | EH86: 74376.86097 | EI86: 13582.87173 | EJ86: 56489.74161 | EK86: -2.842170943e-13 | EL86: 70072.61334 | EM86: 13901.28619 | EN86: 65254.55967 | EO86: 0 | EP86: 79155.84586 | EQ86: 15711.14501 | ER86: 75477.84514 | ES86: 0 | ET86: 91188.99016 | EU86: 11017.64741 | EV86: 47927.57035 | EW86: 0 | EX86: 58945.21776 | EY86: 9487.557119 | EZ86: 53469.21821 | FA86: 0 | FB86: 62956.77533 | FC86: 8192.576564 | FD86: 44476.77135 | FE86: -1.364242053e-12 | FF86: 52669.34792 | FG86: 5888.763104 | FH86: 45686.55982 | FI86: 1.705302566e-13 | FJ86: 51575.32293 | FK86: 6147.805527 | FL86: 40244.43943 | FM86: 0 | FN86: 46392.24495 | FO86: 8155.243536 | FP86: 64527.07338 | FQ86: 0 | FR86: 72682.31691
A87: 99900 | B87: AEP Billings | EZ87: -2240 | FB87: -2240 | FD87: 2239.877641 | FF87: 2239.877641
A88: 99910 | B88: Billings to Assoc Cos | K88: -688.3836608 | L88: 0 | M88: -148.3896746 | N88: -836.7733354 | O88: -215.1516773 | P88: 0 | Q88: -2.67551383 | R88: -217.8271911 | S88: -20.32364306 | U88: -2.462175543 | V88: -22.7858186 | W88: 0 | X88: 0 | Z88: 0 | AA88: -865.9150942 | AB88: 0 | AC88: 0 | AD88: -865.9150942 | AF88: 0 | AH88: 0 | AI88: -4075.066615 | AJ88: 0 | AK88: -147.5101816 | AL88: -4222.576796 | AN88: 0 | AP88: 0 | AR88: 0 | AT88: 0 | AU88: -3273.800892 | AV88: 0 | AW88: 0 | AX88: -3273.800892 | BC88: -1363.166029 | BD88: 0 | BE88: -175.4418267 | BF88: -1538.607856 | BG88: 9848.505218 | BH88: -11991.59935 | BI88: 0 | BJ88: -2143.094135 | BL88: 0 | BM88: -2.890997056 | BN88: -2.890997056 | BP88: 0 | BR88: 0 | BX88: 0 | BY88: -2.66021831 | BZ88: -2.66021831 | CA88: -724.8174215 | CB88: 0 | CC88: -208.8896892 | CD88: -933.7071107 | CE88: -4068.006041 | CF88: 0 | CG88: -171.3858958 | CH88: -4239.391937 | CJ88: 0 | CL88: 0 | CM88: -2986.658529 | CN88: 0 | CO88: -131.4844407 | CP88: -3118.142969 | CQ88: -6880.825863 | CR88: 0 | CS88: 0 | CT88: -6880.825863 | CU88: -5788.164202 | CW88: 0 | CX88: -5788.164202 | CY88: -1356.798699 | DA88: 0 | DB88: -1356.798699 | DC88: -5748.623739 | DD88: 0 | DE88: -151.4873817 | DF88: -5900.111121 | DG88: -1980.952621 | DH88: 0 | DI88: -36.16664783 | DJ88: -2017.119269 | DK88: -4827.669914 | DM88: 0 | DN88: -4827.669914 | DO88: -3566.243035 | DQ88: 0 | DR88: -3566.243035 | DS88: -4593.11606 | DU88: 0 | DV88: -4593.11606 | DW88: -4146.898067 | DX88: 0 | DY88: -5.031148919 | DZ88: -4151.929216 | EA88: -130.9379206 | EB88: 0 | EC88: -162.9108 | ED88: -293.8487206 | EI88: 0 | EJ88: 0 | EK88: -5.513816958 | EL88: -5.513816958 | EM88: -2268.281543 | EN88: 0 | EO88: 0 | EP88: -2268.281543 | ER88: 0 | ES88: -1.444418734 | ET88: -1.444418734 | EU88: -1183.712878 | EV88: 0 | EW88: -169.1833281 | EX88: -1352.896206 | EY88: -935.8229673 | FA88: 0 | FB88: -935.8229673 | FC88: 0 | FF88: 0 | FG88: -4.547473509e-13 | FI88: 0 | FJ88: -4.547473509e-13 | FK88: 629.8215696 | FN88: 629.8215696 | FO88: -487.6176386 | FQ88: 0 | FR88: -487.6176386
A89: 99920 | B89: Billings from Assoc Cos | C89: 2736.918099 | D89: 0 | E89: 0 | F89: 2736.918099 | G89: 3832.228916 | H89: 0 | I89: 0 | J89: 3832.228916 | K89: 7323.785177 | L89: 232.7453908 | M89: 0 | N89: 7556.530567 | O89: 4778.158308 | P89: 2.945461696 | Q89: 0 | R89: 4781.10377 | S89: 4901.44937 | T89: 4.596787957 | U89: 0 | V89: 4906.046158 | W89: 4956.081639 | X89: 0 | Y89: 0 | Z89: 4956.081639 | AA89: 5661.204654 | AB89: 0 | AC89: 0 | AD89: 5661.204654 | AE89: 4601.699647 | AF89: 8.881784197e-15 | AG89: 0 | AH89: 4601.699647 | AI89: 5980.177132 | AJ89: 120.2470027 | AK89: 0 | AL89: 6100.424135 | AM89: 3706.461921 | AN89: 0 | AO89: 0 | AP89: 3706.461921 | AQ89: 3869.155492 | AR89: 0 | AS89: 0 | AT89: 3869.155492 | AU89: 12028.61494 | AV89: 0 | AW89: 0 | AX89: 12028.61494 | AY89: 2963.555052 | AZ89: 0 | BA89: 0 | BB89: 2963.555052 | BC89: 3924.956592 | BD89: 436.9644445 | BE89: 0 | BF89: 4361.921037 | BG89: 5079.345628 | BH89: 0 | BI89: 0 | BJ89: 5079.345628 | BK89: 3257.660456 | BL89: 2.890997056 | BM89: 0 | BN89: 3260.551453 | BO89: 2995.361909 | BP89: 0 | BQ89: 0 | BR89: 2995.361909 | BS89: 647.726188 | BT89: 0 | BU89: 0 | BV89: 647.726188 | BW89: 3107.619817 | BX89: 2.66021831 | BY89: 0 | BZ89: 3110.280035 | CA89: 8639.356373 | CB89: 208.8896892 | CC89: 0 | CD89: 8848.246063 | CE89: 7827.275907 | CF89: 171.3858958 | CG89: 0 | CH89: 7998.661802 | CI89: 7915.268193 | CJ89: 0 | CK89: 0 | CL89: 7915.268193 | CM89: 7480.797288 | CN89: 131.4844407 | CO89: 0 | CP89: 7612.281729 | CQ89: 6211.675504 | CR89: -4009.810555 | CS89: 0 | CT89: 2201.864948 | CU89: 3852.96865 | CV89: 0 | CW89: 0 | CX89: 3852.96865 | CY89: 3863.233405 | CZ89: 0 | DA89: 0 | DB89: 3863.233405 | DC89: -25326.7008 | DD89: 151.4873817 | DE89: 0 | DF89: -25175.21342 | DG89: 3911.678576 | DH89: 36.16664783 | DI89: 0 | DJ89: 3947.845223 | DK89: -2145.795729 | DL89: 0 | DM89: 0 | DN89: -2145.795729 | DO89: 1747.722064 | DP89: 0 | DQ89: -58.49 | DR89: 1689.232064 | DS89: 917.565983 | DT89: 0 | DU89: 0 | DV89: 917.565983 | DW89: 2256.04015 | DX89: 5.031148919 | DY89: 0 | DZ89: 2261.071299 | EA89: 567.4920601 | EB89: 162.9108 | EC89: 0 | ED89: 730.4028601 | EE89: -7033.139864 | EF89: 0 | EG89: 0 | EH89: -7033.139864 | EI89: 381.8508553 | EJ89: 5.513816958 | EK89: 0 | EL89: 387.3646722 | EM89: 515.0348171 | EN89: 173.7449562 | EO89: 0 | EP89: 688.7797733 | EQ89: 99.97958464 | ER89: 1.444418734 | ES89: 0 | ET89: 101.4240034 | EU89: 6008.206998 | EV89: 169.1833281 | EW89: 0 | EX89: 6177.390326 | EY89: 913.8453183 | EZ89: 0 | FA89: 0 | FB89: 913.8453183 | FC89: 61.27825192 | FD89: 0 | FE89: 0 | FF89: 61.27825192 | FG89: 390.5799596 | FH89: 0 | FI89: 0 | FJ89: 390.5799596 | FK89: 580.9089679 | FL89: 0 | FM89: 0 | FN89: 580.9089679 | FO89: 970.559682 | FP89: 0 | FQ89: 0 | FR89: 970.559682
A90: 99990 | B90: Miscellaneous/Unallocated | AU90: -376298 | AV90: 376298 | AX90: 0 | BG90: 1530.230922 | BJ90: 1530.230922 | BW90: -865.7808305 | BX90: -273.3931168 | BZ90: -1139.173947 | FK90: 0 | FN90: 0 | FO90: 0 | FR90: 0
A91: XXXXX | B91: N/A - Clearing | C91: 26.01862269 | D91: 15741.47564 | E91: 2107.325754 | F91: 17874.82002 | G91: -32.03093914 | H91: 6692.11912 | I91: -260.9063779 | J91: 6399.181803 | K91: 55.26384888 | L91: 2717.114153 | M91: 342.4342247 | N91: 3114.812227 | O91: -8.873721249 | P91: 13.91465318 | Q91: -8.794051298 | R91: -3.753119363 | S91: 128.4063351 | T91: 2932.872642 | U91: 362.6840094 | V91: 3423.962987 | W91: 126.8921484 | X91: 3011.88477 | Y91: 453.0055845 | Z91: 3591.782503 | AA91: 53.70885171 | AB91: 2508.720931 | AC91: 330.3212309 | AD91: 2892.751014 | AE91: 81.67340003 | AF91: 3122.693178 | AG91: 370.469436 | AH91: 3574.836014 | AI91: 59.6731713 | AJ91: 2862.476963 | AK91: 325.9417255 | AL91: 3248.09186 | AM91: -66.77277228 | AN91: -2880.483181 | AO91: -319.4803877 | AP91: -3266.736341 | AQ91: 41.49917097 | AR91: 1536.67778 | AS91: 201.3393153 | AT91: 1779.516267 | AU91: 129.715896 | AV91: 12786.21069 | AW91: 1125.424854 | AX91: 14041.35144 | AY91: 114.2276551 | AZ91: 10366.73741 | BA91: 1841.842987 | BB91: 12322.80805 | BC91: 453.0431102 | BD91: 5124.595056 | BE91: 596.5403113 | BF91: 6174.178477 | BG91: 496.9818168 | BH91: 2933.800608 | BI91: 387.6165417 | BJ91: 3818.398966 | BK91: 64.34208654 | BL91: 4261.366551 | BM91: 468.4222783 | BN91: 4794.130916 | BO91: 606.9120846 | BP91: 6713.459239 | BQ91: 471.0969449 | BR91: 7791.468268 | BS91: 603.6173778 | BT91: 4697.777847 | BU91: 327.8243833 | BV91: 5629.219609 | BW91: 1240.49811 | BX91: 9688.194888 | BY91: 937.0593797 | BZ91: 11865.75238 | CA91: 154.3478105 | CB91: 5846.830284 | CC91: 556.4197126 | CD91: 6557.597807 | CE91: 771.4074879 | CF91: 7597.964896 | CG91: 788.6294761 | CH91: 9158.00186 | CI91: 1386.992556 | CJ91: 11537.31473 | CK91: 1075.449489 | CL91: 13999.75677 | CM91: 1242.582992 | CN91: 10663.61007 | CO91: 1067.520465 | CP91: 12973.71353 | CQ91: -1421.219878 | CR91: -13875.73024 | CS91: -1088.030483 | CT91: -16384.9806 | CU91: 3510.089154 | CV91: 32815.55795 | CW91: 2700.669504 | CX91: 39026.3166 | CY91: 707.5044478 | CZ91: 5900.467473 | DA91: 524.5518026 | DB91: 7132.523723 | DC91: -20.51864364 | DD91: 2592.768105 | DE91: 508.8402345 | DF91: 3081.089696 | DG91: 793.6700004 | DH91: 5997.979383 | DI91: 462.2975493 | DJ91: 7253.946933 | DK91: 38.99631257 | DL91: 5395.671118 | DM91: 528.9578177 | DN91: 5963.625249 | DO91: 26.86929001 | DP91: 6466.381839 | DQ91: 510.1686902 | DR91: 7003.419819 | DS91: 38.07697968 | DT91: 5546.970484 | DU91: 514.5094113 | DV91: 6099.556875 | DW91: 648.9754415 | DX91: 6129.654421 | DY91: 460.9898015 | DZ91: 7239.619664 | EA91: 835.0689665 | EB91: 5662.485288 | EC91: 483.9732881 | ED91: 6981.527542 | EE91: 3027.251488 | EF91: 20014.32115 | EG91: 2126.284225 | EH91: 25167.85686 | EI91: 81.73323491 | EJ91: 6424.779264 | EK91: 993.9972925 | EL91: 7500.509792 | EM91: 450.2084836 | EN91: 18366.32871 | EO91: 2663.110624 | EP91: 21479.64782 | EQ91: 1086.999256 | ER91: 9391.180553 | ES91: 659.1931656 | ET91: 11137.37298 | EU91: 832.1583814 | EV91: 6312.920652 | EW91: 526.0663585 | EX91: 7671.145392 | EY91: -66.83532044 | EZ91: 636.1966103 | FA91: -622.45173 | FB91: -53.09044014 | FC91: -133.5509034 | FD91: -8322.471387 | FE91: -1471.590361 | FF91: -9927.612651 | FG91: 41.90251026 | FH91: 1874.091231 | FI91: 225.1492013 | FJ91: 2141.142943 | FK91: 1.922581736 | FL91: -32.91949606 | FM91: -68.07828506 | FN91: -99.07519939 | FO91: 819.3579202 | FP91: 3105.091419 | FQ91: 255.861472 | FR91: 4180.310811
A92: Grand Total | C92: =SUM(C6:C91) -> 841571.3959 | D92: =SUM(D6:D91) -> 2285328.649 | E92: 433782.2354 | F92: =SUM(F6:F91) -> 3560682.28 | G92: =SUM(G6:G91) -> 962271.0623 | H92: =SUM(H6:H91) -> 1998749.508 | I92: =SUM(I6:I91) -> 260250.6198 | J92: =SUM(J6:J91) -> 3221271.19 | K92: =SUM(K6:K91) -> 1316957.268 | L92: =SUM(L6:L91) -> 3734646.883 | M92: =SUM(M6:M91) -> 476466.0485 | N92: =SUM(N6:N91) -> 5528070.2 | O92: =SUM(O6:O91) -> 981101.3534 | P92: =SUM(P6:P91) -> 2135106.742 | Q92: =SUM(Q6:Q91) -> 266693.4141 | R92: =SUM(R6:R91) -> 3382901.51 | S92: =SUM(S6:S91) -> 996013.0451 | T92: =SUM(T6:T91) -> 2217985.661 | U92: =SUM(U6:U91) -> 298129.9341 | V92: =SUM(V6:V91) -> 3512128.64 | W92: =SUM(W6:W91) -> 973615.4814 | X92: =SUM(X6:X91) -> 2328446.363 | Y92: =SUM(Y6:Y91) -> 325516.206 | Z92: =SUM(Z6:Z91) -> 3627578.05 | AA92: =SUM(AA6:AA91) -> 924032.3318 | AB92: =SUM(AB6:AB91) -> 2517866.765 | AC92: =SUM(AC6:AC91) -> 295833.1323 | AD92: =SUM(AD6:AD91) -> 3737732.229 | AE92: =SUM(AE6:AE91) -> 915281.1639 | AF92: =SUM(AF6:AF91) -> 2229466.445 | AG92: =SUM(AG6:AG91) -> 296337.4713 | AH92: =SUM(AH6:AH91) -> 3441085.08 | AI92: =SUM(AI6:AI91) -> 1309437.983 | AJ92: =SUM(AJ6:AJ91) -> 3070479.77 | AK92: =SUM(AK6:AK91) -> 812891.1487 | AL92: =SUM(AL6:AL91) -> 5192808.902 | AM92: =SUM(AM6:AM91) -> 1032345.989 | AN92: =SUM(AN6:AN91) -> 2065730.263 | AO92: =SUM(AO6:AO91) -> 323796.2671 | AP92: =SUM(AP6:AP91) -> 3421872.52 | AQ92: =SUM(AQ6:AQ91) -> 1041513.78 | AR92: =SUM(AR6:AR91) -> 1876033.541 | AS92: =SUM(AS6:AS91) -> 569923.1386 | AT92: =SUM(AT6:AT91) -> 3487470.46 | AU92: =SUM(AU6:AU91) -> 979821.8054 | AV92: =SUM(AV6:AV91) -> 3203281.987 | AW92: =SUM(AW6:AW91) -> 346437.2547 | AX92: =SUM(AX6:AX91) -> 4529541.047 | AY92: =SUM(AY6:AY91) -> 1036984.55 | AZ92: =SUM(AZ6:AZ91) -> 2100503.916 | BA92: =SUM(BA6:BA91) -> 416932.1742 | BB92: =SUM(BB6:BB91) -> 3554420.64 | BC92: =SUM(BC6:BC91) -> 1098801.439 | BD92: =SUM(BD6:BD91) -> 2055910.815 | BE92: =SUM(BE6:BE91) -> 457607.4931 | BF92: =SUM(BF6:BF91) -> 3612319.748 | BG92: =SUM(BG6:BG91) -> 1472395.58 | BH92: =SUM(BH6:BH91) -> 3104032.896 | BI92: =SUM(BI6:BI91) -> 934190.5377 | BJ92: =SUM(BJ6:BJ91) -> 5510619.014 | BK92: =SUM(BK6:BK91) -> 1074357.898 | BL92: =SUM(BL6:BL91) -> 2414681.823 | BM92: =SUM(BM6:BM91) -> 379550.4189 | BN92: =SUM(BN6:BN91) -> 3868590.14 | BO92: =SUM(BO6:BO91) -> 1148020.59 | BP92: =SUM(BP6:BP91) -> 2121439.878 | BQ92: =SUM(BQ6:BQ91) -> 264048.6727 | BR92: =SUM(BR6:BR91) -> 3533509.14 | BS92: =SUM(BS6:BS91) -> 1247293.189 | BT92: =SUM(BT6:BT91) -> 2368434.156 | BU92: =SUM(BU6:BU91) -> 315967.0557 | BV92: =SUM(BV6:BV91) -> 3931694.4 | BW92: =SUM(BW6:BW91) -> 1071658.89 | BX92: =SUM(BX6:BX91) -> 2280235.416 | BY92: =SUM(BY6:BY91) -> 340313.3944 | BZ92: =SUM(BZ6:BZ91) -> 3692207.7 | CA92: =SUM(CA6:CA91) -> 1523330.436 | CB92: =SUM(CB6:CB91) -> 3214365.818 | CC92: =SUM(CC6:CC91) -> 709179.5294 | CD92: =SUM(CD6:CD91) -> 5446875.784 | CE92: =SUM(CE6:CE91) -> 1160062.51 | CF92: =SUM(CF6:CF91) -> 2320154.034 | CG92: =SUM(CG6:CG91) -> 356682.786 | CH92: =SUM(CH6:CH91) -> 3836899.331 | CI92: =SUM(CI6:CI91) -> 1045326.702 | CJ92: =SUM(CJ6:CJ91) -> 2145192.816 | CK92: =SUM(CK6:CK91) -> 761373.722 | CL92: =SUM(CL6:CL91) -> 3951893.24 | CM92: =SUM(CM6:CM91) -> 1067905.988 | CN92: =SUM(CN6:CN91) -> 2407189.402 | CO92: =SUM(CO6:CO91) -> 452202.796 | CP92: =SUM(CP6:CP91) -> 3927298.186 | CQ92: =SUM(CQ6:CQ91) -> 1148152.019 | CR92: =SUM(CR6:CR91) -> 2489691.071 | CS92: =SUM(CS6:CS91) -> 270499.9017 | CT92: =SUM(CT6:CT91) -> 3908342.992 | CU92: =SUM(CU6:CU91) -> 1017541.169 | CV92: =SUM(CV6:CV91) -> 1801914.477 | CW92: =SUM(CW6:CW91) -> 435674.5845 | CX92: =SUM(CX6:CX91) -> 3255130.23 | CY92: =SUM(CY6:CY91) -> 1140608.844 | CZ92: =SUM(CZ6:CZ91) -> 1950661.808 | DA92: =SUM(DA6:DA91) -> 387890.0982 | DB92: =SUM(DB6:DB91) -> 3479160.75 | DC92: =SUM(DC6:DC91) -> 1605980.978 | DD92: =SUM(DD6:DD91) -> 4957346.549 | DE92: =SUM(DE6:DE91) -> 468493.2031 | DF92: =SUM(DF6:DF91) -> 7031820.73 | DG92: =SUM(DG6:DG91) -> 1139372.549 | DH92: =SUM(DH6:DH91) -> 3309354.718 | DI92: =SUM(DI6:DI91) -> 316443.1725 | DJ92: =SUM(DJ6:DJ91) -> 4765170.44 | DK92: =SUM(DK6:DK91) -> 1155111.422 | DL92: =SUM(DL6:DL91) -> 2185610.718 | DM92: =SUM(DM6:DM91) -> 301751.861 | DN92: =SUM(DN6:DN91) -> 3642474 | DO92: =SUM(DO6:DO91) -> 1102673.58 | DP92: =SUM(DP6:DP91) -> 4139015.148 | DQ92: =SUM(DQ6:DQ91) -> 321631.0318 | DR92: =SUM(DR6:DR91) -> 5563319.76 | DS92: =SUM(DS6:DS91) -> 1100424.722 | DT92: =SUM(DT6:DT91) -> 2173719.559 | DU92: =SUM(DU6:DU91) -> 333587.5786 | DV92: =SUM(DV6:DV91) -> 3607731.86 | DW92: =SUM(DW6:DW91) -> 1538307.677 | DX92: =SUM(DX6:DX91) -> 3253927.577 | DY92: =SUM(DY6:DY91) -> 394226.5654 | DZ92: =SUM(DZ6:DZ91) -> 5186461.82 | EA92: =SUM(EA6:EA91) -> 1248507.344 | EB92: =SUM(EB6:EB91) -> 2817638.109 | EC92: =SUM(EC6:EC91) -> 420266.6764 | ED92: =SUM(ED6:ED91) -> 4486412.13 | EE92: =SUM(EE6:EE91) -> 1333339.706 | EF92: =SUM(EF6:EF91) -> 2433406.993 | EG92: =SUM(EG6:EG91) -> 313088.7116 | EH92: =SUM(EH6:EH91) -> 4079835.41 | EI92: =SUM(EI6:EI91) -> 1433423.119 | EJ92: =SUM(EJ6:EJ91) -> 1876059.907 | EK92: =SUM(EK6:EK91) -> 323500.4447 | EL92: =SUM(EL6:EL91) -> 3632983.47 | EM92: =SUM(EM6:EM91) -> 1544875.151 | EN92: =SUM(EN6:EN91) -> 2731579.214 | EO92: =SUM(EO6:EO91) -> 379462.5453 | EP92: =SUM(EP6:EP91) -> 4655916.91 | EQ92: =SUM(EQ6:EQ91) -> 1812546.858 | ER92: =SUM(ER6:ER91) -> 3664683.777 | ES92: =SUM(ES6:ES91) -> 415569.6552 | ET92: =SUM(ET6:ET91) -> 5892800.29 | EU92: =SUM(EU6:EU91) -> 1161265.382 | EV92: =SUM(EV6:EV91) -> 1886927.831 | EW92: =SUM(EW6:EW91) -> 252471.4677 | EX92: =SUM(EX6:EX91) -> 3300664.68 | EY92: =SUM(EY6:EY91) -> 1226490.516 | EZ92: =SUM(EZ6:EZ91) -> 1322403.588 | FA92: =SUM(FA6:FA91) -> 245919.2364 | FB92: =SUM(FB6:FB91) -> 2794813.34 | FC92: =SUM(FC6:FC91) -> 1063415.827 | FD92: =SUM(FD6:FD91) -> 2234566.841 | FE92: =SUM(FE6:FE91) -> 163352.4719 | FF92: =SUM(FF6:FF91) -> 3461335.14 | FG92: =SUM(FG6:FG91) -> 1298902.914 | FH92: =SUM(FH6:FH91) -> 1950695.989 | FI92: =SUM(FI6:FI91) -> 204826.3468 | FJ92: =SUM(FJ6:FJ91) -> 3454425.25 | FK92: =SUM(FK6:FK91) -> 1187738.625 | FL92: =SUM(FL6:FL91) -> 1887043.651 | FM92: =SUM(FM6:FM91) -> 249421.0235 | FN92: =SUM(FN6:FN91) -> 3324203.3 | FO92: =SUM(FO6:FO91) -> 1821067.352 | FP92: =SUM(FP6:FP91) -> 2967672.785 | FQ92: =SUM(FQ6:FQ91) -> 356138.183 | FR92: =SUM(FR6:FR91) -> 5144878.32
